Department Family,Entity,Date,Expense Type,Expense Area,Supplier,Transaction Number,Amount,Item Description
BEIS,UKRI - AHRC,02/05/2023,Research Grant Expenditure,Infrastructure Fund - CoSTAR,Alexander Mann Solutions Ltd,99950232,2772.24,Research Grant Expenditure
BEIS,UKRI - AHRC,02/05/2023,Other Staff Benefits,Operations,UKRI - Engineering & Physical Sciences Research Council,99950889,70.00,Other Staff Benefits
BEIS,UKRI - AHRC,02/05/2023,Other Staff Benefits,Operations,UKRI - Engineering & Physical Sciences Research Council,99950896,70.00,Other Staff Benefits
BEIS,UKRI - AHRC,02/05/2023,T&S UK - Other Charges,Operations,Unspecified,99951070,1.20,T&S UK - Other Charges
BEIS,UKRI - AHRC,02/05/2023,T&S UK - Subsistence,Operations,Unspecified,99951070,31.16,T&S UK - Subsistence
BEIS,UKRI - AHRC,03/05/2023,Non-staff travel and subsistance,AHRC - Creative Industries,Unspecified,99951778,232.39,Non-staff travel and subsistance
BEIS,UKRI - AHRC,03/05/2023,Non-staff travel and subsistance,AHRC - Creative Industries,Unspecified,99951779,188.25,Non-staff travel and subsistance
BEIS,UKRI - AHRC,03/05/2023,Non-staff travel and subsistance,AHRC - Creative Industries,Unspecified,99951780,122.20,Non-staff travel and subsistance
BEIS,UKRI - AHRC,03/05/2023,Non-staff travel and subsistance,AHRC - Creative Industries,Unspecified,99951781,426.10,Non-staff travel and subsistance
BEIS,UKRI - AHRC,03/05/2023,Non-staff travel and subsistance,AHRC - Creative Industries,Unspecified,99951782,110.97,Non-staff travel and subsistance
BEIS,UKRI - AHRC,03/05/2023,Non-staff travel and subsistance,AHRC - Creative Industries,Unspecified,99951783,143.91,Non-staff travel and subsistance
BEIS,UKRI - AHRC,03/05/2023,Non-staff travel and subsistance,AHRC - Creative Industries,Unspecified,99951784,51.55,Non-staff travel and subsistance
BEIS,UKRI - AHRC,03/05/2023,Fees (Including College Members),Operations,Unspecified,99951785,85.00,Fees (Including College Members)
BEIS,UKRI - AHRC,03/05/2023,T&S UK - Subsistence,Operations,Unspecified,99952101,4.85,T&S UK - Subsistence
BEIS,UKRI - AHRC,03/05/2023,T&S UK - Subsistence,Operations,Unspecified,99952101,30.45,T&S UK - Subsistence
BEIS,UKRI - AHRC,03/05/2023,T&S UK - Public Transport,Strategy and Evidence,Unspecified,99952102,9.91,T&S UK - Public Transport
BEIS,UKRI - AHRC,03/05/2023,T&S UK - Subsistence,Strategy and Evidence,Unspecified,99952102,6.00,T&S UK - Subsistence
BEIS,UKRI - AHRC,03/05/2023,T&S UK - Subsistence,Strategy and Evidence,Unspecified,99952102,6.60,T&S UK - Subsistence
BEIS,UKRI - AHRC,03/05/2023,T&S UK - Other Charges,Strategy and Evidence,Unspecified,99952103,9.30,T&S UK - Other Charges
BEIS,UKRI - AHRC,03/05/2023,T&S UK - Subsistence,Strategy and Evidence,Unspecified,99952103,51.67,T&S UK - Subsistence
BEIS,UKRI - AHRC,03/05/2023,T&S UK - Subsistence,"Health, Environmental & Urban Humanities (HEUH)",Unspecified,99952104,6.80,T&S UK - Subsistence
BEIS,UKRI - AHRC,05/05/2023,Non-staff travel and subsistance,Engagement with the Innovation Scholarship programme,Unspecified,99952507,14.20,Non-staff travel and subsistance
BEIS,UKRI - AHRC,05/05/2023,T&S UK - Public Transport,Operations,Unspecified,99952633,8.30,T&S UK - Public Transport
BEIS,UKRI - AHRC,05/05/2023,T&S UK - Subsistence,Operations,Unspecified,99952633,33.35,T&S UK - Subsistence
BEIS,UKRI - AHRC,05/05/2023,T&S UK - Subsistence,"Health, Environmental & Urban Humanities (HEUH)",Unspecified,99952634,25.21,T&S UK - Subsistence
BEIS,UKRI - AHRC,05/05/2023,T&S UK - Public Transport,"Health, Environmental & Urban Humanities (HEUH)",Unspecified,99952635,5.50,T&S UK - Public Transport
BEIS,UKRI - AHRC,05/05/2023,T&S UK - Mileage,"Health, Environmental & Urban Humanities (HEUH)",Unspecified,99952636,184.00,T&S UK - Mileage
BEIS,UKRI - AHRC,05/05/2023,T&S UK - Public Transport,"Health, Environmental & Urban Humanities (HEUH)",Unspecified,99952637,9.93,T&S UK - Public Transport
BEIS,UKRI - AHRC,05/05/2023,T&S UK - Public Transport,"Health, Environmental & Urban Humanities (HEUH)",Unspecified,99952637,2.60,T&S UK - Public Transport
BEIS,UKRI - AHRC,05/05/2023,T&S UK - Subsistence,"Health, Environmental & Urban Humanities (HEUH)",Unspecified,99952637,6.99,T&S UK - Subsistence
BEIS,UKRI - AHRC,09/05/2023,Research Grant Expenditure,Infrastructure Fund - CoSTAR,Alexander Mann Solutions Ltd,99953980,3465.30,Research Grant Expenditure
BEIS,UKRI - AHRC,09/05/2023,Staff Training,Public Engagement,Social Brighton Ltd T/A Social for Good,99953993,7776.00,Staff Training
BEIS,UKRI - AHRC,10/05/2023,T&S UK - Public Transport,Executive Office,Unspecified,99926972,8.20,T&S UK - Public Transport
BEIS,UKRI - AHRC,10/05/2023,T&S UK - Public Transport,Executive Office,Unspecified,99926972,6.70,T&S UK - Public Transport
BEIS,UKRI - AHRC,10/05/2023,T&S UK - Subsistence,Executive Office,Unspecified,99926972,48.50,T&S UK - Subsistence
BEIS,UKRI - AHRC,10/05/2023,Corporate Events,ISCF Creative Clusters,CREATIVE INDUSTRIES FEDERATION,99954836,26555.00,Corporate Events
BEIS,UKRI - AHRC,10/05/2023,VAT Input Tax Control (for UK VAT),Balance Sheet,CREATIVE INDUSTRIES FEDERATION,99954836,5311.00,VAT Input Tax Control (for UK VAT)
BEIS,UKRI - AHRC,10/05/2023,T&S UK - Other Charges,Operations,Unspecified,99955760,5.25,T&S UK - Other Charges
BEIS,UKRI - AHRC,10/05/2023,T&S UK - Public Transport,Operations,Unspecified,99955760,6.70,T&S UK - Public Transport
BEIS,UKRI - AHRC,10/05/2023,T&S UK - Subsistence,Operations,Unspecified,99955760,35.41,T&S UK - Subsistence
BEIS,UKRI - AHRC,10/05/2023,T&S UK - Subsistence,International Partnership and Engagement,Unspecified,99955761,3.80,T&S UK - Subsistence
BEIS,UKRI - AHRC,10/05/2023,T&S UK - Subsistence,International Partnership and Engagement,Unspecified,99955761,34.00,T&S UK - Subsistence
BEIS,UKRI - AHRC,10/05/2023,T&S UK - Subsistence,International Partnership and Engagement,Unspecified,99955761,13.15,T&S UK - Subsistence
BEIS,UKRI - AHRC,11/05/2023,Fees (Including College Members),Operations,Unspecified,99955313,170.00,Fees (Including College Members)
BEIS,UKRI - AHRC,11/05/2023,Fees (Including College Members),Operations,Unspecified,99955314,85.00,Fees (Including College Members)
BEIS,UKRI - AHRC,11/05/2023,Fees (Including College Members),Operations,Unspecified,99955315,170.00,Fees (Including College Members)
BEIS,UKRI - AHRC,11/05/2023,Fees (Including College Members),Operations,Unspecified,99955316,85.00,Fees (Including College Members)
BEIS,UKRI - AHRC,11/05/2023,T&S UK - Subsistence,SMT,Unspecified,99955408,108.84,T&S UK - Subsistence
BEIS,UKRI - AHRC,11/05/2023,T&S UK - Public Transport,"Health, Environmental & Urban Humanities (HEUH)",Unspecified,99955410,24.90,T&S UK - Public Transport
BEIS,UKRI - AHRC,11/05/2023,T&S UK - Subsistence,"Health, Environmental & Urban Humanities (HEUH)",Unspecified,99955410,5.00,T&S UK - Subsistence
BEIS,UKRI - AHRC,11/05/2023,Other Programme Costs,World Class Labs (WCL),University of Leicester,99956178,32663.00,Other Programme Costs
BEIS,UKRI - AHRC,12/05/2023,Unspecified,Balance Sheet,HM Revenue & Customs,99955523,65225.01,NI Payable Salaries
BEIS,UKRI - AHRC,12/05/2023,Unspecified,Balance Sheet,HM Revenue & Customs,99955524,52114.82,PAYE Payable Salaries
BEIS,UKRI - AHRC,12/05/2023,Unspecified,Balance Sheet,HM Revenue & Customs,99955525,5119.00,Student Loans
BEIS,UKRI - AHRC,12/05/2023,Unspecified,Corporate Services,HM Revenue & Customs,99955526,1735.00,Apprenticeship Levy
BEIS,UKRI - AHRC,12/05/2023,Fees (Including College Members),Operations,Unspecified,99955608,340.00,Fees (Including College Members)
BEIS,UKRI - AHRC,12/05/2023,T&S Overseas - Accommodation,SMT,Clarity Travel Ltd t/a Clarity,99956337,347.12,T&S Overseas - Accommodation
BEIS,UKRI - AHRC,12/05/2023,T&S Overseas - Accommodation,SMT,Clarity Travel Ltd t/a Clarity,99956337,244.29,T&S Overseas - Accommodation
BEIS,UKRI - AHRC,12/05/2023,T&S Overseas - Flights,Infrastruture Roadmap,Clarity Travel Ltd t/a Clarity,99956337,1.00,T&S Overseas - Flights
BEIS,UKRI - AHRC,12/05/2023,T&S Overseas - Flights,Infrastruture Roadmap,Clarity Travel Ltd t/a Clarity,99956337,283.00,T&S Overseas - Flights
BEIS,UKRI - AHRC,12/05/2023,T&S UK - Accommodation,"Health, Environmental & Urban Humanities (HEUH)",Clarity Travel Ltd t/a Clarity,99956337,77.50,T&S UK - Accommodation
BEIS,UKRI - AHRC,12/05/2023,T&S UK - Accommodation,"Health, Environmental & Urban Humanities (HEUH)",Clarity Travel Ltd t/a Clarity,99956337,64.04,T&S UK - Accommodation
BEIS,UKRI - AHRC,12/05/2023,T&S UK - Accommodation,"Health, Environmental & Urban Humanities (HEUH)",Clarity Travel Ltd t/a Clarity,99956337,28.31,T&S UK - Accommodation
BEIS,UKRI - AHRC,12/05/2023,T&S UK - Accommodation,"Heritage, Culture & Creative Arts (HCCA)",Clarity Travel Ltd t/a Clarity,99956337,149.17,T&S UK - Accommodation
BEIS,UKRI - AHRC,12/05/2023,T&S UK - Accommodation,"Heritage, Culture & Creative Arts (HCCA)",Clarity Travel Ltd t/a Clarity,99956337,29.83,T&S UK - Accommodation
BEIS,UKRI - AHRC,12/05/2023,T&S UK - Accommodation,ISCF Creative Clusters,Clarity Travel Ltd t/a Clarity,99956337,233.04,T&S UK - Accommodation
BEIS,UKRI - AHRC,12/05/2023,T&S UK - Accommodation,ISCF Creative Clusters,Clarity Travel Ltd t/a Clarity,99956337,46.60,T&S UK - Accommodation
BEIS,UKRI - AHRC,12/05/2023,T&S UK - Accommodation,Infrastruture Roadmap,Clarity Travel Ltd t/a Clarity,99956337,85.00,T&S UK - Accommodation
BEIS,UKRI - AHRC,12/05/2023,T&S UK - Accommodation,Infrastruture Roadmap,Clarity Travel Ltd t/a Clarity,99956337,91.38,T&S UK - Accommodation
BEIS,UKRI - AHRC,12/05/2023,T&S UK - Accommodation,Infrastruture Roadmap,Clarity Travel Ltd t/a Clarity,99956337,106.67,T&S UK - Accommodation
BEIS,UKRI - AHRC,12/05/2023,T&S UK - Accommodation,Infrastruture Roadmap,Clarity Travel Ltd t/a Clarity,99956337,90.83,T&S UK - Accommodation
BEIS,UKRI - AHRC,12/05/2023,T&S UK - Accommodation,Infrastruture Roadmap,Clarity Travel Ltd t/a Clarity,99956337,151.58,T&S UK - Accommodation
BEIS,UKRI - AHRC,12/05/2023,T&S UK - Accommodation,Infrastruture Roadmap,Clarity Travel Ltd t/a Clarity,99956337,105.10,T&S UK - Accommodation
BEIS,UKRI - AHRC,12/05/2023,T&S UK - Accommodation,Operations,Clarity Travel Ltd t/a Clarity,99956337,115.83,T&S UK - Accommodation
BEIS,UKRI - AHRC,12/05/2023,T&S UK - Accommodation,Operations,Clarity Travel Ltd t/a Clarity,99956337,77.08,T&S UK - Accommodation
BEIS,UKRI - AHRC,12/05/2023,T&S UK - Accommodation,Operations,Clarity Travel Ltd t/a Clarity,99956337,77.08,T&S UK - Accommodation
BEIS,UKRI - AHRC,12/05/2023,T&S UK - Accommodation,Operations,Clarity Travel Ltd t/a Clarity,99956337,54.01,T&S UK - Accommodation
BEIS,UKRI - AHRC,12/05/2023,T&S UK - Accommodation,SMT,Clarity Travel Ltd t/a Clarity,99956337,94.33,T&S UK - Accommodation
BEIS,UKRI - AHRC,12/05/2023,T&S UK - Accommodation,SMT,Clarity Travel Ltd t/a Clarity,99956337,18.87,T&S UK - Accommodation
BEIS,UKRI - AHRC,12/05/2023,T&S UK - Accommodation,Strategy and Evidence,Clarity Travel Ltd t/a Clarity,99956337,154.17,T&S UK - Accommodation
BEIS,UKRI - AHRC,12/05/2023,T&S UK - Accommodation,Strategy and Evidence,Clarity Travel Ltd t/a Clarity,99956337,30.83,T&S UK - Accommodation
BEIS,UKRI - AHRC,12/05/2023,T&S UK - Public Transport,AI&Design,Clarity Travel Ltd t/a Clarity,99956337,0.50,T&S UK - Public Transport
BEIS,UKRI - AHRC,12/05/2023,T&S UK - Public Transport,AI&Design,Clarity Travel Ltd t/a Clarity,99956337,166.20,T&S UK - Public Transport
BEIS,UKRI - AHRC,12/05/2023,T&S UK - Public Transport,AI&Design,Clarity Travel Ltd t/a Clarity,99956337,3.00,T&S UK - Public Transport
BEIS,UKRI - AHRC,12/05/2023,T&S UK - Public Transport,AI&Design,Clarity Travel Ltd t/a Clarity,99956337,57.00,T&S UK - Public Transport
BEIS,UKRI - AHRC,12/05/2023,T&S UK - Public Transport,AI&Design,Clarity Travel Ltd t/a Clarity,99956337,30.40,T&S UK - Public Transport
BEIS,UKRI - AHRC,12/05/2023,T&S UK - Public Transport,AI&Design,Clarity Travel Ltd t/a Clarity,99956337,148.00,T&S UK - Public Transport
BEIS,UKRI - AHRC,12/05/2023,T&S UK - Public Transport,HERA JRP Project,Clarity Travel Ltd t/a Clarity,99956337,0.50,T&S UK - Public Transport
BEIS,UKRI - AHRC,12/05/2023,T&S UK - Public Transport,HERA JRP Project,Clarity Travel Ltd t/a Clarity,99956337,131.10,T&S UK - Public Transport
BEIS,UKRI - AHRC,12/05/2023,T&S UK - Public Transport,"Health, Environmental & Urban Humanities (HEUH)",Clarity Travel Ltd t/a Clarity,99956337,1.50,T&S UK - Public Transport
BEIS,UKRI - AHRC,12/05/2023,T&S UK - Public Transport,"Health, Environmental & Urban Humanities (HEUH)",Clarity Travel Ltd t/a Clarity,99956337,67.60,T&S UK - Public Transport
BEIS,UKRI - AHRC,12/05/2023,T&S UK - Public Transport,"Health, Environmental & Urban Humanities (HEUH)",Clarity Travel Ltd t/a Clarity,99956337,96.80,T&S UK - Public Transport
BEIS,UKRI - AHRC,12/05/2023,T&S UK - Public Transport,"Health, Environmental & Urban Humanities (HEUH)",Clarity Travel Ltd t/a Clarity,99956337,1.00,T&S UK - Public Transport
BEIS,UKRI - AHRC,12/05/2023,T&S UK - Public Transport,"Health, Environmental & Urban Humanities (HEUH)",Clarity Travel Ltd t/a Clarity,99956337,77.20,T&S UK - Public Transport
BEIS,UKRI - AHRC,12/05/2023,T&S UK - Public Transport,"Health, Environmental & Urban Humanities (HEUH)",Clarity Travel Ltd t/a Clarity,99956337,35.40,T&S UK - Public Transport
BEIS,UKRI - AHRC,12/05/2023,T&S UK - Public Transport,"Health, Environmental & Urban Humanities (HEUH)",Clarity Travel Ltd t/a Clarity,99956337,1.00,T&S UK - Public Transport
BEIS,UKRI - AHRC,12/05/2023,T&S UK - Public Transport,"Health, Environmental & Urban Humanities (HEUH)",Clarity Travel Ltd t/a Clarity,99956337,50.95,T&S UK - Public Transport
BEIS,UKRI - AHRC,12/05/2023,T&S UK - Public Transport,"Health, Environmental & Urban Humanities (HEUH)",Clarity Travel Ltd t/a Clarity,99956337,23.35,T&S UK - Public Transport
BEIS,UKRI - AHRC,12/05/2023,T&S UK - Public Transport,"Health, Environmental & Urban Humanities (HEUH)",Clarity Travel Ltd t/a Clarity,99956337,0.50,T&S UK - Public Transport
BEIS,UKRI - AHRC,12/05/2023,T&S UK - Public Transport,"Health, Environmental & Urban Humanities (HEUH)",Clarity Travel Ltd t/a Clarity,99956337,40.80,T&S UK - Public Transport
BEIS,UKRI - AHRC,12/05/2023,T&S UK - Public Transport,"Health, Environmental & Urban Humanities (HEUH)",Clarity Travel Ltd t/a Clarity,99956337,1.50,T&S UK - Public Transport
BEIS,UKRI - AHRC,12/05/2023,T&S UK - Public Transport,"Health, Environmental & Urban Humanities (HEUH)",Clarity Travel Ltd t/a Clarity,99956337,30.50,T&S UK - Public Transport
BEIS,UKRI - AHRC,12/05/2023,T&S UK - Public Transport,"Health, Environmental & Urban Humanities (HEUH)",Clarity Travel Ltd t/a Clarity,99956337,15.20,T&S UK - Public Transport
BEIS,UKRI - AHRC,12/05/2023,T&S UK - Public Transport,"Health, Environmental & Urban Humanities (HEUH)",Clarity Travel Ltd t/a Clarity,99956337,28.50,T&S UK - Public Transport
BEIS,UKRI - AHRC,12/05/2023,T&S UK - Public Transport,"Health, Environmental & Urban Humanities (HEUH)",Clarity Travel Ltd t/a Clarity,99956337,1.00,T&S UK - Public Transport
BEIS,UKRI - AHRC,12/05/2023,T&S UK - Public Transport,"Health, Environmental & Urban Humanities (HEUH)",Clarity Travel Ltd t/a Clarity,99956337,15.20,T&S UK - Public Transport
BEIS,UKRI - AHRC,12/05/2023,T&S UK - Public Transport,"Health, Environmental & Urban Humanities (HEUH)",Clarity Travel Ltd t/a Clarity,99956337,160.20,T&S UK - Public Transport
BEIS,UKRI - AHRC,12/05/2023,T&S UK - Public Transport,"Health, Environmental & Urban Humanities (HEUH)",Clarity Travel Ltd t/a Clarity,99956337,1.00,T&S UK - Public Transport
BEIS,UKRI - AHRC,12/05/2023,T&S UK - Public Transport,"Health, Environmental & Urban Humanities (HEUH)",Clarity Travel Ltd t/a Clarity,99956337,35.00,T&S UK - Public Transport
BEIS,UKRI - AHRC,12/05/2023,T&S UK - Public Transport,"Health, Environmental & Urban Humanities (HEUH)",Clarity Travel Ltd t/a Clarity,99956337,40.00,T&S UK - Public Transport
BEIS,UKRI - AHRC,12/05/2023,T&S UK - Public Transport,"Health, Environmental & Urban Humanities (HEUH)",Clarity Travel Ltd t/a Clarity,99956337,0.50,T&S UK - Public Transport
BEIS,UKRI - AHRC,12/05/2023,T&S UK - Public Transport,"Health, Environmental & Urban Humanities (HEUH)",Clarity Travel Ltd t/a Clarity,99956337,85.30,T&S UK - Public Transport
BEIS,UKRI - AHRC,12/05/2023,T&S UK - Public Transport,"Heritage, Culture & Creative Arts (HCCA)",Clarity Travel Ltd t/a Clarity,99956337,0.50,T&S UK - Public Transport
BEIS,UKRI - AHRC,12/05/2023,T&S UK - Public Transport,"Heritage, Culture & Creative Arts (HCCA)",Clarity Travel Ltd t/a Clarity,99956337,79.50,T&S UK - Public Transport
BEIS,UKRI - AHRC,12/05/2023,T&S UK - Public Transport,"Heritage, Culture & Creative Arts (HCCA)",Clarity Travel Ltd t/a Clarity,99956337,0.50,T&S UK - Public Transport
BEIS,UKRI - AHRC,12/05/2023,T&S UK - Public Transport,"Heritage, Culture & Creative Arts (HCCA)",Clarity Travel Ltd t/a Clarity,99956337,33.00,T&S UK - Public Transport
BEIS,UKRI - AHRC,12/05/2023,T&S UK - Public Transport,"Heritage, Culture & Creative Arts (HCCA)",Clarity Travel Ltd t/a Clarity,99956337,1.50,T&S UK - Public Transport
BEIS,UKRI - AHRC,12/05/2023,T&S UK - Public Transport,"Heritage, Culture & Creative Arts (HCCA)",Clarity Travel Ltd t/a Clarity,99956337,115.50,T&S UK - Public Transport
BEIS,UKRI - AHRC,12/05/2023,T&S UK - Public Transport,"Heritage, Culture & Creative Arts (HCCA)",Clarity Travel Ltd t/a Clarity,99956337,126.40,T&S UK - Public Transport
BEIS,UKRI - AHRC,12/05/2023,T&S UK - Public Transport,"Heritage, Culture & Creative Arts (HCCA)",Clarity Travel Ltd t/a Clarity,99956337,15.20,T&S UK - Public Transport
BEIS,UKRI - AHRC,12/05/2023,T&S UK - Public Transport,ISCF Creative Clusters,Clarity Travel Ltd t/a Clarity,99956337,-201.60,T&S UK - Public Transport
BEIS,UKRI - AHRC,12/05/2023,T&S UK - Public Transport,ISCF Creative Clusters,Clarity Travel Ltd t/a Clarity,99956337,-10.20,T&S UK - Public Transport
BEIS,UKRI - AHRC,12/05/2023,T&S UK - Public Transport,Infrastructure Fund - CoSTAR,Clarity Travel Ltd t/a Clarity,99956337,0.50,T&S UK - Public Transport
BEIS,UKRI - AHRC,12/05/2023,T&S UK - Public Transport,Infrastructure Fund - CoSTAR,Clarity Travel Ltd t/a Clarity,99956337,83.80,T&S UK - Public Transport
BEIS,UKRI - AHRC,12/05/2023,T&S UK - Public Transport,Infrastructure Fund - CoSTAR,Clarity Travel Ltd t/a Clarity,99956337,1.00,T&S UK - Public Transport
BEIS,UKRI - AHRC,12/05/2023,T&S UK - Public Transport,Infrastructure Fund - CoSTAR,Clarity Travel Ltd t/a Clarity,99956337,15.20,T&S UK - Public Transport
BEIS,UKRI - AHRC,12/05/2023,T&S UK - Public Transport,Infrastructure Fund - CoSTAR,Clarity Travel Ltd t/a Clarity,99956337,160.20,T&S UK - Public Transport
BEIS,UKRI - AHRC,12/05/2023,T&S UK - Public Transport,Infrastructure Fund - CoSTAR,Clarity Travel Ltd t/a Clarity,99956337,1.00,T&S UK - Public Transport
BEIS,UKRI - AHRC,12/05/2023,T&S UK - Public Transport,Infrastructure Fund - CoSTAR,Clarity Travel Ltd t/a Clarity,99956337,15.20,T&S UK - Public Transport
BEIS,UKRI - AHRC,12/05/2023,T&S UK - Public Transport,Infrastructure Fund - CoSTAR,Clarity Travel Ltd t/a Clarity,99956337,160.20,T&S UK - Public Transport
BEIS,UKRI - AHRC,12/05/2023,T&S UK - Public Transport,Infrastructure Fund - CoSTAR,Clarity Travel Ltd t/a Clarity,99956337,0.50,T&S UK - Public Transport
BEIS,UKRI - AHRC,12/05/2023,T&S UK - Public Transport,Infrastructure Fund - CoSTAR,Clarity Travel Ltd t/a Clarity,99956337,192.80,T&S UK - Public Transport
BEIS,UKRI - AHRC,12/05/2023,T&S UK - Public Transport,Infrastructure Fund - CoSTAR,Clarity Travel Ltd t/a Clarity,99956337,0.50,T&S UK - Public Transport
BEIS,UKRI - AHRC,12/05/2023,T&S UK - Public Transport,Infrastructure Fund - CoSTAR,Clarity Travel Ltd t/a Clarity,99956337,60.75,T&S UK - Public Transport
BEIS,UKRI - AHRC,12/05/2023,T&S UK - Public Transport,Infrastructure Fund - CoSTAR,Clarity Travel Ltd t/a Clarity,99956337,3.00,T&S UK - Public Transport
BEIS,UKRI - AHRC,12/05/2023,T&S UK - Public Transport,Infrastructure Fund - CoSTAR,Clarity Travel Ltd t/a Clarity,99956337,52.40,T&S UK - Public Transport
BEIS,UKRI - AHRC,12/05/2023,T&S UK - Public Transport,Infrastructure Fund - CoSTAR,Clarity Travel Ltd t/a Clarity,99956337,192.80,T&S UK - Public Transport
BEIS,UKRI - AHRC,12/05/2023,T&S UK - Public Transport,Infrastructure Fund - CoSTAR,Clarity Travel Ltd t/a Clarity,99956337,51.50,T&S UK - Public Transport
BEIS,UKRI - AHRC,12/05/2023,T&S UK - Public Transport,Infrastructure Fund - CoSTAR,Clarity Travel Ltd t/a Clarity,99956337,30.40,T&S UK - Public Transport
BEIS,UKRI - AHRC,12/05/2023,T&S UK - Public Transport,Infrastructure Fund - CoSTAR,Clarity Travel Ltd t/a Clarity,99956337,80.50,T&S UK - Public Transport
BEIS,UKRI - AHRC,12/05/2023,T&S UK - Public Transport,Infrastruture Roadmap,Clarity Travel Ltd t/a Clarity,99956337,0.50,T&S UK - Public Transport
BEIS,UKRI - AHRC,12/05/2023,T&S UK - Public Transport,Infrastruture Roadmap,Clarity Travel Ltd t/a Clarity,99956337,39.20,T&S UK - Public Transport
BEIS,UKRI - AHRC,12/05/2023,T&S UK - Public Transport,Infrastruture Roadmap,Clarity Travel Ltd t/a Clarity,99956337,0.50,T&S UK - Public Transport
BEIS,UKRI - AHRC,12/05/2023,T&S UK - Public Transport,Infrastruture Roadmap,Clarity Travel Ltd t/a Clarity,99956337,39.20,T&S UK - Public Transport
BEIS,UKRI - AHRC,12/05/2023,T&S UK - Public Transport,Infrastruture Roadmap,Clarity Travel Ltd t/a Clarity,99956337,0.50,T&S UK - Public Transport
BEIS,UKRI - AHRC,12/05/2023,T&S UK - Public Transport,Infrastruture Roadmap,Clarity Travel Ltd t/a Clarity,99956337,25.00,T&S UK - Public Transport
BEIS,UKRI - AHRC,12/05/2023,T&S UK - Public Transport,Infrastruture Roadmap,Clarity Travel Ltd t/a Clarity,99956337,0.50,T&S UK - Public Transport
BEIS,UKRI - AHRC,12/05/2023,T&S UK - Public Transport,Infrastruture Roadmap,Clarity Travel Ltd t/a Clarity,99956337,39.20,T&S UK - Public Transport
BEIS,UKRI - AHRC,12/05/2023,T&S UK - Public Transport,Infrastruture Roadmap,Clarity Travel Ltd t/a Clarity,99956337,0.50,T&S UK - Public Transport
BEIS,UKRI - AHRC,12/05/2023,T&S UK - Public Transport,Infrastruture Roadmap,Clarity Travel Ltd t/a Clarity,99956337,46.80,T&S UK - Public Transport
BEIS,UKRI - AHRC,12/05/2023,T&S UK - Public Transport,Infrastruture Roadmap,Clarity Travel Ltd t/a Clarity,99956337,1.00,T&S UK - Public Transport
BEIS,UKRI - AHRC,12/05/2023,T&S UK - Public Transport,Infrastruture Roadmap,Clarity Travel Ltd t/a Clarity,99956337,36.20,T&S UK - Public Transport
BEIS,UKRI - AHRC,12/05/2023,T&S UK - Public Transport,Infrastruture Roadmap,Clarity Travel Ltd t/a Clarity,99956337,36.20,T&S UK - Public Transport
BEIS,UKRI - AHRC,12/05/2023,T&S UK - Public Transport,Infrastruture Roadmap,Clarity Travel Ltd t/a Clarity,99956337,1.00,T&S UK - Public Transport
BEIS,UKRI - AHRC,12/05/2023,T&S UK - Public Transport,Infrastruture Roadmap,Clarity Travel Ltd t/a Clarity,99956337,36.20,T&S UK - Public Transport
BEIS,UKRI - AHRC,12/05/2023,T&S UK - Public Transport,Infrastruture Roadmap,Clarity Travel Ltd t/a Clarity,99956337,36.20,T&S UK - Public Transport
BEIS,UKRI - AHRC,12/05/2023,T&S UK - Public Transport,Infrastruture Roadmap,Clarity Travel Ltd t/a Clarity,99956337,0.50,T&S UK - Public Transport
BEIS,UKRI - AHRC,12/05/2023,T&S UK - Public Transport,Infrastruture Roadmap,Clarity Travel Ltd t/a Clarity,99956337,39.20,T&S UK - Public Transport
BEIS,UKRI - AHRC,12/05/2023,T&S UK - Public Transport,Infrastruture Roadmap,Clarity Travel Ltd t/a Clarity,99956337,1.00,T&S UK - Public Transport
BEIS,UKRI - AHRC,12/05/2023,T&S UK - Public Transport,Infrastruture Roadmap,Clarity Travel Ltd t/a Clarity,99956337,83.30,T&S UK - Public Transport
BEIS,UKRI - AHRC,12/05/2023,T&S UK - Public Transport,Infrastruture Roadmap,Clarity Travel Ltd t/a Clarity,99956337,59.40,T&S UK - Public Transport
BEIS,UKRI - AHRC,12/05/2023,T&S UK - Public Transport,Infrastruture Roadmap,Clarity Travel Ltd t/a Clarity,99956337,0.50,T&S UK - Public Transport
BEIS,UKRI - AHRC,12/05/2023,T&S UK - Public Transport,Infrastruture Roadmap,Clarity Travel Ltd t/a Clarity,99956337,39.20,T&S UK - Public Transport
BEIS,UKRI - AHRC,12/05/2023,T&S UK - Public Transport,Infrastruture Roadmap,Clarity Travel Ltd t/a Clarity,99956337,0.50,T&S UK - Public Transport
BEIS,UKRI - AHRC,12/05/2023,T&S UK - Public Transport,Infrastruture Roadmap,Clarity Travel Ltd t/a Clarity,99956337,166.20,T&S UK - Public Transport
BEIS,UKRI - AHRC,12/05/2023,T&S UK - Public Transport,Infrastruture Roadmap,Clarity Travel Ltd t/a Clarity,99956337,-12.60,T&S UK - Public Transport
BEIS,UKRI - AHRC,12/05/2023,T&S UK - Public Transport,International Development and Area Studies,Clarity Travel Ltd t/a Clarity,99956337,0.50,T&S UK - Public Transport
BEIS,UKRI - AHRC,12/05/2023,T&S UK - Public Transport,International Development and Area Studies,Clarity Travel Ltd t/a Clarity,99956337,111.00,T&S UK - Public Transport
BEIS,UKRI - AHRC,12/05/2023,T&S UK - Public Transport,Operations,Clarity Travel Ltd t/a Clarity,99956337,0.50,T&S UK - Public Transport
BEIS,UKRI - AHRC,12/05/2023,T&S UK - Public Transport,Operations,Clarity Travel Ltd t/a Clarity,99956337,225.90,T&S UK - Public Transport
BEIS,UKRI - AHRC,12/05/2023,T&S UK - Public Transport,Public Engagement,Clarity Travel Ltd t/a Clarity,99956337,0.50,T&S UK - Public Transport
BEIS,UKRI - AHRC,12/05/2023,T&S UK - Public Transport,Public Engagement,Clarity Travel Ltd t/a Clarity,99956337,12.80,T&S UK - Public Transport
BEIS,UKRI - AHRC,12/05/2023,T&S UK - Public Transport,Public and Stakeholder Engagement,Clarity Travel Ltd t/a Clarity,99956337,0.50,T&S UK - Public Transport
BEIS,UKRI - AHRC,12/05/2023,T&S UK - Public Transport,Public and Stakeholder Engagement,Clarity Travel Ltd t/a Clarity,99956337,9.40,T&S UK - Public Transport
BEIS,UKRI - AHRC,12/05/2023,T&S UK - Public Transport,SMT,Clarity Travel Ltd t/a Clarity,99956337,0.50,T&S UK - Public Transport
BEIS,UKRI - AHRC,12/05/2023,T&S UK - Public Transport,SMT,Clarity Travel Ltd t/a Clarity,99956337,111.00,T&S UK - Public Transport
BEIS,UKRI - AHRC,12/05/2023,T&S UK - Public Transport,SMT,Clarity Travel Ltd t/a Clarity,99956337,0.50,T&S UK - Public Transport
BEIS,UKRI - AHRC,12/05/2023,T&S UK - Public Transport,SMT,Clarity Travel Ltd t/a Clarity,99956337,53.90,T&S UK - Public Transport
BEIS,UKRI - AHRC,12/05/2023,T&S UK - Public Transport,SMT,Clarity Travel Ltd t/a Clarity,99956337,0.50,T&S UK - Public Transport
BEIS,UKRI - AHRC,12/05/2023,T&S UK - Public Transport,SMT,Clarity Travel Ltd t/a Clarity,99956337,27.10,T&S UK - Public Transport
BEIS,UKRI - AHRC,12/05/2023,T&S UK - Public Transport,SMT,Clarity Travel Ltd t/a Clarity,99956337,0.50,T&S UK - Public Transport
BEIS,UKRI - AHRC,12/05/2023,T&S UK - Public Transport,SMT,Clarity Travel Ltd t/a Clarity,99956337,106.00,T&S UK - Public Transport
BEIS,UKRI - AHRC,12/05/2023,T&S UK - Public Transport,SMT,Clarity Travel Ltd t/a Clarity,99956337,0.50,T&S UK - Public Transport
BEIS,UKRI - AHRC,12/05/2023,T&S UK - Public Transport,SMT,Clarity Travel Ltd t/a Clarity,99956337,47.00,T&S UK - Public Transport
BEIS,UKRI - AHRC,12/05/2023,T&S UK - Public Transport,SMT,Clarity Travel Ltd t/a Clarity,99956337,1.50,T&S UK - Public Transport
BEIS,UKRI - AHRC,12/05/2023,T&S UK - Public Transport,SMT,Clarity Travel Ltd t/a Clarity,99956337,115.50,T&S UK - Public Transport
BEIS,UKRI - AHRC,12/05/2023,T&S UK - Public Transport,SMT,Clarity Travel Ltd t/a Clarity,99956337,115.50,T&S UK - Public Transport
BEIS,UKRI - AHRC,12/05/2023,T&S UK - Public Transport,SMT,Clarity Travel Ltd t/a Clarity,99956337,15.20,T&S UK - Public Transport
BEIS,UKRI - AHRC,12/05/2023,T&S UK - Public Transport,SMT,Clarity Travel Ltd t/a Clarity,99956337,0.50,T&S UK - Public Transport
BEIS,UKRI - AHRC,12/05/2023,T&S UK - Public Transport,SMT,Clarity Travel Ltd t/a Clarity,99956337,103.90,T&S UK - Public Transport
BEIS,UKRI - AHRC,12/05/2023,T&S UK - Public Transport,SMT,Clarity Travel Ltd t/a Clarity,99956337,0.50,T&S UK - Public Transport
BEIS,UKRI - AHRC,12/05/2023,T&S UK - Public Transport,SMT,Clarity Travel Ltd t/a Clarity,99956337,27.10,T&S UK - Public Transport
BEIS,UKRI - AHRC,12/05/2023,T&S UK - Public Transport,SMT,Clarity Travel Ltd t/a Clarity,99956337,1.50,T&S UK - Public Transport
BEIS,UKRI - AHRC,12/05/2023,T&S UK - Public Transport,SMT,Clarity Travel Ltd t/a Clarity,99956337,19.20,T&S UK - Public Transport
BEIS,UKRI - AHRC,12/05/2023,T&S UK - Public Transport,SMT,Clarity Travel Ltd t/a Clarity,99956337,46.00,T&S UK - Public Transport
BEIS,UKRI - AHRC,12/05/2023,T&S UK - Public Transport,SMT,Clarity Travel Ltd t/a Clarity,99956337,31.50,T&S UK - Public Transport
BEIS,UKRI - AHRC,12/05/2023,T&S UK - Public Transport,SMT,Clarity Travel Ltd t/a Clarity,99956337,0.50,T&S UK - Public Transport
BEIS,UKRI - AHRC,12/05/2023,T&S UK - Public Transport,SMT,Clarity Travel Ltd t/a Clarity,99956337,31.80,T&S UK - Public Transport
BEIS,UKRI - AHRC,12/05/2023,T&S UK - Public Transport,SMT,Clarity Travel Ltd t/a Clarity,99956337,0.50,T&S UK - Public Transport
BEIS,UKRI - AHRC,12/05/2023,T&S UK - Public Transport,SMT,Clarity Travel Ltd t/a Clarity,99956337,16.80,T&S UK - Public Transport
BEIS,UKRI - AHRC,12/05/2023,T&S UK - Public Transport,SMT,Clarity Travel Ltd t/a Clarity,99956337,1.50,T&S UK - Public Transport
BEIS,UKRI - AHRC,12/05/2023,T&S UK - Public Transport,SMT,Clarity Travel Ltd t/a Clarity,99956337,57.00,T&S UK - Public Transport
BEIS,UKRI - AHRC,12/05/2023,T&S UK - Public Transport,SMT,Clarity Travel Ltd t/a Clarity,99956337,115.50,T&S UK - Public Transport
BEIS,UKRI - AHRC,12/05/2023,T&S UK - Public Transport,SMT,Clarity Travel Ltd t/a Clarity,99956337,15.20,T&S UK - Public Transport
BEIS,UKRI - AHRC,12/05/2023,T&S UK - Public Transport,SMT,Clarity Travel Ltd t/a Clarity,99956337,1.50,T&S UK - Public Transport
BEIS,UKRI - AHRC,12/05/2023,T&S UK - Public Transport,SMT,Clarity Travel Ltd t/a Clarity,99956337,115.50,T&S UK - Public Transport
BEIS,UKRI - AHRC,12/05/2023,T&S UK - Public Transport,SMT,Clarity Travel Ltd t/a Clarity,99956337,40.00,T&S UK - Public Transport
BEIS,UKRI - AHRC,12/05/2023,T&S UK - Public Transport,SMT,Clarity Travel Ltd t/a Clarity,99956337,15.20,T&S UK - Public Transport
BEIS,UKRI - AHRC,12/05/2023,T&S UK - Public Transport,SMT,Clarity Travel Ltd t/a Clarity,99956337,0.50,T&S UK - Public Transport
BEIS,UKRI - AHRC,12/05/2023,T&S UK - Public Transport,SMT,Clarity Travel Ltd t/a Clarity,99956337,17.20,T&S UK - Public Transport
BEIS,UKRI - AHRC,12/05/2023,T&S UK - Public Transport,Strategy and Evidence,Clarity Travel Ltd t/a Clarity,99956337,0.50,T&S UK - Public Transport
BEIS,UKRI - AHRC,12/05/2023,T&S UK - Public Transport,Strategy and Evidence,Clarity Travel Ltd t/a Clarity,99956337,160.20,T&S UK - Public Transport
BEIS,UKRI - AHRC,12/05/2023,T&S UK - Public Transport,Strategy and Evidence,Clarity Travel Ltd t/a Clarity,99956337,1.00,T&S UK - Public Transport
BEIS,UKRI - AHRC,12/05/2023,T&S UK - Public Transport,Strategy and Evidence,Clarity Travel Ltd t/a Clarity,99956337,77.30,T&S UK - Public Transport
BEIS,UKRI - AHRC,12/05/2023,T&S UK - Public Transport,Strategy and Evidence,Clarity Travel Ltd t/a Clarity,99956337,59.40,T&S UK - Public Transport
BEIS,UKRI - AHRC,12/05/2023,T&S UK - Public Transport,Strategy and Evidence,Clarity Travel Ltd t/a Clarity,99956337,1.00,T&S UK - Public Transport
BEIS,UKRI - AHRC,12/05/2023,T&S UK - Public Transport,Strategy and Evidence,Clarity Travel Ltd t/a Clarity,99956337,38.50,T&S UK - Public Transport
BEIS,UKRI - AHRC,12/05/2023,T&S UK - Public Transport,Strategy and Evidence,Clarity Travel Ltd t/a Clarity,99956337,38.50,T&S UK - Public Transport
BEIS,UKRI - AHRC,12/05/2023,Fees (Including College Members),Operations,Unspecified,99956338,115.00,Fees (Including College Members)
BEIS,UKRI - AHRC,12/05/2023,Conferences & Seminars,SMT,Unspecified,99956838,35.00,Conferences & Seminars
BEIS,UKRI - AHRC,15/05/2023,Voluntary Deductions,Balance Sheet,Swindon Office Sports and Social Club,99955527,28.00,Voluntary Deductions
BEIS,UKRI - AHRC,15/05/2023,Union Deductions,Balance Sheet,PCS Union,99955528,79.84,Union Deductions
BEIS,UKRI - AHRC,15/05/2023,Unspecified,Balance Sheet,Unspecified,99955529,8035.92,Ees Pension Deductions - JSS
BEIS,UKRI - AHRC,15/05/2023,Unspecified,Balance Sheet,Unspecified,99955530,34353.70,Ers Pension Deductions - JSS
BEIS,UKRI - AHRC,15/05/2023,Unspecified,Balance Sheet,Scottish Widows,99955531,193.37,Partnership Pension Deductions
BEIS,UKRI - AHRC,15/05/2023,Unspecified,Balance Sheet,Cabinet Office RM Shared Services,99955532,12466.31,Ees Pension Deductions - MyCSP
BEIS,UKRI - AHRC,15/05/2023,Unspecified,Balance Sheet,Cabinet Office RM Shared Services,99955533,59253.91,Ers Pension Deductions - MyCSP
BEIS,UKRI - AHRC,15/05/2023,Unspecified,Balance Sheet,Unspecified,99955534,561.77,Ees Pension Deductions - MRC
BEIS,UKRI - AHRC,15/05/2023,Unspecified,Balance Sheet,Unspecified,99955535,1382.81,Ers Pension Deductions - MRC
BEIS,UKRI - AHRC,15/05/2023,Nursery Deductions,Balance Sheet,UKRI - Engineering & Physical Sciences Research Council,99955536,986.00,Nursery Deductions
BEIS,UKRI - AHRC,15/05/2023,Voluntary Deductions,Balance Sheet,Civil Service Benevolent Fund,99955537,5.00,Voluntary Deductions
BEIS,UKRI - AHRC,16/05/2023,Other Programme Costs,World Class Labs (WCL),Nottingham Trent University,99953707,813874.00,Other Programme Costs
BEIS,UKRI - AHRC,16/05/2023,Other Programme Costs,Design Council,Design Council,99958062,440000.00,Other Programme Costs
BEIS,UKRI - AHRC,16/05/2023,T&S UK - Other Charges,Strategy and Evidence,Unspecified,99958136,29.99,T&S UK - Other Charges
BEIS,UKRI - AHRC,16/05/2023,T&S UK - Other Charges,Strategy and Evidence,Unspecified,99958136,3.60,T&S UK - Other Charges
BEIS,UKRI - AHRC,16/05/2023,T&S UK - Subsistence,Strategy and Evidence,Unspecified,99958136,14.86,T&S UK - Subsistence
BEIS,UKRI - AHRC,16/05/2023,T&S UK - Subsistence,Strategy and Evidence,Unspecified,99958136,14.65,T&S UK - Subsistence
BEIS,UKRI - AHRC,17/05/2023,Fees (Including College Members),SPF_ Towards a National Collection,Unspecified,99958300,315.00,Fees (Including College Members)
BEIS,UKRI - AHRC,17/05/2023,Fees (Including College Members),Operations,Unspecified,99958531,170.00,Fees (Including College Members)
BEIS,UKRI - AHRC,17/05/2023,T&S Overseas - Accommodation,International Partnership and Engagement,Corporate Travel Management (North) Ltd,99958543,2.00,T&S Overseas - Accommodation
BEIS,UKRI - AHRC,17/05/2023,T&S Overseas - Accommodation,International Partnership and Engagement,Corporate Travel Management (North) Ltd,99958543,247.78,T&S Overseas - Accommodation
BEIS,UKRI - AHRC,17/05/2023,T&S Overseas - Accommodation,International Partnership and Engagement,Corporate Travel Management (North) Ltd,99958543,0.40,T&S Overseas - Accommodation
BEIS,UKRI - AHRC,17/05/2023,T&S Overseas - Other Charges,International Partnership and Engagement,Corporate Travel Management (North) Ltd,99958543,2.00,T&S Overseas - Other Charges
BEIS,UKRI - AHRC,17/05/2023,T&S Overseas - Other Charges,International Partnership and Engagement,Corporate Travel Management (North) Ltd,99958543,256.88,T&S Overseas - Other Charges
BEIS,UKRI - AHRC,17/05/2023,T&S Overseas - Other Charges,International Partnership and Engagement,Corporate Travel Management (North) Ltd,99958543,0.40,T&S Overseas - Other Charges
BEIS,UKRI - AHRC,17/05/2023,Research Grant Expenditure,Infrastructure Fund - CoSTAR,Alexander Mann Solutions Ltd,99958596,2772.24,Research Grant Expenditure
BEIS,UKRI - AHRC,17/05/2023,T&S UK - Subsistence,SMT,Unspecified,99958742,29.35,T&S UK - Subsistence
BEIS,UKRI - AHRC,17/05/2023,T&S UK - Subsistence,SMT,Unspecified,99958742,8.69,T&S UK - Subsistence
BEIS,UKRI - AHRC,17/05/2023,T&S UK - Subsistence,SMT,Unspecified,99958743,16.40,T&S UK - Subsistence
BEIS,UKRI - AHRC,18/05/2023,Staff Training,SMT,Social Research Association,99959192,270.00,Staff Training
BEIS,UKRI - AHRC,18/05/2023,T&S UK - Public Transport,International Partnership and Engagement,Unspecified,99959251,3.51,T&S UK - Public Transport
BEIS,UKRI - AHRC,18/05/2023,T&S UK - Subsistence,International Partnership and Engagement,Unspecified,99959251,11.95,T&S UK - Subsistence
BEIS,UKRI - AHRC,18/05/2023,T&S UK - Subsistence,International Partnership and Engagement,Unspecified,99959251,15.00,T&S UK - Subsistence
BEIS,UKRI - AHRC,18/05/2023,T&S UK - Subsistence,International Partnership and Engagement,Unspecified,99959251,38.50,T&S UK - Subsistence
BEIS,UKRI - AHRC,19/05/2023,Meetings & Catering,Infrastructure Fund - CoSTAR,Compass Contract Services (UK) Ltd T/A Eurest Services,99960400,182.40,Meetings & Catering
BEIS,UKRI - AHRC,19/05/2023,T&S UK - Mileage,Infrastruture Roadmap,Unspecified,99960482,48.15,T&S UK - Mileage
BEIS,UKRI - AHRC,22/05/2023,Non-staff travel and subsistance,"Health, Environmental & Urban Humanities (HEUH)",Unspecified,99960638,84.00,Non-staff travel and subsistance
BEIS,UKRI - AHRC,22/05/2023,Fees (Including College Members),Executive Office,Unspecified,99960639,342.50,Fees (Including College Members)
BEIS,UKRI - AHRC,22/05/2023,Fees (Including College Members),Executive Office,Unspecified,99960640,342.50,Fees (Including College Members)
BEIS,UKRI - AHRC,22/05/2023,T&S UK - Public Transport,Strategy and Evidence,Unspecified,99960816,19.92,T&S UK - Public Transport
BEIS,UKRI - AHRC,22/05/2023,T&S UK - Subsistence,Strategy and Evidence,Unspecified,99960816,9.98,T&S UK - Subsistence
BEIS,UKRI - AHRC,22/05/2023,T&S UK - Subsistence,Strategy and Evidence,Unspecified,99960816,7.40,T&S UK - Subsistence
BEIS,UKRI - AHRC,23/05/2023,Corporate Events,Mobilising Cultural and Natural Assets,Calder Conference Ltd,99961767,5587.20,Corporate Events
BEIS,UKRI - AHRC,23/05/2023,Research Grant Expenditure,Infrastructure Fund - CoSTAR,Alexander Mann Solutions Ltd,99963001,2772.24,Research Grant Expenditure
BEIS,UKRI - AHRC,24/05/2023,Non-staff travel and subsistance,Infrastructure Fund - CoSTAR,Unspecified,99963443,87.29,Non-staff travel and subsistance
BEIS,UKRI - AHRC,24/05/2023,Fees (Including College Members),Infrastructure Fund - CoSTAR,Unspecified,99963444,680.00,Fees (Including College Members)
BEIS,UKRI - AHRC,24/05/2023,Non-staff travel and subsistance,Infrastructure Fund - CoSTAR,Unspecified,99963445,180.84,Non-staff travel and subsistance
BEIS,UKRI - AHRC,24/05/2023,Fees (Including College Members),Infrastructure Fund - CoSTAR,Unspecified,99963446,1000.00,Fees (Including College Members)
BEIS,UKRI - AHRC,24/05/2023,Non-staff travel and subsistance,Infrastructure Fund - CoSTAR,Unspecified,99963447,259.83,Non-staff travel and subsistance
BEIS,UKRI - AHRC,24/05/2023,Fees (Including College Members),Infrastructure Fund - CoSTAR,Unspecified,99963448,1000.00,Fees (Including College Members)
BEIS,UKRI - AHRC,24/05/2023,Non-staff travel and subsistance,Infrastructure Fund - CoSTAR,Unspecified,99963449,149.37,Non-staff travel and subsistance
BEIS,UKRI - AHRC,24/05/2023,Fees (Including College Members),Infrastructure Fund - CoSTAR,Unspecified,99963450,340.00,Fees (Including College Members)
BEIS,UKRI - AHRC,24/05/2023,Non-staff travel and subsistance,Infrastructure Fund - CoSTAR,Unspecified,99963451,25.00,Non-staff travel and subsistance
BEIS,UKRI - AHRC,24/05/2023,Fees (Including College Members),Infrastructure Fund - CoSTAR,Unspecified,99963452,340.00,Fees (Including College Members)
BEIS,UKRI - AHRC,25/05/2023,Health & Safety (inc. Medicals & Opticians),Skills Strategy,Unspecified,99957337,35.00,Health & Safety (inc. Medicals & Opticians)
BEIS,UKRI - AHRC,25/05/2023,Fees (Including College Members),Operations,Unspecified,99963818,170.00,Fees (Including College Members)
BEIS,UKRI - AHRC,25/05/2023,Fees (Including College Members),Operations,Unspecified,99963819,230.00,Fees (Including College Members)
BEIS,UKRI - AHRC,25/05/2023,Fees (Including College Members),Operations,Unspecified,99963820,170.00,Fees (Including College Members)
BEIS,UKRI - AHRC,25/05/2023,Fees (Including College Members),Operations,Unspecified,99963821,170.00,Fees (Including College Members)
BEIS,UKRI - AHRC,25/05/2023,Fees (Including College Members),Operations,Unspecified,99963822,170.00,Fees (Including College Members)
BEIS,UKRI - AHRC,25/05/2023,T&S UK - Mileage,AI&Design,Unspecified,99964187,166.05,T&S UK - Mileage
BEIS,UKRI - AHRC,25/05/2023,T&S UK - Public Transport,"Health, Environmental & Urban Humanities (HEUH)",Unspecified,99964188,21.83,T&S UK - Public Transport
BEIS,UKRI - AHRC,25/05/2023,T&S UK - Public Transport,"Health, Environmental & Urban Humanities (HEUH)",Unspecified,99964188,8.10,T&S UK - Public Transport
BEIS,UKRI - AHRC,25/05/2023,T&S UK - Subsistence,"Health, Environmental & Urban Humanities (HEUH)",Unspecified,99964188,25.00,T&S UK - Subsistence
BEIS,UKRI - AHRC,25/05/2023,T&S UK - Subsistence,"Health, Environmental & Urban Humanities (HEUH)",Unspecified,99964188,12.57,T&S UK - Subsistence
BEIS,UKRI - AHRC,25/05/2023,T&S UK - Public Transport,Infrastructure Fund - CoSTAR,Unspecified,99964189,20.00,T&S UK - Public Transport
BEIS,UKRI - AHRC,25/05/2023,T&S UK - Public Transport,Infrastructure Fund - CoSTAR,Unspecified,99964189,7.35,T&S UK - Public Transport
BEIS,UKRI - AHRC,25/05/2023,T&S UK - Subsistence,Infrastructure Fund - CoSTAR,Unspecified,99964189,9.95,T&S UK - Subsistence
BEIS,UKRI - AHRC,25/05/2023,T&S UK - Subsistence,Infrastructure Fund - CoSTAR,Unspecified,99964189,25.00,T&S UK - Subsistence
BEIS,UKRI - AHRC,25/05/2023,T&S UK - Subsistence,Infrastructure Fund - CoSTAR,Unspecified,99964189,9.95,T&S UK - Subsistence
BEIS,UKRI - AHRC,25/05/2023,T&S UK - Mileage,SMT,Unspecified,99964190,162.90,T&S UK - Mileage
BEIS,UKRI - AHRC,30/05/2023,Fees (Including College Members),Operations,Unspecified,99964628,170.00,Fees (Including College Members)
BEIS,UKRI - AHRC,30/05/2023,Fees (Including College Members),Infrastructure Fund - CoSTAR,Unspecified,99964629,500.00,Fees (Including College Members)
BEIS,UKRI - AHRC,30/05/2023,Fees (Including College Members),Operations,Unspecified,99964630,170.00,Fees (Including College Members)
BEIS,UKRI - AHRC,30/05/2023,Staff Training,SMT,The Open University,99964643,2750.00,Staff Training
BEIS,UKRI - AHRC,30/05/2023,Meetings & Catering,Infrastructure Fund - CoSTAR,Compass Contract Services (UK) Ltd T/A Eurest Services,99964836,199.80,Meetings & Catering
BEIS,UKRI - AHRC,30/05/2023,Non-staff travel and subsistance,AHRC - Creative Industries,Unspecified,99965573,534.60,Non-staff travel and subsistance
BEIS,UKRI - AHRC,30/05/2023,T&S UK - Public Transport,AI&Design,Unspecified,99965590,5.40,T&S UK - Public Transport
BEIS,UKRI - AHRC,30/05/2023,T&S UK - Subsistence,AI&Design,Unspecified,99965590,13.54,T&S UK - Subsistence
BEIS,UKRI - AHRC,30/05/2023,T&S UK - Public Transport,SMT,Unspecified,99965591,166.80,T&S UK - Public Transport
BEIS,UKRI - AHRC,30/05/2023,T&S UK - Subsistence,SMT,Unspecified,99965591,12.05,T&S UK - Subsistence
BEIS,UKRI - AHRC,30/05/2023,T&S UK - Subsistence,SMT,Unspecified,99965591,17.55,T&S UK - Subsistence
BEIS,UKRI - AHRC,31/05/2023,Fees (Including College Members),Infrastructure Fund - CoSTAR,Unspecified,99965707,340.00,Fees (Including College Members)
BEIS,UKRI - AHRC,31/05/2023,Non-staff travel and subsistance,Infrastructure Fund - CoSTAR,Unspecified,99965768,261.40,Non-staff travel and subsistance
BEIS,UKRI - AHRC,31/05/2023,Fees (Including College Members),Infrastructure Fund - CoSTAR,Unspecified,99965769,500.00,Fees (Including College Members)
BEIS,UKRI - AHRC,31/05/2023,Unspecified,Creative Economy,Unspecified,99965970,170.00,Council & Committee Honoraria
BEIS,UKRI - AHRC,31/05/2023,Research Grant Expenditure,Infrastructure Fund - CoSTAR,Alexander Mann Solutions Ltd,99966174,3465.30,Research Grant Expenditure
BEIS,UKRI - BBSRC,02/05/2023,Other Staff Benefits,PDG - Director,UKRI - Engineering & Physical Sciences Research Council,99950142,70.00,Other Staff Benefits
BEIS,UKRI - BBSRC,03/05/2023,Unspecified,CE - IRU,Unspecified,99949576,14979.62,Legal & Professional Services
BEIS,UKRI - BBSRC,03/05/2023,Fees (Including College Members),Science Group � Admin Function,Unspecified,99950510,340.00,Fees (Including College Members)
BEIS,UKRI - BBSRC,03/05/2023,Research Institutes - Capital Grants: Equipment,World Class Labs,The Pirbright Institute,99950535,42166.63,Research Institutes - Capital Grants: Equipment
BEIS,UKRI - BBSRC,03/05/2023,Non-staff travel and subsistance,CE - CPS,Unspecified,99951178,260.07,Non-staff travel and subsistance
BEIS,UKRI - BBSRC,03/05/2023,Non-staff travel and subsistance,Science Group � Admin Function,Unspecified,99951179,178.57,Non-staff travel and subsistance
BEIS,UKRI - BBSRC,03/05/2023,Research Institutes - Capital Grants: Minor Works,Rothamsted Research,Rothamsted Research Ltd,99951231,21594.00,Research Institutes - Capital Grants: Minor Works
BEIS,UKRI - BBSRC,03/05/2023,Research Institutes - Capital Grants: Minor Works,Mid-Range Equipment,Rothamsted Research Ltd,99951251,30099.17,Research Institutes - Capital Grants: Minor Works
BEIS,UKRI - BBSRC,03/05/2023,Research Institutes - Capital Grants: Minor Works,World Class Labs,Rothamsted Research Ltd,99951256,2389.92,Research Institutes - Capital Grants: Minor Works
BEIS,UKRI - BBSRC,03/05/2023,T&S UK - Public Transport,CE - IRU,Unspecified,99952099,9.00,T&S UK - Public Transport
BEIS,UKRI - BBSRC,03/05/2023,T&S UK - Parking Tolls Congestion Charges,Science Group,Unspecified,99952100,7.20,T&S UK - Parking Tolls Congestion Charges
BEIS,UKRI - BBSRC,03/05/2023,T&S UK - Public Transport,Science Group,Unspecified,99952100,14.35,T&S UK - Public Transport
BEIS,UKRI - BBSRC,03/05/2023,T&S UK - Subsistence,Science Group,Unspecified,99952100,40.00,T&S UK - Subsistence
BEIS,UKRI - BBSRC,03/05/2023,T&S UK - Subsistence,Science Group,Unspecified,99952100,24.38,T&S UK - Subsistence
BEIS,UKRI - BBSRC,04/05/2023,Research Institutes - Capital Grants: Minor Works,World Class Labs,Babraham Institute,99945925,1283.50,Research Institutes - Capital Grants: Minor Works
BEIS,UKRI - BBSRC,04/05/2023,Research Institutes - Capital Grants: Minor Works,World Class Labs,Babraham Institute,99945927,6234.10,Research Institutes - Capital Grants: Minor Works
BEIS,UKRI - BBSRC,04/05/2023,Unspecified,FG - Estates,Womble Bond Dickinson LLP,99952119,264.60,Legal & Professional Services
BEIS,UKRI - BBSRC,04/05/2023,T&S UK - Vehicle Hire,CIMG - Director,Enterprise Rent-A-Car UK Ltd,99952374,51.16,T&S UK - Vehicle Hire
BEIS,UKRI - BBSRC,04/05/2023,T&S UK - Vehicle Hire,CIMG - Director,Enterprise Rent-A-Car UK Ltd,99952374,10.23,T&S UK - Vehicle Hire
BEIS,UKRI - BBSRC,04/05/2023,T&S UK - Vehicle Hire,Innovation and Skills Group,Enterprise Rent-A-Car UK Ltd,99952374,73.35,T&S UK - Vehicle Hire
BEIS,UKRI - BBSRC,04/05/2023,T&S UK - Vehicle Hire,Innovation and Skills Group,Enterprise Rent-A-Car UK Ltd,99952374,14.67,T&S UK - Vehicle Hire
BEIS,UKRI - BBSRC,04/05/2023,T&S UK - Public Transport,Innovation and Skills Group,Unspecified,99952418,242.00,T&S UK - Public Transport
BEIS,UKRI - BBSRC,04/05/2023,T&S UK - Mileage,Science Group � Admin Function,Unspecified,99952419,119.16,T&S UK - Mileage
BEIS,UKRI - BBSRC,04/05/2023,T&S UK - Other Charges,Science Group � Admin Function,Unspecified,99952419,35.15,T&S UK - Other Charges
BEIS,UKRI - BBSRC,04/05/2023,T&S UK - Public Transport,Science Group � Admin Function,Unspecified,99952419,2.00,T&S UK - Public Transport
BEIS,UKRI - BBSRC,04/05/2023,T&S UK - Public Transport,Science Group � Admin Function,Unspecified,99952419,8.00,T&S UK - Public Transport
BEIS,UKRI - BBSRC,04/05/2023,T&S UK - Public Transport,Science Group � Admin Function,Unspecified,99952419,12.95,T&S UK - Public Transport
BEIS,UKRI - BBSRC,04/05/2023,T&S UK - Subsistence,Science Group � Admin Function,Unspecified,99952419,46.38,T&S UK - Subsistence
BEIS,UKRI - BBSRC,04/05/2023,T&S UK - Subsistence,Science Group � Admin Function,Unspecified,99952419,20.34,T&S UK - Subsistence
BEIS,UKRI - BBSRC,04/05/2023,T&S UK - Subsistence,Science Group � Admin Function,Unspecified,99952419,42.82,T&S UK - Subsistence
BEIS,UKRI - BBSRC,04/05/2023,Unspecified,Science Group � Admin Function,Unspecified,99952512,-170.00,Council & Committee Honoraria
BEIS,UKRI - BBSRC,05/05/2023,Research Grant Expenditure,Innovation and Skills Group,The Royal Society of Edinburgh,99952964,445.06,Research Grant Expenditure
BEIS,UKRI - BBSRC,05/05/2023,T&S UK - Vehicle Hire,FG - Estates,Enterprise Rent-A-Car UK Ltd,99953001,69.16,T&S UK - Vehicle Hire
BEIS,UKRI - BBSRC,05/05/2023,T&S UK - Vehicle Hire,FG - Estates,Enterprise Rent-A-Car UK Ltd,99953001,13.83,T&S UK - Vehicle Hire
BEIS,UKRI - BBSRC,05/05/2023,Staff Training,PDG - Director,Praxis Courses Ltd T/A PraxisAuril,99953020,625.00,Staff Training
BEIS,UKRI - BBSRC,05/05/2023,Unspecified,Science Group � Admin Function,Unspecified,99953960,-340.00,Council & Committee Honoraria
BEIS,UKRI - BBSRC,09/05/2023,Research Institutes - Capital Grants: Minor Works,World Class Labs,The Pirbright Institute,99954150,3890.25,Research Institutes - Capital Grants: Minor Works
BEIS,UKRI - BBSRC,09/05/2023,T&S UK - Public Transport,FG - Estates,Unspecified,99954199,204.40,T&S UK - Public Transport
BEIS,UKRI - BBSRC,10/05/2023,Research Institutes - Capital Grants: Minor Works,World Class Labs,The Pirbright Institute,99954153,44709.90,Research Institutes - Capital Grants: Minor Works
BEIS,UKRI - BBSRC,10/05/2023,Unspecified,FG - Estates,Powis Hughes Ltd,99954645,480.00,Legal & Professional Services
BEIS,UKRI - BBSRC,10/05/2023,T&S UK - Vehicle Hire,Innovation and Skills Group,Unspecified,99954852,25.88,T&S UK - Vehicle Hire
BEIS,UKRI - BBSRC,11/05/2023,Unspecified,FG - Estates,Powis Hughes Ltd,99955198,6489.77,Legal & Professional Services
BEIS,UKRI - BBSRC,11/05/2023,T&S Overseas - Flights,OpEx FIC2 EEID2,University of Edinburgh,99955956,67.81,T&S Overseas - Flights
BEIS,UKRI - BBSRC,11/05/2023,Unspecified,Science Group � Admin Function,Unspecified,99956238,340.00,Council & Committee Honoraria
BEIS,UKRI - BBSRC,11/05/2023,Unspecified,Science Group � Admin Function,Unspecified,99956239,340.00,Council & Committee Honoraria
BEIS,UKRI - BBSRC,11/05/2023,Unspecified,Science Group � Admin Function,Unspecified,99956240,340.00,Council & Committee Honoraria
BEIS,UKRI - BBSRC,11/05/2023,Unspecified,Science Group � Admin Function,Unspecified,99956241,340.00,Council & Committee Honoraria
BEIS,UKRI - BBSRC,11/05/2023,Unspecified,Science Group � Admin Function,Unspecified,99956242,340.00,Council & Committee Honoraria
BEIS,UKRI - BBSRC,11/05/2023,Unspecified,Science Group � Admin Function,Unspecified,99956243,340.00,Council & Committee Honoraria
BEIS,UKRI - BBSRC,11/05/2023,Unspecified,Science Group � Admin Function,Unspecified,99956244,460.00,Council & Committee Honoraria
BEIS,UKRI - BBSRC,11/05/2023,Unspecified,Science Group � Admin Function,Unspecified,99956245,340.00,Council & Committee Honoraria
BEIS,UKRI - BBSRC,11/05/2023,Unspecified,Science Group � Admin Function,Unspecified,99956246,340.00,Council & Committee Honoraria
BEIS,UKRI - BBSRC,11/05/2023,Unspecified,Science Group � Admin Function,Unspecified,99956247,340.00,Council & Committee Honoraria
BEIS,UKRI - BBSRC,11/05/2023,Unspecified,Science Group � Admin Function,Unspecified,99956248,340.00,Council & Committee Honoraria
BEIS,UKRI - BBSRC,12/05/2023,Unspecified,Innovation and Skills Group,Cambridge Network Ltd,99949896,7650.50,Legal & Professional Services
BEIS,UKRI - BBSRC,12/05/2023,Conferences & Seminars,Science Group,Westminster Forum Projects Ltd,99950519,312.00,Conferences & Seminars
BEIS,UKRI - BBSRC,12/05/2023,Unspecified,Balance Sheet,HM Revenue & Customs,99951234,76442.93,PAYE Payable Salaries
BEIS,UKRI - BBSRC,12/05/2023,Unspecified,Balance Sheet,HM Revenue & Customs,99951235,4982.00,Student Loans
BEIS,UKRI - BBSRC,12/05/2023,Unspecified,Balance Sheet,HM Revenue & Customs,99951236,87025.49,NI Payable Salaries
BEIS,UKRI - BBSRC,12/05/2023,Unspecified,FG - Accounts & Business Planning,HM Revenue & Customs,99951237,2562.00,Apprenticeship Levy
BEIS,UKRI - BBSRC,12/05/2023,Unspecified,Balance Sheet,HM Revenue & Customs,99951876,2198.10,PAYE Payable Salaries
BEIS,UKRI - BBSRC,12/05/2023,Unspecified,FG - Accounts & Business Planning,HM Revenue & Customs,99951877,31.00,Apprenticeship Levy
BEIS,UKRI - BBSRC,12/05/2023,Research Institutes - Capital Grants: Minor Works,World Class Labs,Rothamsted Research Ltd,99955538,10729.20,Research Institutes - Capital Grants: Minor Works
BEIS,UKRI - BBSRC,12/05/2023,T&S Overseas - Accommodation,CE - IRU,Clarity Travel Ltd t/a Clarity,99955647,796.12,T&S Overseas - Accommodation
BEIS,UKRI - BBSRC,12/05/2023,T&S Overseas - Accommodation,Science Group,Clarity Travel Ltd t/a Clarity,99955647,1196.40,T&S Overseas - Accommodation
BEIS,UKRI - BBSRC,12/05/2023,T&S Overseas - Accommodation,Science Group,Clarity Travel Ltd t/a Clarity,99955647,796.12,T&S Overseas - Accommodation
BEIS,UKRI - BBSRC,12/05/2023,T&S Overseas - Flights,Science Group � Admin Function,Clarity Travel Ltd t/a Clarity,99955647,3.50,T&S Overseas - Flights
BEIS,UKRI - BBSRC,12/05/2023,T&S Overseas - Flights,Science Group � Admin Function,Clarity Travel Ltd t/a Clarity,99955647,2910.61,T&S Overseas - Flights
BEIS,UKRI - BBSRC,12/05/2023,T&S Overseas - Flights,Science Group � Admin Function,Clarity Travel Ltd t/a Clarity,99955647,3.50,T&S Overseas - Flights
BEIS,UKRI - BBSRC,12/05/2023,T&S Overseas - Flights,Science Group � Admin Function,Clarity Travel Ltd t/a Clarity,99955647,223.30,T&S Overseas - Flights
BEIS,UKRI - BBSRC,12/05/2023,T&S UK - Accommodation,CE - Chief Executive,Clarity Travel Ltd t/a Clarity,99955647,139.17,T&S UK - Accommodation
BEIS,UKRI - BBSRC,12/05/2023,T&S UK - Accommodation,CE - Chief Executive,Clarity Travel Ltd t/a Clarity,99955647,27.83,T&S UK - Accommodation
BEIS,UKRI - BBSRC,12/05/2023,T&S UK - Accommodation,FG - Estates,Clarity Travel Ltd t/a Clarity,99955647,108.00,T&S UK - Accommodation
BEIS,UKRI - BBSRC,12/05/2023,T&S UK - Accommodation,FG - Estates,Clarity Travel Ltd t/a Clarity,99955647,21.60,T&S UK - Accommodation
BEIS,UKRI - BBSRC,12/05/2023,T&S UK - Accommodation,Innovation and Skills Group,Clarity Travel Ltd t/a Clarity,99955647,81.75,T&S UK - Accommodation
BEIS,UKRI - BBSRC,12/05/2023,T&S UK - Accommodation,Innovation and Skills Group,Clarity Travel Ltd t/a Clarity,99955647,16.35,T&S UK - Accommodation
BEIS,UKRI - BBSRC,12/05/2023,T&S UK - Accommodation,Science Group,Clarity Travel Ltd t/a Clarity,99955647,209.74,T&S UK - Accommodation
BEIS,UKRI - BBSRC,12/05/2023,T&S UK - Accommodation,Science Group,Clarity Travel Ltd t/a Clarity,99955647,283.33,T&S UK - Accommodation
BEIS,UKRI - BBSRC,12/05/2023,T&S UK - Accommodation,Science Group,Clarity Travel Ltd t/a Clarity,99955647,198.33,T&S UK - Accommodation
BEIS,UKRI - BBSRC,12/05/2023,T&S UK - Accommodation,Science Group,Clarity Travel Ltd t/a Clarity,99955647,132.50,T&S UK - Accommodation
BEIS,UKRI - BBSRC,12/05/2023,T&S UK - Accommodation,Science Group,Clarity Travel Ltd t/a Clarity,99955647,115.83,T&S UK - Accommodation
BEIS,UKRI - BBSRC,12/05/2023,T&S UK - Accommodation,Science Group,Clarity Travel Ltd t/a Clarity,99955647,146.67,T&S UK - Accommodation
BEIS,UKRI - BBSRC,12/05/2023,T&S UK - Accommodation,Science Group,Clarity Travel Ltd t/a Clarity,99955647,175.34,T&S UK - Accommodation
BEIS,UKRI - BBSRC,12/05/2023,T&S UK - Flights,CE - CPS,Clarity Travel Ltd t/a Clarity,99955647,1.00,T&S UK - Flights
BEIS,UKRI - BBSRC,12/05/2023,T&S UK - Flights,CE - CPS,Clarity Travel Ltd t/a Clarity,99955647,74.48,T&S UK - Flights
BEIS,UKRI - BBSRC,12/05/2023,T&S UK - Flights,CE - CPS,Clarity Travel Ltd t/a Clarity,99955647,1.00,T&S UK - Flights
BEIS,UKRI - BBSRC,12/05/2023,T&S UK - Flights,CE - CPS,Clarity Travel Ltd t/a Clarity,99955647,74.48,T&S UK - Flights
BEIS,UKRI - BBSRC,12/05/2023,T&S UK - Flights,CE - IRU,Clarity Travel Ltd t/a Clarity,99955647,3.50,T&S UK - Flights
BEIS,UKRI - BBSRC,12/05/2023,T&S UK - Flights,CE - IRU,Clarity Travel Ltd t/a Clarity,99955647,393.48,T&S UK - Flights
BEIS,UKRI - BBSRC,12/05/2023,T&S UK - Flights,Science Group,Clarity Travel Ltd t/a Clarity,99955647,1.00,T&S UK - Flights
BEIS,UKRI - BBSRC,12/05/2023,T&S UK - Flights,Science Group,Clarity Travel Ltd t/a Clarity,99955647,72.98,T&S UK - Flights
BEIS,UKRI - BBSRC,12/05/2023,T&S UK - Flights,Science Group,Clarity Travel Ltd t/a Clarity,99955647,1.00,T&S UK - Flights
BEIS,UKRI - BBSRC,12/05/2023,T&S UK - Flights,Science Group,Clarity Travel Ltd t/a Clarity,99955647,287.62,T&S UK - Flights
BEIS,UKRI - BBSRC,12/05/2023,T&S UK - Flights,Science Group,Clarity Travel Ltd t/a Clarity,99955647,1.00,T&S UK - Flights
BEIS,UKRI - BBSRC,12/05/2023,T&S UK - Flights,Science Group,Clarity Travel Ltd t/a Clarity,99955647,61.98,T&S UK - Flights
BEIS,UKRI - BBSRC,12/05/2023,T&S UK - Public Transport,CE - CPS,Clarity Travel Ltd t/a Clarity,99955647,1.00,T&S UK - Public Transport
BEIS,UKRI - BBSRC,12/05/2023,T&S UK - Public Transport,CE - CPS,Clarity Travel Ltd t/a Clarity,99955647,23.00,T&S UK - Public Transport
BEIS,UKRI - BBSRC,12/05/2023,T&S UK - Public Transport,CE - CPS,Clarity Travel Ltd t/a Clarity,99955647,16.50,T&S UK - Public Transport
BEIS,UKRI - BBSRC,12/05/2023,T&S UK - Public Transport,CE - Chief Executive,Clarity Travel Ltd t/a Clarity,99955647,0.50,T&S UK - Public Transport
BEIS,UKRI - BBSRC,12/05/2023,T&S UK - Public Transport,CE - Chief Executive,Clarity Travel Ltd t/a Clarity,99955647,154.40,T&S UK - Public Transport
BEIS,UKRI - BBSRC,12/05/2023,T&S UK - Public Transport,CE - Chief Executive,Clarity Travel Ltd t/a Clarity,99955647,-43.70,T&S UK - Public Transport
BEIS,UKRI - BBSRC,12/05/2023,T&S UK - Public Transport,CE - Chief Executive,Clarity Travel Ltd t/a Clarity,99955647,-78.10,T&S UK - Public Transport
BEIS,UKRI - BBSRC,12/05/2023,T&S UK - Public Transport,CE - Chief Executive,Clarity Travel Ltd t/a Clarity,99955647,1.00,T&S UK - Public Transport
BEIS,UKRI - BBSRC,12/05/2023,T&S UK - Public Transport,CE - Chief Executive,Clarity Travel Ltd t/a Clarity,99955647,28.10,T&S UK - Public Transport
BEIS,UKRI - BBSRC,12/05/2023,T&S UK - Public Transport,CE - Chief Executive,Clarity Travel Ltd t/a Clarity,99955647,39.80,T&S UK - Public Transport
BEIS,UKRI - BBSRC,12/05/2023,T&S UK - Public Transport,CE - Chief Executive,Clarity Travel Ltd t/a Clarity,99955647,1.00,T&S UK - Public Transport
BEIS,UKRI - BBSRC,12/05/2023,T&S UK - Public Transport,CE - Chief Executive,Clarity Travel Ltd t/a Clarity,99955647,29.70,T&S UK - Public Transport
BEIS,UKRI - BBSRC,12/05/2023,T&S UK - Public Transport,CE - Chief Executive,Clarity Travel Ltd t/a Clarity,99955647,104.00,T&S UK - Public Transport
BEIS,UKRI - BBSRC,12/05/2023,T&S UK - Public Transport,CE - Chief Executive,Clarity Travel Ltd t/a Clarity,99955647,1.00,T&S UK - Public Transport
BEIS,UKRI - BBSRC,12/05/2023,T&S UK - Public Transport,CE - Chief Executive,Clarity Travel Ltd t/a Clarity,99955647,103.30,T&S UK - Public Transport
BEIS,UKRI - BBSRC,12/05/2023,T&S UK - Public Transport,CE - Chief Executive,Clarity Travel Ltd t/a Clarity,99955647,17.50,T&S UK - Public Transport
BEIS,UKRI - BBSRC,12/05/2023,T&S UK - Public Transport,CE - Chief Executive,Clarity Travel Ltd t/a Clarity,99955647,0.50,T&S UK - Public Transport
BEIS,UKRI - BBSRC,12/05/2023,T&S UK - Public Transport,CE - Chief Executive,Clarity Travel Ltd t/a Clarity,99955647,80.10,T&S UK - Public Transport
BEIS,UKRI - BBSRC,12/05/2023,T&S UK - Public Transport,CE - Chief Executive,Clarity Travel Ltd t/a Clarity,99955647,0.50,T&S UK - Public Transport
BEIS,UKRI - BBSRC,12/05/2023,T&S UK - Public Transport,CE - Chief Executive,Clarity Travel Ltd t/a Clarity,99955647,41.50,T&S UK - Public Transport
BEIS,UKRI - BBSRC,12/05/2023,T&S UK - Public Transport,CE - Chief Executive,Clarity Travel Ltd t/a Clarity,99955647,0.50,T&S UK - Public Transport
BEIS,UKRI - BBSRC,12/05/2023,T&S UK - Public Transport,CE - Chief Executive,Clarity Travel Ltd t/a Clarity,99955647,160.20,T&S UK - Public Transport
BEIS,UKRI - BBSRC,12/05/2023,T&S UK - Public Transport,CE - Chief Executive,Clarity Travel Ltd t/a Clarity,99955647,0.50,T&S UK - Public Transport
BEIS,UKRI - BBSRC,12/05/2023,T&S UK - Public Transport,CE - Chief Executive,Clarity Travel Ltd t/a Clarity,99955647,40.00,T&S UK - Public Transport
BEIS,UKRI - BBSRC,12/05/2023,T&S UK - Public Transport,CE - Chief Executive,Clarity Travel Ltd t/a Clarity,99955647,0.50,T&S UK - Public Transport
BEIS,UKRI - BBSRC,12/05/2023,T&S UK - Public Transport,CE - Chief Executive,Clarity Travel Ltd t/a Clarity,99955647,63.10,T&S UK - Public Transport
BEIS,UKRI - BBSRC,12/05/2023,T&S UK - Public Transport,CE - Chief Executive,Clarity Travel Ltd t/a Clarity,99955647,0.50,T&S UK - Public Transport
BEIS,UKRI - BBSRC,12/05/2023,T&S UK - Public Transport,CE - Chief Executive,Clarity Travel Ltd t/a Clarity,99955647,298.60,T&S UK - Public Transport
BEIS,UKRI - BBSRC,12/05/2023,T&S UK - Public Transport,CE - IRU,Clarity Travel Ltd t/a Clarity,99955647,0.50,T&S UK - Public Transport
BEIS,UKRI - BBSRC,12/05/2023,T&S UK - Public Transport,CE - IRU,Clarity Travel Ltd t/a Clarity,99955647,58.50,T&S UK - Public Transport
BEIS,UKRI - BBSRC,12/05/2023,T&S UK - Public Transport,CE - IRU,Clarity Travel Ltd t/a Clarity,99955647,0.50,T&S UK - Public Transport
BEIS,UKRI - BBSRC,12/05/2023,T&S UK - Public Transport,CE - IRU,Clarity Travel Ltd t/a Clarity,99955647,168.20,T&S UK - Public Transport
BEIS,UKRI - BBSRC,12/05/2023,T&S UK - Public Transport,CIMG - Director,Clarity Travel Ltd t/a Clarity,99955647,0.50,T&S UK - Public Transport
BEIS,UKRI - BBSRC,12/05/2023,T&S UK - Public Transport,CIMG - Director,Clarity Travel Ltd t/a Clarity,99955647,81.00,T&S UK - Public Transport
BEIS,UKRI - BBSRC,12/05/2023,T&S UK - Public Transport,CIMG - Director,Clarity Travel Ltd t/a Clarity,99955647,0.50,T&S UK - Public Transport
BEIS,UKRI - BBSRC,12/05/2023,T&S UK - Public Transport,CIMG - Director,Clarity Travel Ltd t/a Clarity,99955647,81.00,T&S UK - Public Transport
BEIS,UKRI - BBSRC,12/05/2023,T&S UK - Public Transport,CIMG - Director,Clarity Travel Ltd t/a Clarity,99955647,0.50,T&S UK - Public Transport
BEIS,UKRI - BBSRC,12/05/2023,T&S UK - Public Transport,CIMG - Director,Clarity Travel Ltd t/a Clarity,99955647,119.30,T&S UK - Public Transport
BEIS,UKRI - BBSRC,12/05/2023,T&S UK - Public Transport,Innovation and Skills Group,Clarity Travel Ltd t/a Clarity,99955647,0.50,T&S UK - Public Transport
BEIS,UKRI - BBSRC,12/05/2023,T&S UK - Public Transport,Innovation and Skills Group,Clarity Travel Ltd t/a Clarity,99955647,55.30,T&S UK - Public Transport
BEIS,UKRI - BBSRC,12/05/2023,T&S UK - Public Transport,Innovation and Skills Group,Clarity Travel Ltd t/a Clarity,99955647,0.50,T&S UK - Public Transport
BEIS,UKRI - BBSRC,12/05/2023,T&S UK - Public Transport,Innovation and Skills Group,Clarity Travel Ltd t/a Clarity,99955647,53.90,T&S UK - Public Transport
BEIS,UKRI - BBSRC,12/05/2023,T&S UK - Public Transport,Innovation and Skills Group,Clarity Travel Ltd t/a Clarity,99955647,0.50,T&S UK - Public Transport
BEIS,UKRI - BBSRC,12/05/2023,T&S UK - Public Transport,Innovation and Skills Group,Clarity Travel Ltd t/a Clarity,99955647,22.40,T&S UK - Public Transport
BEIS,UKRI - BBSRC,12/05/2023,T&S UK - Public Transport,Innovation and Skills Group,Clarity Travel Ltd t/a Clarity,99955647,0.50,T&S UK - Public Transport
BEIS,UKRI - BBSRC,12/05/2023,T&S UK - Public Transport,Innovation and Skills Group,Clarity Travel Ltd t/a Clarity,99955647,53.90,T&S UK - Public Transport
BEIS,UKRI - BBSRC,12/05/2023,T&S UK - Public Transport,Innovation and Skills Group,Clarity Travel Ltd t/a Clarity,99955647,-21.55,T&S UK - Public Transport
BEIS,UKRI - BBSRC,12/05/2023,T&S UK - Public Transport,Innovation and Skills Group,Clarity Travel Ltd t/a Clarity,99955647,0.50,T&S UK - Public Transport
BEIS,UKRI - BBSRC,12/05/2023,T&S UK - Public Transport,Innovation and Skills Group,Clarity Travel Ltd t/a Clarity,99955647,146.00,T&S UK - Public Transport
BEIS,UKRI - BBSRC,12/05/2023,T&S UK - Public Transport,Innovation and Skills Group,Clarity Travel Ltd t/a Clarity,99955647,1.00,T&S UK - Public Transport
BEIS,UKRI - BBSRC,12/05/2023,T&S UK - Public Transport,Innovation and Skills Group,Clarity Travel Ltd t/a Clarity,99955647,128.65,T&S UK - Public Transport
BEIS,UKRI - BBSRC,12/05/2023,T&S UK - Public Transport,Innovation and Skills Group,Clarity Travel Ltd t/a Clarity,99955647,0.50,T&S UK - Public Transport
BEIS,UKRI - BBSRC,12/05/2023,T&S UK - Public Transport,Innovation and Skills Group,Clarity Travel Ltd t/a Clarity,99955647,183.40,T&S UK - Public Transport
BEIS,UKRI - BBSRC,12/05/2023,T&S UK - Public Transport,Innovation and Skills Group,Clarity Travel Ltd t/a Clarity,99955647,0.50,T&S UK - Public Transport
BEIS,UKRI - BBSRC,12/05/2023,T&S UK - Public Transport,Innovation and Skills Group,Clarity Travel Ltd t/a Clarity,99955647,149.30,T&S UK - Public Transport
BEIS,UKRI - BBSRC,12/05/2023,T&S UK - Public Transport,Innovation and Skills Group,Clarity Travel Ltd t/a Clarity,99955647,0.50,T&S UK - Public Transport
BEIS,UKRI - BBSRC,12/05/2023,T&S UK - Public Transport,Innovation and Skills Group,Clarity Travel Ltd t/a Clarity,99955647,27.70,T&S UK - Public Transport
BEIS,UKRI - BBSRC,12/05/2023,T&S UK - Public Transport,Innovation and Skills Group,Clarity Travel Ltd t/a Clarity,99955647,0.50,T&S UK - Public Transport
BEIS,UKRI - BBSRC,12/05/2023,T&S UK - Public Transport,Innovation and Skills Group,Clarity Travel Ltd t/a Clarity,99955647,166.20,T&S UK - Public Transport
BEIS,UKRI - BBSRC,12/05/2023,T&S UK - Public Transport,Science Group,Clarity Travel Ltd t/a Clarity,99955647,1.00,T&S UK - Public Transport
BEIS,UKRI - BBSRC,12/05/2023,T&S UK - Public Transport,Science Group,Clarity Travel Ltd t/a Clarity,99955647,30.00,T&S UK - Public Transport
BEIS,UKRI - BBSRC,12/05/2023,T&S UK - Public Transport,Science Group,Clarity Travel Ltd t/a Clarity,99955647,83.10,T&S UK - Public Transport
BEIS,UKRI - BBSRC,12/05/2023,T&S UK - Public Transport,Science Group,Clarity Travel Ltd t/a Clarity,99955647,0.50,T&S UK - Public Transport
BEIS,UKRI - BBSRC,12/05/2023,T&S UK - Public Transport,Science Group,Clarity Travel Ltd t/a Clarity,99955647,98.80,T&S UK - Public Transport
BEIS,UKRI - BBSRC,12/05/2023,T&S UK - Public Transport,Science Group,Clarity Travel Ltd t/a Clarity,99955647,0.50,T&S UK - Public Transport
BEIS,UKRI - BBSRC,12/05/2023,T&S UK - Public Transport,Science Group,Clarity Travel Ltd t/a Clarity,99955647,258.80,T&S UK - Public Transport
BEIS,UKRI - BBSRC,12/05/2023,T&S UK - Public Transport,Science Group,Clarity Travel Ltd t/a Clarity,99955647,0.50,T&S UK - Public Transport
BEIS,UKRI - BBSRC,12/05/2023,T&S UK - Public Transport,Science Group,Clarity Travel Ltd t/a Clarity,99955647,168.20,T&S UK - Public Transport
BEIS,UKRI - BBSRC,12/05/2023,T&S UK - Public Transport,Science Group,Clarity Travel Ltd t/a Clarity,99955647,0.50,T&S UK - Public Transport
BEIS,UKRI - BBSRC,12/05/2023,T&S UK - Public Transport,Science Group,Clarity Travel Ltd t/a Clarity,99955647,158.70,T&S UK - Public Transport
BEIS,UKRI - BBSRC,12/05/2023,T&S UK - Public Transport,Science Group,Clarity Travel Ltd t/a Clarity,99955647,0.50,T&S UK - Public Transport
BEIS,UKRI - BBSRC,12/05/2023,T&S UK - Public Transport,Science Group,Clarity Travel Ltd t/a Clarity,99955647,168.20,T&S UK - Public Transport
BEIS,UKRI - BBSRC,12/05/2023,T&S UK - Public Transport,Science Group,Clarity Travel Ltd t/a Clarity,99955647,0.50,T&S UK - Public Transport
BEIS,UKRI - BBSRC,12/05/2023,T&S UK - Public Transport,Science Group,Clarity Travel Ltd t/a Clarity,99955647,36.50,T&S UK - Public Transport
BEIS,UKRI - BBSRC,12/05/2023,T&S UK - Public Transport,Science Group,Clarity Travel Ltd t/a Clarity,99955647,0.50,T&S UK - Public Transport
BEIS,UKRI - BBSRC,12/05/2023,T&S UK - Public Transport,Science Group,Clarity Travel Ltd t/a Clarity,99955647,129.40,T&S UK - Public Transport
BEIS,UKRI - BBSRC,12/05/2023,T&S UK - Public Transport,Science Group,Clarity Travel Ltd t/a Clarity,99955647,0.50,T&S UK - Public Transport
BEIS,UKRI - BBSRC,12/05/2023,T&S UK - Public Transport,Science Group,Clarity Travel Ltd t/a Clarity,99955647,17.35,T&S UK - Public Transport
BEIS,UKRI - BBSRC,12/05/2023,T&S UK - Public Transport,Science Group,Clarity Travel Ltd t/a Clarity,99955647,0.50,T&S UK - Public Transport
BEIS,UKRI - BBSRC,12/05/2023,T&S UK - Public Transport,Science Group,Clarity Travel Ltd t/a Clarity,99955647,41.00,T&S UK - Public Transport
BEIS,UKRI - BBSRC,12/05/2023,T&S UK - Public Transport,Science Group,Clarity Travel Ltd t/a Clarity,99955647,0.50,T&S UK - Public Transport
BEIS,UKRI - BBSRC,12/05/2023,T&S UK - Public Transport,Science Group,Clarity Travel Ltd t/a Clarity,99955647,140.90,T&S UK - Public Transport
BEIS,UKRI - BBSRC,12/05/2023,T&S UK - Public Transport,Science Group,Clarity Travel Ltd t/a Clarity,99955647,0.50,T&S UK - Public Transport
BEIS,UKRI - BBSRC,12/05/2023,T&S UK - Public Transport,Science Group,Clarity Travel Ltd t/a Clarity,99955647,275.00,T&S UK - Public Transport
BEIS,UKRI - BBSRC,12/05/2023,T&S UK - Public Transport,Science Group,Clarity Travel Ltd t/a Clarity,99955647,0.50,T&S UK - Public Transport
BEIS,UKRI - BBSRC,12/05/2023,T&S UK - Public Transport,Science Group,Clarity Travel Ltd t/a Clarity,99955647,109.40,T&S UK - Public Transport
BEIS,UKRI - BBSRC,12/05/2023,T&S UK - Public Transport,Science Group,Clarity Travel Ltd t/a Clarity,99955647,0.50,T&S UK - Public Transport
BEIS,UKRI - BBSRC,12/05/2023,T&S UK - Public Transport,Science Group,Clarity Travel Ltd t/a Clarity,99955647,44.10,T&S UK - Public Transport
BEIS,UKRI - BBSRC,12/05/2023,T&S UK - Public Transport,Science Group,Clarity Travel Ltd t/a Clarity,99955647,0.50,T&S UK - Public Transport
BEIS,UKRI - BBSRC,12/05/2023,T&S UK - Public Transport,Science Group,Clarity Travel Ltd t/a Clarity,99955647,172.10,T&S UK - Public Transport
BEIS,UKRI - BBSRC,12/05/2023,T&S UK - Public Transport,Science Group,Clarity Travel Ltd t/a Clarity,99955647,0.50,T&S UK - Public Transport
BEIS,UKRI - BBSRC,12/05/2023,T&S UK - Public Transport,Science Group,Clarity Travel Ltd t/a Clarity,99955647,142.40,T&S UK - Public Transport
BEIS,UKRI - BBSRC,12/05/2023,T&S UK - Public Transport,Science Group,Clarity Travel Ltd t/a Clarity,99955647,1.00,T&S UK - Public Transport
BEIS,UKRI - BBSRC,12/05/2023,T&S UK - Public Transport,Science Group,Clarity Travel Ltd t/a Clarity,99955647,41.00,T&S UK - Public Transport
BEIS,UKRI - BBSRC,12/05/2023,T&S UK - Public Transport,Science Group,Clarity Travel Ltd t/a Clarity,99955647,126.40,T&S UK - Public Transport
BEIS,UKRI - BBSRC,12/05/2023,T&S UK - Public Transport,Science Group,Clarity Travel Ltd t/a Clarity,99955647,0.50,T&S UK - Public Transport
BEIS,UKRI - BBSRC,12/05/2023,T&S UK - Public Transport,Science Group,Clarity Travel Ltd t/a Clarity,99955647,27.70,T&S UK - Public Transport
BEIS,UKRI - BBSRC,12/05/2023,T&S UK - Public Transport,Science Group,Clarity Travel Ltd t/a Clarity,99955647,0.50,T&S UK - Public Transport
BEIS,UKRI - BBSRC,12/05/2023,T&S UK - Public Transport,Science Group,Clarity Travel Ltd t/a Clarity,99955647,12.90,T&S UK - Public Transport
BEIS,UKRI - BBSRC,12/05/2023,T&S UK - Public Transport,Science Group,Clarity Travel Ltd t/a Clarity,99955647,0.50,T&S UK - Public Transport
BEIS,UKRI - BBSRC,12/05/2023,T&S UK - Public Transport,Science Group,Clarity Travel Ltd t/a Clarity,99955647,135.40,T&S UK - Public Transport
BEIS,UKRI - BBSRC,12/05/2023,T&S UK - Public Transport,Science Group � Admin Function,Clarity Travel Ltd t/a Clarity,99955647,0.50,T&S UK - Public Transport
BEIS,UKRI - BBSRC,12/05/2023,T&S UK - Public Transport,Science Group � Admin Function,Clarity Travel Ltd t/a Clarity,99955647,166.20,T&S UK - Public Transport
BEIS,UKRI - BBSRC,12/05/2023,Research Institutes - Capital Grants: Minor Works,World Class Labs,Rothamsted Research Ltd,99956328,1486.49,Research Institutes - Capital Grants: Minor Works
BEIS,UKRI - BBSRC,12/05/2023,International Subscriptions,International,UKRI - Medical Research Council,99956333,394163.25,International Subscriptions
BEIS,UKRI - BBSRC,12/05/2023,International Subscriptions,International,UKRI - Medical Research Council,99956333,987118.49,International Subscriptions
BEIS,UKRI - BBSRC,12/05/2023,International Subscriptions,International,UKRI - Medical Research Council,99956333,131387.75,International Subscriptions
BEIS,UKRI - BBSRC,12/05/2023,International Subscriptions,International,UKRI - Medical Research Council,99956333,329039.50,International Subscriptions
BEIS,UKRI - BBSRC,12/05/2023,T&S UK - Other Charges,CE - IRU,Unspecified,99956840,3.25,T&S UK - Other Charges
BEIS,UKRI - BBSRC,12/05/2023,T&S UK - Public Transport,CE - IRU,Unspecified,99956840,7.00,T&S UK - Public Transport
BEIS,UKRI - BBSRC,15/05/2023,Union Deductions,Balance Sheet,PCS Union,99951238,61.38,Union Deductions
BEIS,UKRI - BBSRC,15/05/2023,Voluntary Deductions,Balance Sheet,Swindon Office Sports and Social Club,99951239,42.00,Voluntary Deductions
BEIS,UKRI - BBSRC,15/05/2023,Unspecified,Balance Sheet,Unspecified,99951240,19943.21,Ees Pension Deductions - JSS
BEIS,UKRI - BBSRC,15/05/2023,Unspecified,Balance Sheet,Unspecified,99951241,80883.24,Ers Pension Deductions - JSS
BEIS,UKRI - BBSRC,15/05/2023,Unspecified,Balance Sheet,Scottish Widows Life Assurance,99951242,447.16,Partnership Pension Deductions
BEIS,UKRI - BBSRC,15/05/2023,Unspecified,Balance Sheet,Scottish Widows Life Assurance,99951243,10.00,Other Pension Deductions
BEIS,UKRI - BBSRC,15/05/2023,Unspecified,Balance Sheet,Cabinet Office RM Shared Services,99951244,13.30,Ers Pension Deductions - JSS
BEIS,UKRI - BBSRC,15/05/2023,Unspecified,Balance Sheet,Cabinet Office RM Shared Services,99951245,11366.82,Ees Pension Deductions - MyCSP
BEIS,UKRI - BBSRC,15/05/2023,Unspecified,Balance Sheet,Cabinet Office RM Shared Services,99951246,59391.28,Ers Pension Deductions - MyCSP
BEIS,UKRI - BBSRC,15/05/2023,Nursery Deductions,Balance Sheet,UKRI - Engineering & Physical Sciences Research Council,99951248,931.00,Nursery Deductions
BEIS,UKRI - BBSRC,15/05/2023,Unspecified,Balance Sheet,Unspecified,99951249,215.30,Ees Pension Deductions - MRC
BEIS,UKRI - BBSRC,15/05/2023,Unspecified,Balance Sheet,Unspecified,99951250,529.97,Ers Pension Deductions - MRC
BEIS,UKRI - BBSRC,15/05/2023,Staff Training,PDG - Director,Praxis Courses Ltd T/A PraxisAuril,99955599,1195.00,Staff Training
BEIS,UKRI - BBSRC,15/05/2023,Research Grant Expenditure,Impact & Knowledge Exchange,ABERYSTWYTH INNOVATION AND ENTERPRISE CAMPUS LTD (AIEC),99956687,146296.51,Research Grant Expenditure
BEIS,UKRI - BBSRC,15/05/2023,Research Grant Expenditure,Impact & Knowledge Exchange,ABERYSTWYTH INNOVATION AND ENTERPRISE CAMPUS LTD (AIEC),99956714,1806.08,Research Grant Expenditure
BEIS,UKRI - BBSRC,15/05/2023,Unspecified,Science Group � Admin Function,Unspecified,99956965,340.00,Council & Committee Honoraria
BEIS,UKRI - BBSRC,15/05/2023,Research Grant Expenditure,Research: Strategic,University of Edinburgh,99956967,25116.00,Research Grant Expenditure
BEIS,UKRI - BBSRC,16/05/2023,Conferences & Seminars,Science Group,The Collective Facilitation Ltd,99956669,5988.00,Conferences & Seminars
BEIS,UKRI - BBSRC,16/05/2023,Unspecified,Science Group � Admin Function,Unspecified,99957839,340.00,Council & Committee Honoraria
BEIS,UKRI - BBSRC,16/05/2023,Unspecified,Science Group � Admin Function,Unspecified,99957840,340.00,Council & Committee Honoraria
BEIS,UKRI - BBSRC,16/05/2023,Unspecified,Science Group � Admin Function,Unspecified,99957841,340.00,Council & Committee Honoraria
BEIS,UKRI - BBSRC,16/05/2023,Unspecified,Science Group � Admin Function,Unspecified,99957842,340.00,Council & Committee Honoraria
BEIS,UKRI - BBSRC,16/05/2023,Unspecified,Science Group � Admin Function,Unspecified,99957843,340.00,Council & Committee Honoraria
BEIS,UKRI - BBSRC,16/05/2023,Unspecified,Science Group � Admin Function,Unspecified,99957844,340.00,Council & Committee Honoraria
BEIS,UKRI - BBSRC,16/05/2023,Unspecified,Science Group � Admin Function,Unspecified,99957845,340.00,Council & Committee Honoraria
BEIS,UKRI - BBSRC,16/05/2023,Unspecified,Science Group � Admin Function,Unspecified,99957846,340.00,Council & Committee Honoraria
BEIS,UKRI - BBSRC,16/05/2023,Unspecified,Science Group � Admin Function,Unspecified,99957847,340.00,Council & Committee Honoraria
BEIS,UKRI - BBSRC,16/05/2023,Unspecified,Science Group � Admin Function,Unspecified,99957849,340.00,Council & Committee Honoraria
BEIS,UKRI - BBSRC,16/05/2023,Unspecified,Science Group - Delivery Function,Unspecified,99957850,170.00,Council & Committee Honoraria
BEIS,UKRI - BBSRC,16/05/2023,Unspecified,Science Group - Delivery Function,Unspecified,99957851,170.00,Council & Committee Honoraria
BEIS,UKRI - BBSRC,16/05/2023,Research Grant Expenditure,Research: Strategic,Rothamsted Research Ltd,99957982,3740.40,Research Grant Expenditure
BEIS,UKRI - BBSRC,16/05/2023,Research Institutes - Capital Grants: Minor Works,Mid-Range Equipment,Rothamsted Research Ltd,99957990,46781.10,Research Institutes - Capital Grants: Minor Works
BEIS,UKRI - BBSRC,16/05/2023,T&S UK - Other Charges,FG - Estates,Unspecified,99958159,3.00,T&S UK - Other Charges
BEIS,UKRI - BBSRC,16/05/2023,T&S UK - Vehicle Hire,FG - Estates,Unspecified,99958159,30.00,T&S UK - Vehicle Hire
BEIS,UKRI - BBSRC,16/05/2023,T&S UK - Mileage,Innovation and Skills Group,Unspecified,99958160,52.00,T&S UK - Mileage
BEIS,UKRI - BBSRC,16/05/2023,T&S UK - Other Charges,Science Group,Unspecified,99958161,3.25,T&S UK - Other Charges
BEIS,UKRI - BBSRC,16/05/2023,T&S UK - Parking Tolls Congestion Charges,Science Group,Unspecified,99958161,16.60,T&S UK - Parking Tolls Congestion Charges
BEIS,UKRI - BBSRC,17/05/2023,Printing & Stationery,Innovation and Skills Group,The Good Eating Company Ltd T/A Angel Kitchen,99956376,76.80,Printing & Stationery
BEIS,UKRI - BBSRC,17/05/2023,T&S UK - Vehicle Hire,CIMG - Director,Enterprise Rent-A-Car UK Ltd,99956542,78.44,T&S UK - Vehicle Hire
BEIS,UKRI - BBSRC,17/05/2023,T&S UK - Vehicle Hire,CIMG - Director,Enterprise Rent-A-Car UK Ltd,99956542,15.69,T&S UK - Vehicle Hire
BEIS,UKRI - BBSRC,17/05/2023,T&S UK - Vehicle Hire,FG - Estates,Enterprise Rent-A-Car UK Ltd,99956542,110.40,T&S UK - Vehicle Hire
BEIS,UKRI - BBSRC,17/05/2023,T&S UK - Vehicle Hire,FG - Estates,Enterprise Rent-A-Car UK Ltd,99956542,22.08,T&S UK - Vehicle Hire
BEIS,UKRI - BBSRC,17/05/2023,T&S UK - Vehicle Hire,CIMG - Director,Enterprise Rent-A-Car UK Ltd,99956595,157.08,T&S UK - Vehicle Hire
BEIS,UKRI - BBSRC,17/05/2023,T&S UK - Vehicle Hire,CIMG - Director,Enterprise Rent-A-Car UK Ltd,99956595,31.42,T&S UK - Vehicle Hire
BEIS,UKRI - BBSRC,17/05/2023,T&S UK - Vehicle Hire,FG - Estates,Enterprise Rent-A-Car UK Ltd,99956595,76.16,T&S UK - Vehicle Hire
BEIS,UKRI - BBSRC,17/05/2023,T&S UK - Vehicle Hire,FG - Estates,Enterprise Rent-A-Car UK Ltd,99956595,80.68,T&S UK - Vehicle Hire
BEIS,UKRI - BBSRC,17/05/2023,T&S UK - Vehicle Hire,FG - Estates,Enterprise Rent-A-Car UK Ltd,99956595,31.37,T&S UK - Vehicle Hire
BEIS,UKRI - BBSRC,17/05/2023,Computer Software Licences,CE - CPS,Carrot Search s.c.,99957566,4943.16,Computer Software Licences
BEIS,UKRI - BBSRC,17/05/2023,Non-staff travel and subsistance,Science Group � Admin Function,Unspecified,99957602,49.29,Non-staff travel and subsistance
BEIS,UKRI - BBSRC,17/05/2023,Research Institutes - Capital Grants: Minor Works,World Class Labs,Rothamsted Research Ltd,99958539,122787.45,Research Institutes - Capital Grants: Minor Works
BEIS,UKRI - BBSRC,17/05/2023,T&S Overseas - Accommodation,Science Group,Clarity Travel Ltd t/a Clarity,99958554,209.34,T&S Overseas - Accommodation
BEIS,UKRI - BBSRC,17/05/2023,T&S Overseas - Public Transport,CE - IRU,Clarity Travel Ltd t/a Clarity,99958554,2.00,T&S Overseas - Public Transport
BEIS,UKRI - BBSRC,17/05/2023,T&S Overseas - Public Transport,CE - IRU,Clarity Travel Ltd t/a Clarity,99958554,64.57,T&S Overseas - Public Transport
BEIS,UKRI - BBSRC,17/05/2023,T&S UK - Accommodation,CIMG - Director,Clarity Travel Ltd t/a Clarity,99958554,96.35,T&S UK - Accommodation
BEIS,UKRI - BBSRC,17/05/2023,T&S UK - Accommodation,CIMG - Director,Clarity Travel Ltd t/a Clarity,99958554,19.27,T&S UK - Accommodation
BEIS,UKRI - BBSRC,17/05/2023,T&S UK - Accommodation,FG - Estates,Clarity Travel Ltd t/a Clarity,99958554,108.00,T&S UK - Accommodation
BEIS,UKRI - BBSRC,17/05/2023,T&S UK - Accommodation,FG - Estates,Clarity Travel Ltd t/a Clarity,99958554,21.60,T&S UK - Accommodation
BEIS,UKRI - BBSRC,17/05/2023,T&S UK - Accommodation,Innovation and Skills Group,Clarity Travel Ltd t/a Clarity,99958554,104.58,T&S UK - Accommodation
BEIS,UKRI - BBSRC,17/05/2023,T&S UK - Accommodation,Innovation and Skills Group,Clarity Travel Ltd t/a Clarity,99958554,20.92,T&S UK - Accommodation
BEIS,UKRI - BBSRC,17/05/2023,T&S UK - Flights,CE - IRU,Clarity Travel Ltd t/a Clarity,99958554,3.50,T&S UK - Flights
BEIS,UKRI - BBSRC,17/05/2023,T&S UK - Flights,CE - IRU,Clarity Travel Ltd t/a Clarity,99958554,291.88,T&S UK - Flights
BEIS,UKRI - BBSRC,17/05/2023,T&S UK - Flights,Innovation and Skills Group,Clarity Travel Ltd t/a Clarity,99958554,1.00,T&S UK - Flights
BEIS,UKRI - BBSRC,17/05/2023,T&S UK - Flights,Innovation and Skills Group,Clarity Travel Ltd t/a Clarity,99958554,259.68,T&S UK - Flights
BEIS,UKRI - BBSRC,17/05/2023,T&S UK - Mileage,Science Group,Clarity Travel Ltd t/a Clarity,99958554,2.00,T&S UK - Mileage
BEIS,UKRI - BBSRC,17/05/2023,T&S UK - Mileage,Science Group,Clarity Travel Ltd t/a Clarity,99958554,280.00,T&S UK - Mileage
BEIS,UKRI - BBSRC,17/05/2023,T&S UK - Public Transport,CE - CPS,Clarity Travel Ltd t/a Clarity,99958554,0.50,T&S UK - Public Transport
BEIS,UKRI - BBSRC,17/05/2023,T&S UK - Public Transport,CE - CPS,Clarity Travel Ltd t/a Clarity,99958554,168.20,T&S UK - Public Transport
BEIS,UKRI - BBSRC,17/05/2023,T&S UK - Public Transport,CE - Chief Executive,Clarity Travel Ltd t/a Clarity,99958554,1.00,T&S UK - Public Transport
BEIS,UKRI - BBSRC,17/05/2023,T&S UK - Public Transport,CE - Chief Executive,Clarity Travel Ltd t/a Clarity,99958554,103.30,T&S UK - Public Transport
BEIS,UKRI - BBSRC,17/05/2023,T&S UK - Public Transport,CE - Chief Executive,Clarity Travel Ltd t/a Clarity,99958554,33.50,T&S UK - Public Transport
BEIS,UKRI - BBSRC,17/05/2023,T&S UK - Public Transport,CE - Chief Executive,Clarity Travel Ltd t/a Clarity,99958554,0.50,T&S UK - Public Transport
BEIS,UKRI - BBSRC,17/05/2023,T&S UK - Public Transport,CE - Chief Executive,Clarity Travel Ltd t/a Clarity,99958554,206.60,T&S UK - Public Transport
BEIS,UKRI - BBSRC,17/05/2023,T&S UK - Public Transport,CE - Chief Executive,Clarity Travel Ltd t/a Clarity,99958554,-81.50,T&S UK - Public Transport
BEIS,UKRI - BBSRC,17/05/2023,T&S UK - Public Transport,CE - IRU,Clarity Travel Ltd t/a Clarity,99958554,-163.20,T&S UK - Public Transport
BEIS,UKRI - BBSRC,17/05/2023,T&S UK - Public Transport,CIMG - Director,Clarity Travel Ltd t/a Clarity,99958554,0.50,T&S UK - Public Transport
BEIS,UKRI - BBSRC,17/05/2023,T&S UK - Public Transport,CIMG - Director,Clarity Travel Ltd t/a Clarity,99958554,52.00,T&S UK - Public Transport
BEIS,UKRI - BBSRC,17/05/2023,T&S UK - Public Transport,Innovation and Skills Group,Clarity Travel Ltd t/a Clarity,99958554,0.50,T&S UK - Public Transport
BEIS,UKRI - BBSRC,17/05/2023,T&S UK - Public Transport,Innovation and Skills Group,Clarity Travel Ltd t/a Clarity,99958554,92.95,T&S UK - Public Transport
BEIS,UKRI - BBSRC,17/05/2023,T&S UK - Public Transport,Innovation and Skills Group,Clarity Travel Ltd t/a Clarity,99958554,1.50,T&S UK - Public Transport
BEIS,UKRI - BBSRC,17/05/2023,T&S UK - Public Transport,Innovation and Skills Group,Clarity Travel Ltd t/a Clarity,99958554,30.90,T&S UK - Public Transport
BEIS,UKRI - BBSRC,17/05/2023,T&S UK - Public Transport,Innovation and Skills Group,Clarity Travel Ltd t/a Clarity,99958554,40.60,T&S UK - Public Transport
BEIS,UKRI - BBSRC,17/05/2023,T&S UK - Public Transport,Innovation and Skills Group,Clarity Travel Ltd t/a Clarity,99958554,0.50,T&S UK - Public Transport
BEIS,UKRI - BBSRC,17/05/2023,T&S UK - Public Transport,Innovation and Skills Group,Clarity Travel Ltd t/a Clarity,99958554,54.90,T&S UK - Public Transport
BEIS,UKRI - BBSRC,17/05/2023,T&S UK - Public Transport,Innovation and Skills Group,Clarity Travel Ltd t/a Clarity,99958554,0.50,T&S UK - Public Transport
BEIS,UKRI - BBSRC,17/05/2023,T&S UK - Public Transport,Innovation and Skills Group,Clarity Travel Ltd t/a Clarity,99958554,183.40,T&S UK - Public Transport
BEIS,UKRI - BBSRC,17/05/2023,T&S UK - Public Transport,Innovation and Skills Group,Clarity Travel Ltd t/a Clarity,99958554,0.50,T&S UK - Public Transport
BEIS,UKRI - BBSRC,17/05/2023,T&S UK - Public Transport,Innovation and Skills Group,Clarity Travel Ltd t/a Clarity,99958554,17.00,T&S UK - Public Transport
BEIS,UKRI - BBSRC,17/05/2023,T&S UK - Public Transport,Innovation and Skills Group,Clarity Travel Ltd t/a Clarity,99958554,0.50,T&S UK - Public Transport
BEIS,UKRI - BBSRC,17/05/2023,T&S UK - Public Transport,Innovation and Skills Group,Clarity Travel Ltd t/a Clarity,99958554,350.40,T&S UK - Public Transport
BEIS,UKRI - BBSRC,17/05/2023,T&S UK - Public Transport,Innovation and Skills Group,Clarity Travel Ltd t/a Clarity,99958554,0.50,T&S UK - Public Transport
BEIS,UKRI - BBSRC,17/05/2023,T&S UK - Public Transport,Innovation and Skills Group,Clarity Travel Ltd t/a Clarity,99958554,66.05,T&S UK - Public Transport
BEIS,UKRI - BBSRC,17/05/2023,T&S UK - Public Transport,Innovation and Skills Group,Clarity Travel Ltd t/a Clarity,99958554,0.50,T&S UK - Public Transport
BEIS,UKRI - BBSRC,17/05/2023,T&S UK - Public Transport,Innovation and Skills Group,Clarity Travel Ltd t/a Clarity,99958554,18.90,T&S UK - Public Transport
BEIS,UKRI - BBSRC,17/05/2023,T&S UK - Public Transport,Innovation and Skills Group,Clarity Travel Ltd t/a Clarity,99958554,0.50,T&S UK - Public Transport
BEIS,UKRI - BBSRC,17/05/2023,T&S UK - Public Transport,Innovation and Skills Group,Clarity Travel Ltd t/a Clarity,99958554,236.60,T&S UK - Public Transport
BEIS,UKRI - BBSRC,17/05/2023,T&S UK - Public Transport,Innovation and Skills Group,Clarity Travel Ltd t/a Clarity,99958554,0.50,T&S UK - Public Transport
BEIS,UKRI - BBSRC,17/05/2023,T&S UK - Public Transport,Innovation and Skills Group,Clarity Travel Ltd t/a Clarity,99958554,159.20,T&S UK - Public Transport
BEIS,UKRI - BBSRC,17/05/2023,T&S UK - Public Transport,Innovation and Skills Group,Clarity Travel Ltd t/a Clarity,99958554,0.50,T&S UK - Public Transport
BEIS,UKRI - BBSRC,17/05/2023,T&S UK - Public Transport,Innovation and Skills Group,Clarity Travel Ltd t/a Clarity,99958554,205.20,T&S UK - Public Transport
BEIS,UKRI - BBSRC,17/05/2023,T&S UK - Public Transport,Innovation and Skills Group,Clarity Travel Ltd t/a Clarity,99958554,0.50,T&S UK - Public Transport
BEIS,UKRI - BBSRC,17/05/2023,T&S UK - Public Transport,Innovation and Skills Group,Clarity Travel Ltd t/a Clarity,99958554,127.15,T&S UK - Public Transport
BEIS,UKRI - BBSRC,17/05/2023,T&S UK - Public Transport,Innovation and Skills Group,Clarity Travel Ltd t/a Clarity,99958554,1.00,T&S UK - Public Transport
BEIS,UKRI - BBSRC,17/05/2023,T&S UK - Public Transport,Innovation and Skills Group,Clarity Travel Ltd t/a Clarity,99958554,36.50,T&S UK - Public Transport
BEIS,UKRI - BBSRC,17/05/2023,T&S UK - Public Transport,Innovation and Skills Group,Clarity Travel Ltd t/a Clarity,99958554,83.10,T&S UK - Public Transport
BEIS,UKRI - BBSRC,17/05/2023,T&S UK - Public Transport,Innovation and Skills Group,Clarity Travel Ltd t/a Clarity,99958554,0.50,T&S UK - Public Transport
BEIS,UKRI - BBSRC,17/05/2023,T&S UK - Public Transport,Innovation and Skills Group,Clarity Travel Ltd t/a Clarity,99958554,62.30,T&S UK - Public Transport
BEIS,UKRI - BBSRC,17/05/2023,T&S UK - Public Transport,Innovation and Skills Group,Clarity Travel Ltd t/a Clarity,99958554,1.00,T&S UK - Public Transport
BEIS,UKRI - BBSRC,17/05/2023,T&S UK - Public Transport,Innovation and Skills Group,Clarity Travel Ltd t/a Clarity,99958554,112.00,T&S UK - Public Transport
BEIS,UKRI - BBSRC,17/05/2023,T&S UK - Public Transport,Innovation and Skills Group,Clarity Travel Ltd t/a Clarity,99958554,22.60,T&S UK - Public Transport
BEIS,UKRI - BBSRC,17/05/2023,T&S UK - Public Transport,Innovation and Skills Group,Clarity Travel Ltd t/a Clarity,99958554,0.50,T&S UK - Public Transport
BEIS,UKRI - BBSRC,17/05/2023,T&S UK - Public Transport,Innovation and Skills Group,Clarity Travel Ltd t/a Clarity,99958554,112.40,T&S UK - Public Transport
BEIS,UKRI - BBSRC,17/05/2023,T&S UK - Public Transport,Innovation and Skills Group,Clarity Travel Ltd t/a Clarity,99958554,0.50,T&S UK - Public Transport
BEIS,UKRI - BBSRC,17/05/2023,T&S UK - Public Transport,Innovation and Skills Group,Clarity Travel Ltd t/a Clarity,99958554,170.80,T&S UK - Public Transport
BEIS,UKRI - BBSRC,17/05/2023,T&S UK - Public Transport,Science Group,Clarity Travel Ltd t/a Clarity,99958554,0.50,T&S UK - Public Transport
BEIS,UKRI - BBSRC,17/05/2023,T&S UK - Public Transport,Science Group,Clarity Travel Ltd t/a Clarity,99958554,166.20,T&S UK - Public Transport
BEIS,UKRI - BBSRC,17/05/2023,T&S UK - Public Transport,Science Group,Clarity Travel Ltd t/a Clarity,99958554,0.50,T&S UK - Public Transport
BEIS,UKRI - BBSRC,17/05/2023,T&S UK - Public Transport,Science Group,Clarity Travel Ltd t/a Clarity,99958554,100.80,T&S UK - Public Transport
BEIS,UKRI - BBSRC,17/05/2023,T&S UK - Public Transport,Science Group,Clarity Travel Ltd t/a Clarity,99958554,0.50,T&S UK - Public Transport
BEIS,UKRI - BBSRC,17/05/2023,T&S UK - Public Transport,Science Group,Clarity Travel Ltd t/a Clarity,99958554,205.20,T&S UK - Public Transport
BEIS,UKRI - BBSRC,17/05/2023,T&S UK - Public Transport,Science Group,Clarity Travel Ltd t/a Clarity,99958554,1.00,T&S UK - Public Transport
BEIS,UKRI - BBSRC,17/05/2023,T&S UK - Public Transport,Science Group,Clarity Travel Ltd t/a Clarity,99958554,44.40,T&S UK - Public Transport
BEIS,UKRI - BBSRC,17/05/2023,T&S UK - Public Transport,Science Group,Clarity Travel Ltd t/a Clarity,99958554,23.00,T&S UK - Public Transport
BEIS,UKRI - BBSRC,17/05/2023,T&S UK - Public Transport,Science Group,Clarity Travel Ltd t/a Clarity,99958554,1.50,T&S UK - Public Transport
BEIS,UKRI - BBSRC,17/05/2023,T&S UK - Public Transport,Science Group,Clarity Travel Ltd t/a Clarity,99958554,20.10,T&S UK - Public Transport
BEIS,UKRI - BBSRC,17/05/2023,T&S UK - Public Transport,Science Group,Clarity Travel Ltd t/a Clarity,99958554,7.35,T&S UK - Public Transport
BEIS,UKRI - BBSRC,17/05/2023,T&S UK - Public Transport,Science Group,Clarity Travel Ltd t/a Clarity,99958554,37.40,T&S UK - Public Transport
BEIS,UKRI - BBSRC,17/05/2023,T&S UK - Public Transport,Science Group,Clarity Travel Ltd t/a Clarity,99958554,0.50,T&S UK - Public Transport
BEIS,UKRI - BBSRC,17/05/2023,T&S UK - Public Transport,Science Group,Clarity Travel Ltd t/a Clarity,99958554,83.00,T&S UK - Public Transport
BEIS,UKRI - BBSRC,17/05/2023,T&S UK - Public Transport,Science Group,Clarity Travel Ltd t/a Clarity,99958554,0.50,T&S UK - Public Transport
BEIS,UKRI - BBSRC,17/05/2023,T&S UK - Public Transport,Science Group,Clarity Travel Ltd t/a Clarity,99958554,55.30,T&S UK - Public Transport
BEIS,UKRI - BBSRC,17/05/2023,T&S UK - Public Transport,Science Group,Clarity Travel Ltd t/a Clarity,99958554,0.50,T&S UK - Public Transport
BEIS,UKRI - BBSRC,17/05/2023,T&S UK - Public Transport,Science Group,Clarity Travel Ltd t/a Clarity,99958554,34.70,T&S UK - Public Transport
BEIS,UKRI - BBSRC,17/05/2023,T&S UK - Public Transport,Science Group,Clarity Travel Ltd t/a Clarity,99958554,0.50,T&S UK - Public Transport
BEIS,UKRI - BBSRC,17/05/2023,T&S UK - Public Transport,Science Group,Clarity Travel Ltd t/a Clarity,99958554,63.75,T&S UK - Public Transport
BEIS,UKRI - BBSRC,17/05/2023,T&S UK - Public Transport,Science Group,Clarity Travel Ltd t/a Clarity,99958554,0.50,T&S UK - Public Transport
BEIS,UKRI - BBSRC,17/05/2023,T&S UK - Public Transport,Science Group,Clarity Travel Ltd t/a Clarity,99958554,151.40,T&S UK - Public Transport
BEIS,UKRI - BBSRC,17/05/2023,T&S UK - Public Transport,Science Group,Clarity Travel Ltd t/a Clarity,99958554,0.50,T&S UK - Public Transport
BEIS,UKRI - BBSRC,17/05/2023,T&S UK - Public Transport,Science Group,Clarity Travel Ltd t/a Clarity,99958554,204.90,T&S UK - Public Transport
BEIS,UKRI - BBSRC,17/05/2023,T&S UK - Public Transport,Science Group,Clarity Travel Ltd t/a Clarity,99958554,0.50,T&S UK - Public Transport
BEIS,UKRI - BBSRC,17/05/2023,T&S UK - Public Transport,Science Group,Clarity Travel Ltd t/a Clarity,99958554,76.25,T&S UK - Public Transport
BEIS,UKRI - BBSRC,17/05/2023,T&S UK - Public Transport,Science Group � Admin Function,Clarity Travel Ltd t/a Clarity,99958554,0.50,T&S UK - Public Transport
BEIS,UKRI - BBSRC,17/05/2023,T&S UK - Public Transport,Science Group � Admin Function,Clarity Travel Ltd t/a Clarity,99958554,13.90,T&S UK - Public Transport
BEIS,UKRI - BBSRC,17/05/2023,T&S UK - Public Transport,Science Group � Admin Function,Clarity Travel Ltd t/a Clarity,99958554,0.50,T&S UK - Public Transport
BEIS,UKRI - BBSRC,17/05/2023,T&S UK - Public Transport,Science Group � Admin Function,Clarity Travel Ltd t/a Clarity,99958554,112.00,T&S UK - Public Transport
BEIS,UKRI - BBSRC,17/05/2023,T&S UK - Subsistence,CIMG - Director,Unspecified,99958682,6.05,T&S UK - Subsistence
BEIS,UKRI - BBSRC,17/05/2023,T&S UK - Vehicle Hire,CIMG - Director,Unspecified,99958682,131.12,T&S UK - Vehicle Hire
BEIS,UKRI - BBSRC,18/05/2023,T&S UK - Accommodation,Science Group,Unspecified,99932677,170.00,T&S UK - Accommodation
BEIS,UKRI - BBSRC,18/05/2023,Staff Training,PDG - Director,Civil Service College,99954604,714.00,Staff Training
BEIS,UKRI - BBSRC,18/05/2023,Research Institutes - Capital Grants: Minor Works,World Class Labs,Rothamsted Research Ltd,99959136,42600.00,Research Institutes - Capital Grants: Minor Works
BEIS,UKRI - BBSRC,18/05/2023,T&S UK - Subsistence,Science Group,Unspecified,99959252,18.35,T&S UK - Subsistence
BEIS,UKRI - BBSRC,19/05/2023,T&S Overseas - Flights,OpEx FIC2 EEID2,University of Edinburgh,99955942,168.90,T&S Overseas - Flights
BEIS,UKRI - BBSRC,19/05/2023,T&S Overseas - Flights,OpEx FIC2 EEID2,University of Edinburgh,99955947,36.20,T&S Overseas - Flights
BEIS,UKRI - BBSRC,19/05/2023,T&S Overseas - Flights,OpEx FIC2 EEID2,University of Edinburgh,99955949,514.32,T&S Overseas - Flights
BEIS,UKRI - BBSRC,19/05/2023,T&S Overseas - Flights,OpEx FIC2 EEID2,University of Edinburgh,99955954,6.65,T&S Overseas - Flights
BEIS,UKRI - BBSRC,19/05/2023,Research Grant Expenditure,SPF W1 EMBL EBI,EMBL (European Molecular Biology Laboratory),99960375,12996.47,Research Grant Expenditure
BEIS,UKRI - BBSRC,19/05/2023,Research Grant Expenditure,SPF W1 EMBL EBI,EMBL (European Molecular Biology Laboratory),99960378,600.00,Research Grant Expenditure
BEIS,UKRI - BBSRC,19/05/2023,Meetings & Catering,CE - IRU,Compass Contract Services (UK) Ltd T/A Eurest Services,99960402,7.38,Meetings & Catering
BEIS,UKRI - BBSRC,22/05/2023,Research Institutes - Capital Grants: Minor Works,World Class Labs,Rothamsted Research Ltd,99959381,61168.88,Research Institutes - Capital Grants: Minor Works
BEIS,UKRI - BBSRC,22/05/2023,Research Institutes - Capital Grants: Minor Works,World Class Labs,John Innes Centre,99959698,22736.53,Research Institutes - Capital Grants: Minor Works
BEIS,UKRI - BBSRC,22/05/2023,Research Institutes - Capital Grants: Minor Works,World Class Labs,John Innes Centre,99960674,28296.00,Research Institutes - Capital Grants: Minor Works
BEIS,UKRI - BBSRC,22/05/2023,Books Professional Journals & Guides,CE - CPS,The Pirbright Institute,99960775,3105.25,Books Professional Journals & Guides
BEIS,UKRI - BBSRC,22/05/2023,T&S UK - Other Charges,Science Group,Unspecified,99960818,3.75,T&S UK - Other Charges
BEIS,UKRI - BBSRC,22/05/2023,T&S UK - Public Transport,Science Group,Unspecified,99960818,4.00,T&S UK - Public Transport
BEIS,UKRI - BBSRC,22/05/2023,T&S UK - Subsistence,Science Group,Unspecified,99960818,25.00,T&S UK - Subsistence
BEIS,UKRI - BBSRC,23/05/2023,Research Institutes - Capital Grants: Minor Works,World Class Labs,Babraham Institute,99946985,348.24,Research Institutes - Capital Grants: Minor Works
BEIS,UKRI - BBSRC,23/05/2023,Research Institutes - Competitive Strategic Grant,Research: Strategic National Capability,Quadram Institute Bioscience,99951442,904633.00,Research Institutes - Competitive Strategic Grant
BEIS,UKRI - BBSRC,23/05/2023,Research Institutes - Capital Grants: Equipment,World Class Labs,Quadram Institute Bioscience,99951475,26583.00,Research Institutes - Capital Grants: Equipment
BEIS,UKRI - BBSRC,23/05/2023,Research Institutes - Capital Grants: Equipment,World Class Labs,John Innes Centre,99951481,62333.00,Research Institutes - Capital Grants: Equipment
BEIS,UKRI - BBSRC,23/05/2023,Research Institutes - Competitive Strategic Grant,Research: Strategic National Capability,Earlham Institute,99951510,501867.00,Research Institutes - Competitive Strategic Grant
BEIS,UKRI - BBSRC,23/05/2023,Research Institutes - Capital Grants: Equipment,World Class Labs,Earlham Institute,99951513,14667.00,Research Institutes - Capital Grants: Equipment
BEIS,UKRI - BBSRC,23/05/2023,Research Institutes - Capital Grants: Equipment,World Class Labs,Earlham Institute,99951514,31474.58,Research Institutes - Capital Grants: Equipment
BEIS,UKRI - BBSRC,23/05/2023,Research Institutes - Competitive Strategic Grant,Research: Strategic National Capability,John Innes Centre,99951516,1214963.00,Research Institutes - Competitive Strategic Grant
BEIS,UKRI - BBSRC,23/05/2023,Research Institutes - Capital Grants: Equipment,World Class Labs,Babraham Institute,99951569,31166.00,Research Institutes - Capital Grants: Equipment
BEIS,UKRI - BBSRC,23/05/2023,Research Institutes - Competitive Strategic Grant,Research: Strategic National Capability,Babraham Institute,99951691,966766.00,Research Institutes - Competitive Strategic Grant
BEIS,UKRI - BBSRC,23/05/2023,Research Institutes - Capital Grants: Equipment,World Class Labs,Rothamsted Research Ltd,99952883,51333.33,Research Institutes - Capital Grants: Equipment
BEIS,UKRI - BBSRC,23/05/2023,Research Institutes - Competitive Strategic Grant,Research: Strategic National Capability,Rothamsted Research Ltd,99952958,963516.59,Research Institutes - Competitive Strategic Grant
BEIS,UKRI - BBSRC,23/05/2023,Research Institutes - Capital Grants: Equipment,World Class Labs,Aberystwyth University,99954445,6916.67,Research Institutes - Capital Grants: Equipment
BEIS,UKRI - BBSRC,23/05/2023,Research Institutes - Competitive Strategic Grant,Research: Strategic National Capability,Aberystwyth University,99954448,156866.67,Research Institutes - Competitive Strategic Grant
BEIS,UKRI - BBSRC,23/05/2023,Research Institutes - Competitive Strategic Grant,Research: Strategic National Capability,The Pirbright Institute,99957536,1463116.66,Research Institutes - Competitive Strategic Grant
BEIS,UKRI - BBSRC,23/05/2023,Research Institutes - Competitive Strategic Grant,Research: Strategic National Capability,The Pirbright Institute,99957537,384500.00,Research Institutes - Competitive Strategic Grant
BEIS,UKRI - BBSRC,23/05/2023,Research Grant Expenditure,Research: Strategic,Aberystwyth University,99958052,13174.00,Research Grant Expenditure
BEIS,UKRI - BBSRC,23/05/2023,Research Institutes - Capital Grants: Minor Works,JIC,John Innes Centre,99959705,104657.47,Research Institutes - Capital Grants: Minor Works
BEIS,UKRI - BBSRC,23/05/2023,Research Institutes - Capital Grants: Minor Works,World Class Labs,Quadram Institute Bioscience,99959708,88415.16,Research Institutes - Capital Grants: Minor Works
BEIS,UKRI - BBSRC,23/05/2023,Research Institutes - Capital Grants: Equipment,World Class Labs,The Pirbright Institute,99960774,42166.67,Research Institutes - Capital Grants: Equipment
BEIS,UKRI - BBSRC,23/05/2023,Research Institutes - Capital Grants: Equipment,World Class Labs,University of Edinburgh,99960781,10583.33,Research Institutes - Capital Grants: Equipment
BEIS,UKRI - BBSRC,23/05/2023,Research Institutes - Competitive Strategic Grant,Research: Strategic National Capability,University of Edinburgh,99960782,582283.33,Research Institutes - Competitive Strategic Grant
BEIS,UKRI - BBSRC,23/05/2023,Research Grant Expenditure,SPF W1 EMBL EBI,EMBL (European Molecular Biology Laboratory),99962151,318552.04,Research Grant Expenditure
BEIS,UKRI - BBSRC,23/05/2023,Research Grant Expenditure,SPF W1 EMBL EBI,EMBL (European Molecular Biology Laboratory),99963098,2049.30,Research Grant Expenditure
BEIS,UKRI - BBSRC,23/05/2023,T&S UK - Other Charges,CE - IRU,Unspecified,99963199,7.45,T&S UK - Other Charges
BEIS,UKRI - BBSRC,23/05/2023,T&S UK - Public Transport,CE - IRU,Unspecified,99963199,18.60,T&S UK - Public Transport
BEIS,UKRI - BBSRC,23/05/2023,T&S UK - Other Charges,CE - IRU,Unspecified,99963200,6.05,T&S UK - Other Charges
BEIS,UKRI - BBSRC,23/05/2023,T&S UK - Public Transport,CE - IRU,Unspecified,99963200,11.90,T&S UK - Public Transport
BEIS,UKRI - BBSRC,23/05/2023,T&S UK - Subsistence,CE - IRU,Unspecified,99963200,8.25,T&S UK - Subsistence
BEIS,UKRI - BBSRC,24/05/2023,Unspecified,CE - IRU,Unspecified,99955623,3656.08,Legal & Professional Services
BEIS,UKRI - BBSRC,24/05/2023,Research Grant Expenditure,NPIF EMBL EBI,EMBL (European Molecular Biology Laboratory),99956629,1023780.65,Research Grant Expenditure
BEIS,UKRI - BBSRC,24/05/2023,Research Institutes - Capital Grants: Major Works,John Innes Centre (JIC) - WCL 2020 Uplift,John Innes Centre,99959740,786360.43,Research Institutes - Capital Grants: Major Works
BEIS,UKRI - BBSRC,24/05/2023,Non-staff travel and subsistance,Science Group - Delivery Function,Unspecified,99959933,2003.91,Non-staff travel and subsistance
BEIS,UKRI - BBSRC,24/05/2023,Conferences & Seminars,Science Group,Calder Conference Ltd,99960694,8120.00,Conferences & Seminars
BEIS,UKRI - BBSRC,24/05/2023,Unspecified,Science Group � Admin Function,Unspecified,99962578,340.00,Council & Committee Honoraria
BEIS,UKRI - BBSRC,24/05/2023,Non-staff travel and subsistance,Science Group � Admin Function,Unspecified,99962579,967.17,Non-staff travel and subsistance
BEIS,UKRI - BBSRC,24/05/2023,Unspecified,Science Group � Admin Function,Unspecified,99962580,170.00,Council & Committee Honoraria
BEIS,UKRI - BBSRC,24/05/2023,Unspecified,Science Group � Admin Function,Unspecified,99962581,170.00,Council & Committee Honoraria
BEIS,UKRI - BBSRC,24/05/2023,Research Institutes - Capital Grants: Minor Works,World Class Labs,Babraham Institute,99962625,218119.42,Research Institutes - Capital Grants: Minor Works
BEIS,UKRI - BBSRC,24/05/2023,Research Institutes - Capital Grants: Minor Works,World Class Labs,Babraham Institute,99962629,109369.87,Research Institutes - Capital Grants: Minor Works
BEIS,UKRI - BBSRC,24/05/2023,Research Institutes - Capital Grants: Minor Works,World Class Labs,Quadram Institute Bioscience,99963458,96068.00,Research Institutes - Capital Grants: Minor Works
BEIS,UKRI - BBSRC,24/05/2023,Research Institutes - Capital Grants: Minor Works,World Class Labs,Rothamsted Research Ltd,99963468,175385.59,Research Institutes - Capital Grants: Minor Works
BEIS,UKRI - BBSRC,24/05/2023,T&S UK - Other Charges,CE - IRU,Unspecified,99963591,3.20,T&S UK - Other Charges
BEIS,UKRI - BBSRC,24/05/2023,T&S UK - Public Transport,CE - IRU,Unspecified,99963591,10.60,T&S UK - Public Transport
BEIS,UKRI - BBSRC,24/05/2023,T&S UK - Subsistence,CE - IRU,Unspecified,99963591,8.35,T&S UK - Subsistence
BEIS,UKRI - BBSRC,24/05/2023,T&S UK - Public Transport,CE - IRU,Unspecified,99963592,17.20,T&S UK - Public Transport
BEIS,UKRI - BBSRC,24/05/2023,T&S UK - Subsistence,CE - IRU,Unspecified,99963592,3.70,T&S UK - Subsistence
BEIS,UKRI - BBSRC,24/05/2023,T&S UK - Subsistence,CE - IRU,Unspecified,99963592,4.00,T&S UK - Subsistence
BEIS,UKRI - BBSRC,24/05/2023,T&S UK - Public Transport,CE - IRU,Unspecified,99963593,9.00,T&S UK - Public Transport
BEIS,UKRI - BBSRC,24/05/2023,T&S UK - Subsistence,CE - IRU,Unspecified,99963593,34.14,T&S UK - Subsistence
BEIS,UKRI - BBSRC,24/05/2023,T&S UK - Subsistence,CE - IRU,Unspecified,99963593,8.67,T&S UK - Subsistence
BEIS,UKRI - BBSRC,24/05/2023,T&S UK - Other Charges,Science Group,Unspecified,99963594,31.44,T&S UK - Other Charges
BEIS,UKRI - BBSRC,24/05/2023,T&S UK - Public Transport,Innovation and Skills Group,Unspecified,99963595,58.00,T&S UK - Public Transport
BEIS,UKRI - BBSRC,25/05/2023,Research Institutes - Capital Grants: Minor Works,World Class Labs,The Pirbright Institute,99963680,41765.27,Research Institutes - Capital Grants: Minor Works
BEIS,UKRI - BBSRC,25/05/2023,T&S UK - Other Charges,Innovation and Skills Group,Unspecified,99964223,14.60,T&S UK - Other Charges
BEIS,UKRI - BBSRC,25/05/2023,T&S UK - Public Transport,Innovation and Skills Group,Unspecified,99964223,23.80,T&S UK - Public Transport
BEIS,UKRI - BBSRC,26/05/2023,Non-staff travel and subsistance,Science Group � Admin Function,Unspecified,99964953,86.15,Non-staff travel and subsistance
BEIS,UKRI - BBSRC,26/05/2023,Unspecified,Science Group � Admin Function,Unspecified,99964954,170.00,Council & Committee Honoraria
BEIS,UKRI - BBSRC,26/05/2023,T&S UK - Vehicle Hire,CIMG - Director,Enterprise Rent-A-Car UK Ltd,99965088,107.32,T&S UK - Vehicle Hire
BEIS,UKRI - BBSRC,26/05/2023,T&S UK - Vehicle Hire,CIMG - Director,Enterprise Rent-A-Car UK Ltd,99965088,21.46,T&S UK - Vehicle Hire
BEIS,UKRI - BBSRC,26/05/2023,T&S UK - Vehicle Hire,FG - Estates,Enterprise Rent-A-Car UK Ltd,99965088,129.06,T&S UK - Vehicle Hire
BEIS,UKRI - BBSRC,26/05/2023,T&S UK - Vehicle Hire,FG - Estates,Enterprise Rent-A-Car UK Ltd,99965088,76.51,T&S UK - Vehicle Hire
BEIS,UKRI - BBSRC,26/05/2023,T&S UK - Vehicle Hire,FG - Estates,Enterprise Rent-A-Car UK Ltd,99965088,41.11,T&S UK - Vehicle Hire
BEIS,UKRI - BBSRC,30/05/2023,Research Institutes - Capital Grants: Minor Works,World Class Labs,Rothamsted Research Ltd,99944087,532978.09,Research Institutes - Capital Grants: Minor Works
BEIS,UKRI - BBSRC,30/05/2023,Research Institutes - Capital Grants: Minor Works,World Class Labs,Rothamsted Research Ltd,99951229,59219.70,Research Institutes - Capital Grants: Minor Works
BEIS,UKRI - BBSRC,30/05/2023,Meetings & Catering,CIMG - Director,Compass Contract Services (UK) Ltd T/A Eurest Services,99964839,54.72,Meetings & Catering
BEIS,UKRI - BBSRC,30/05/2023,Research Institutes - Capital Grants: Minor Works,Rothamsted Research,Rothamsted Research Ltd,99964875,4918.37,Research Institutes - Capital Grants: Minor Works
BEIS,UKRI - BBSRC,30/05/2023,Other Programme Costs,Innovation and Skills Group CDSU,NNFCC Ltd,99965328,3600.96,Other Programme Costs
BEIS,UKRI - BBSRC,30/05/2023,Other Programme Costs,Innovation and Skills Group CDSU,NNFCC Ltd,99965557,3914.40,Other Programme Costs
BEIS,UKRI - BBSRC,30/05/2023,T&S UK - Other Charges,Science Group,Unspecified,99965666,163.45,T&S UK - Other Charges
BEIS,UKRI - BBSRC,30/05/2023,T&S UK - Public Transport,Science Group,Unspecified,99965666,69.10,T&S UK - Public Transport
BEIS,UKRI - BBSRC,30/05/2023,T&S UK - Subsistence,Science Group,Unspecified,99965666,5.75,T&S UK - Subsistence
BEIS,UKRI - BBSRC,31/05/2023,Research Grant Expenditure,SPF W1 EMBL EBI,EMBL (European Molecular Biology Laboratory),99959499,163744.82,Research Grant Expenditure
BEIS,UKRI - BBSRC,31/05/2023,Unspecified,Science Group,AnimalhealthEurope,99964339,6080.24,Legal & Professional Services
BEIS,UKRI - BBSRC,31/05/2023,Unspecified,CE - IRU,Unspecified,99964559,36242.36,Legal & Professional Services
BEIS,UKRI - BBSRC,31/05/2023,Research Grant Expenditure,Impact & Knowledge Exchange,Rothamsted Enterprises Ltd,99965436,-10000.00,Research Grant Expenditure
BEIS,UKRI - UKRI,02/05/2023,Unspecified,UKRI HR � Operations,Conflict Management Plus Ltd t/a CMP Resolutions,99883201,33405.00,Legal & Professional Services
BEIS,UKRI - UKRI,02/05/2023,Health & Safety (inc. Medicals & Opticians),"UKRI - Data Policy, Governance and MI",Unspecified,99938604,100.00,Health & Safety (inc. Medicals & Opticians)
BEIS,UKRI - UKRI,02/05/2023,Unspecified,UKRI - Digital Data and Technology Project Costs,Sanderson Government and Defence Ltd,99942152,20318.40,Contract Staff
BEIS,UKRI - UKRI,02/05/2023,Unspecified,UKRI - Digital Data and Technology Project Costs,Alexander Mann Solutions Ltd,99944858,2217.35,Contract Staff
BEIS,UKRI - UKRI,02/05/2023,Staff Training,UKRI - Information Governance,Clearwater Consult and Coach Ltd,99945872,1000.00,Staff Training
BEIS,UKRI - EPSRC,02/05/2023,Other Programme Costs,Physical Sciences and Materials,Radboud University Nijmegen,99945965,69537.33,Other Programme Costs
BEIS,UKRI - UKRI,02/05/2023,Unspecified,UKRI - Digital Data and Technology BAU Costs,Alexander Mann Solutions Ltd,99946043,4927.44,Contract Staff
BEIS,UKRI - UKRI,02/05/2023,Unspecified,UKRI - Digital Data and Technology Project Costs,Alexander Mann Solutions Ltd,99946050,4851.42,Contract Staff
BEIS,UKRI - UKRI,02/05/2023,Unspecified,UKRI - Digital Data and Technology Project Costs,Alexander Mann Solutions Ltd,99946114,2956.46,Contract Staff
BEIS,UKRI - UKRI,02/05/2023,Unspecified,UKRI - Digital Data and Technology Project Costs,Alexander Mann Solutions Ltd,99946119,4434.70,Contract Staff
BEIS,UKRI - UKRI,02/05/2023,Unspecified,UKRI - Digital Data and Technology Project Costs,Alexander Mann Solutions Ltd,99946854,2646.24,Contract Staff
BEIS,UKRI - UKRI,02/05/2023,Unspecified,UKRI - Estates - Brussels Office,Proximus SA,99948525,1428.20,Legal & Professional Services
BEIS,UKRI - UKRI,02/05/2023,Overseas - Professional Memberships & Subscriptions,International Policy and Stakeholder Engagement,Science Europe,99949780,124810.85,Overseas - Professional Memberships & Subscriptions
BEIS,UKRI - UKRI,02/05/2023,Computer Software Licences,UKRI - Digital Data and Technology BAU Costs,iSpring Solutions Inc,99949971,1398.62,Computer Software Licences
BEIS,UKRI - EPSRC,02/05/2023,Reward & Recognition Team Advances,Balance Sheet,EDENRED (UK GROUP) LTD,99950109,2380.00,Reward & Recognition Team Advances
BEIS,UKRI - UKRI,02/05/2023,Unspecified,UKRI - Digital Data and Technology BAU Costs,Alexander Mann Solutions Ltd,99950115,4927.44,Contract Staff
BEIS,UKRI - UKRI,02/05/2023,Unspecified,UKRI HR - Corporate Projects,Alexander Mann Solutions Ltd,99950118,2217.35,Contract Staff
BEIS,UKRI - UKRI,02/05/2023,Unspecified,UKRI-SHARP,Alexander Mann Solutions Ltd,99950120,4311.48,Contract Staff
BEIS,UKRI - UKRI,02/05/2023,Unspecified,UKRI-SHARP,Alexander Mann Solutions Ltd,99950123,1575.12,Agency Staff
BEIS,UKRI - UKRI,02/05/2023,Unspecified,UKRI-SHARP,Alexander Mann Solutions Ltd,99950126,3150.30,Contract Staff
BEIS,UKRI - UKRI,02/05/2023,Unspecified,UKRI-SHARP,Alexander Mann Solutions Ltd,99950127,3018.84,Contract Staff
BEIS,UKRI - UKRI,02/05/2023,Unspecified,UKRI-SHARP,Alexander Mann Solutions Ltd,99950131,2463.72,Contract Staff
BEIS,UKRI - UKRI,02/05/2023,Unspecified,UKRI - Digital Data and Technology Project Costs,Alexander Mann Solutions Ltd,99950132,3695.58,Contract Staff
BEIS,UKRI - EPSRC,02/05/2023,Reward & Recognition Team Advances,Balance Sheet,EDENRED (UK GROUP) LTD,99950135,4200.00,Reward & Recognition Team Advances
BEIS,UKRI - UKRI,02/05/2023,Unspecified,UKRI HR - CPO Office,Alexander Mann Solutions Ltd,99950136,6159.30,Agency Staff
BEIS,UKRI - UKRI,02/05/2023,Unspecified,UKRI-SHARP,Alexander Mann Solutions Ltd,99950139,3387.66,Contract Staff
BEIS,UKRI - EPSRC,02/05/2023,Unspecified,Directors and Deputy Directors,Alexander Mann Solutions Ltd,99950140,1698.31,Agency Staff
BEIS,UKRI - UKRI,02/05/2023,Unspecified,UKRI - Digital Data and Technology Project Costs,Alexander Mann Solutions Ltd,99950143,3695.58,Contract Staff
BEIS,UKRI - UKRI,02/05/2023,Unspecified,UKRI-SHARP,Alexander Mann Solutions Ltd,99950149,3202.85,Contract Staff
BEIS,UKRI - UKRI,02/05/2023,Unspecified,Reforming Our Business,Alexander Mann Solutions Ltd,99950151,2032.60,Agency Staff
BEIS,UKRI - UKRI,02/05/2023,Unspecified,UKRI-SHARP,Alexander Mann Solutions Ltd,99950159,3150.30,Agency Staff
BEIS,UKRI - EPSRC,02/05/2023,Fees (Including College Members),Circular Economy OpEx,Lighthouse Sustainability Ltd,99950162,480.00,Fees (Including College Members)
BEIS,UKRI - EPSRC,02/05/2023,Non-staff travel and subsistance,Circular Economy OpEx,Lighthouse Sustainability Ltd,99950162,43.55,Non-staff travel and subsistance
BEIS,UKRI - UKRI,02/05/2023,Unspecified,UKRI HR � Operations,Alexander Mann Solutions Ltd,99950166,1575.12,Agency Staff
BEIS,UKRI - UKRI,02/05/2023,Unspecified,UKRI HR - Corporate Projects,Alexander Mann Solutions Ltd,99950172,3276.29,Contract Staff
BEIS,UKRI - UKRI,02/05/2023,Unspecified,UKRI-SHARP,Alexander Mann Solutions Ltd,99950174,3695.58,Contract Staff
BEIS,UKRI - UKRI,02/05/2023,Unspecified,Horizon Europe OPEX,Alexander Mann Solutions Ltd,99950176,2126.47,Agency Staff
BEIS,UKRI - UKRI,02/05/2023,Unspecified,UKRI HR - Corporate Projects,Alexander Mann Solutions Ltd,99950188,405.96,Contract Staff
BEIS,UKRI - UKRI,02/05/2023,Unspecified,UKRI - Digital Data and Technology Project Costs,Alexander Mann Solutions Ltd,99950200,2646.24,Contract Staff
BEIS,UKRI - UKRI,02/05/2023,Unspecified,UKRI-SHARP,Alexander Mann Solutions Ltd,99950216,4065.19,Contract Staff
BEIS,UKRI - UKRI,02/05/2023,Unspecified,UKRI - Digital Data and Technology Project Costs,Alexander Mann Solutions Ltd,99950221,3387.66,Contract Staff
BEIS,UKRI - UKRI,02/05/2023,Unspecified,Horizon Europe OPEX,Alexander Mann Solutions Ltd,99950226,3150.30,Agency Staff
BEIS,UKRI - UKRI,02/05/2023,Unspecified,UKRI - Strategic Finance Business Partners,Alexander Mann Solutions Ltd,99950231,3307.80,Contract Staff
BEIS,UKRI - UKRI,02/05/2023,Health & Safety (inc. Medicals & Opticians),UKRI - Health and Safety,Abbey Business Interiors Ltd,99950254,60.00,Health & Safety (inc. Medicals & Opticians)
BEIS,UKRI - UKRI,02/05/2023,Unspecified,International Policy and Stakeholder Engagement,Abbey Business Interiors Ltd,99950257,362.40,Legal & Professional Services
BEIS,UKRI - UKRI,02/05/2023,Unspecified,UKRI - Digital Data and Technology BAU Costs,Technology Strategy Board (Innovate UK),99950272,402182.56,Secondments
BEIS,UKRI - UKRI,02/05/2023,Mechanical & Electrical Maintenance,UKRI - JBOS,ISS Mediclean Ltd,99950298,4564.61,Mechanical & Electrical Maintenance
BEIS,UKRI - EPSRC,02/05/2023,GPC Clearing - EPSRC,Balance Sheet,Unspecified,99950411,-203.43,GPC Clearing - EPSRC
BEIS,UKRI - UKRI,02/05/2023,T&S Overseas - Other Charges,North America Office - Canada,Unspecified,99950411,7.28,T&S Overseas - Other Charges
BEIS,UKRI - UKRI,02/05/2023,T&S Overseas - Public Transport,North America Office - Canada,Unspecified,99950411,189.55,T&S Overseas - Public Transport
BEIS,UKRI - UKRI,02/05/2023,T&S Overseas - Subsistence,North America Office - Canada,Unspecified,99950411,17.49,T&S Overseas - Subsistence
BEIS,UKRI - UKRI,02/05/2023,T&S Overseas - Subsistence,North America Office - Canada,Unspecified,99950411,6.60,T&S Overseas - Subsistence
BEIS,UKRI - UKRI,02/05/2023,T&S UK - Accommodation,UKRI - Digital Data and Technology BAU Costs,Unspecified,99950412,76.95,T&S UK - Accommodation
BEIS,UKRI - UKRI,02/05/2023,T&S UK - Mileage,UKRI - Digital Data and Technology BAU Costs,Unspecified,99950412,19.80,T&S UK - Mileage
BEIS,UKRI - UKRI,02/05/2023,T&S UK - Other Charges,UKRI - Digital Data and Technology BAU Costs,Unspecified,99950412,3.70,T&S UK - Other Charges
BEIS,UKRI - UKRI,02/05/2023,T&S UK - Parking Tolls Congestion Charges,UKRI - Digital Data and Technology BAU Costs,Unspecified,99950412,78.19,T&S UK - Parking Tolls Congestion Charges
BEIS,UKRI - UKRI,02/05/2023,T&S UK - Public Transport,UKRI - Digital Data and Technology BAU Costs,Unspecified,99950412,21.50,T&S UK - Public Transport
BEIS,UKRI - UKRI,02/05/2023,T&S UK - Subsistence,UKRI - Digital Data and Technology BAU Costs,Unspecified,99950412,63.23,T&S UK - Subsistence
BEIS,UKRI - UKRI,02/05/2023,T&S UK - Other Charges,"UKRI HR � Culture, Inclusion and Learning",Unspecified,99950413,29.99,T&S UK - Other Charges
BEIS,UKRI - UKRI,02/05/2023,T&S UK - Other Charges,"UKRI HR � Culture, Inclusion and Learning",Unspecified,99950413,14.35,T&S UK - Other Charges
BEIS,UKRI - UKRI,02/05/2023,T&S UK - Parking Tolls Congestion Charges,"UKRI HR � Culture, Inclusion and Learning",Unspecified,99950413,8.90,T&S UK - Parking Tolls Congestion Charges
BEIS,UKRI - UKRI,02/05/2023,T&S UK - Public Transport,"UKRI HR � Culture, Inclusion and Learning",Unspecified,99950413,18.00,T&S UK - Public Transport
BEIS,UKRI - UKRI,02/05/2023,T&S UK - Subsistence,"UKRI HR � Culture, Inclusion and Learning",Unspecified,99950413,47.55,T&S UK - Subsistence
BEIS,UKRI - UKRI,02/05/2023,T&S UK - Subsistence,"UKRI HR � Culture, Inclusion and Learning",Unspecified,99950413,15.15,T&S UK - Subsistence
BEIS,UKRI - UKRI,02/05/2023,T&S UK - Public Transport,UKRI - Communications Content,Unspecified,99950414,28.91,T&S UK - Public Transport
BEIS,UKRI - UKRI,02/05/2023,T&S UK - Public Transport,UKRI - Communications Content,Unspecified,99950414,13.90,T&S UK - Public Transport
BEIS,UKRI - UKRI,02/05/2023,T&S UK - Subsistence,UKRI - Communications Content,Unspecified,99950414,23.65,T&S UK - Subsistence
BEIS,UKRI - EPSRC,02/05/2023,GPC Clearing - EPSRC,Balance Sheet,Unspecified,99950415,-164.80,GPC Clearing - EPSRC
BEIS,UKRI - Research England,02/05/2023,T&S UK - Accommodation,RE - Executive Group,Unspecified,99950415,109.00,T&S UK - Accommodation
BEIS,UKRI - Research England,02/05/2023,T&S UK - Parking Tolls Congestion Charges,RE - Executive Group,Unspecified,99950415,38.30,T&S UK - Parking Tolls Congestion Charges
BEIS,UKRI - Research England,02/05/2023,T&S UK - Public Transport,RE - Executive Group,Unspecified,99950415,46.65,T&S UK - Public Transport
BEIS,UKRI - Research England,02/05/2023,T&S UK - Public Transport,RE - Executive Group,Unspecified,99950415,40.15,T&S UK - Public Transport
BEIS,UKRI - UKRI,02/05/2023,Recruitment Costs,UKRI HR � Operations,Agenda Resource Management Ltd,99950755,4376.08,Recruitment Costs
BEIS,UKRI - EPSRC,02/05/2023,Conferences & Seminars,Manufacturing and Circular Economy,Calder Conference Ltd,99950905,2374.00,Conferences & Seminars
BEIS,UKRI - UKRI,02/05/2023,Unspecified,Horizon Europe OPEX,Reed Specialist Recruitment Ltd,99950908,3405.00,Agency Staff
BEIS,UKRI - UKRI,02/05/2023,Unspecified,Horizon Europe OPEX,Reed Specialist Recruitment Ltd,99950909,2724.01,Agency Staff
BEIS,UKRI - UKRI,02/05/2023,General Building Maintenance,UKRI - JBOS,ISS Mediclean Ltd,99951048,9147.20,General Building Maintenance
BEIS,UKRI - UKRI,02/05/2023,T&S UK - Subsistence,UKRI - Counter Fraud,Unspecified,99951059,13.75,T&S UK - Subsistence
BEIS,UKRI - UKRI,02/05/2023,T&S UK - Subsistence,UKRI - Digital Data and Technology BAU Costs,Unspecified,99951060,4.50,T&S UK - Subsistence
BEIS,UKRI - UKRI,02/05/2023,T&S UK - Vehicle Hire,UKRI - Digital Data and Technology BAU Costs,Unspecified,99951060,105.75,T&S UK - Vehicle Hire
BEIS,UKRI - UKRI,02/05/2023,T&S UK - Public Transport,UKRI - Digital Data and Technology BAU Costs,Unspecified,99951061,15.96,T&S UK - Public Transport
BEIS,UKRI - UKRI,02/05/2023,T&S UK - Subsistence,UKRI - Digital Data and Technology BAU Costs,Unspecified,99951061,43.00,T&S UK - Subsistence
BEIS,UKRI - UKRI,02/05/2023,T&S UK - Vehicle Hire,UKRI - Digital Data and Technology BAU Costs,Unspecified,99951061,261.45,T&S UK - Vehicle Hire
BEIS,UKRI - UKRI,02/05/2023,T&S UK - Vehicle Hire,UKRI-SHARP,Unspecified,99951062,35.01,T&S UK - Vehicle Hire
BEIS,UKRI - EPSRC,02/05/2023,T&S UK - Mileage,Partnerships Directorate,Unspecified,99951063,94.50,T&S UK - Mileage
BEIS,UKRI - EPSRC,02/05/2023,T&S UK - Other Charges,Partnerships Directorate,Unspecified,99951063,7.30,T&S UK - Other Charges
BEIS,UKRI - EPSRC,02/05/2023,T&S UK - Public Transport,Partnerships Directorate,Unspecified,99951063,32.50,T&S UK - Public Transport
BEIS,UKRI - EPSRC,02/05/2023,T&S UK - Public Transport,Partnerships Directorate,Unspecified,99951063,43.10,T&S UK - Public Transport
BEIS,UKRI - EPSRC,02/05/2023,T&S UK - Subsistence,Partnerships Directorate,Unspecified,99951063,8.98,T&S UK - Subsistence
BEIS,UKRI - UKRI,02/05/2023,T&S UK - Mileage,UKRI-SHARP,Unspecified,99951065,27.00,T&S UK - Mileage
BEIS,UKRI - UKRI,02/05/2023,T&S UK - Other Charges,UKRI-SHARP,Unspecified,99951065,6.80,T&S UK - Other Charges
BEIS,UKRI - UKRI,02/05/2023,T&S UK - Other Charges,UKRI - Counter Fraud,Unspecified,99951066,21.00,T&S UK - Other Charges
BEIS,UKRI - EPSRC,02/05/2023,T&S UK - Subsistence,Partnerships Directorate,Unspecified,99951067,48.32,T&S UK - Subsistence
BEIS,UKRI - EPSRC,02/05/2023,T&S UK - Subsistence,Partnerships Directorate,Unspecified,99951067,28.19,T&S UK - Subsistence
BEIS,UKRI - UKRI,02/05/2023,T&S UK - Public Transport,UKRI - Procurement and Commercial,Unspecified,99951068,18.90,T&S UK - Public Transport
BEIS,UKRI - UKRI,03/05/2023,Vehicle Leasing Costs,UKRI - JBOS,Enterprise Rent-A-Car UK Ltd,99878873,1150.68,Vehicle Leasing Costs
BEIS,UKRI - UKRI,03/05/2023,Hardware/Software Maintenance,UKRI - Digital Data and Technology Recharges,BYTES SOFTWARE SERVICES LTD,99906289,13015.12,Hardware/Software Maintenance
BEIS,UKRI - UKRI,03/05/2023,Unspecified,UKRI - Digital Data and Technology Project Costs,Alexander Mann Solutions Ltd,99944871,5851.32,Contract Staff
BEIS,UKRI - UKRI,03/05/2023,Unspecified,UKRI - Digital Data and Technology Project Costs,Alexander Mann Solutions Ltd,99944883,1755.40,Contract Staff
BEIS,UKRI - UKRI,03/05/2023,T&S Overseas - Other Charges,Open Research,Unspecified,99944930,11.32,T&S Overseas - Other Charges
BEIS,UKRI - UKRI,03/05/2023,T&S Overseas - Public Transport,Open Research,Unspecified,99944930,21.65,T&S Overseas - Public Transport
BEIS,UKRI - UKRI,03/05/2023,T&S Overseas - Public Transport,Open Research,Unspecified,99944930,17.99,T&S Overseas - Public Transport
BEIS,UKRI - UKRI,03/05/2023,T&S Overseas - Subsistence,Open Research,Unspecified,99944930,13.37,T&S Overseas - Subsistence
BEIS,UKRI - UKRI,03/05/2023,T&S Overseas - Subsistence,Open Research,Unspecified,99944930,35.25,T&S Overseas - Subsistence
BEIS,UKRI - UKRI,03/05/2023,T&S Overseas - Subsistence,Open Research,Unspecified,99944930,13.42,T&S Overseas - Subsistence
BEIS,UKRI - UKRI,03/05/2023,T&S UK - Mileage,Open Research,Unspecified,99944931,28.80,T&S UK - Mileage
BEIS,UKRI - UKRI,03/05/2023,T&S UK - Other Charges,Open Research,Unspecified,99944931,2.69,T&S UK - Other Charges
BEIS,UKRI - UKRI,03/05/2023,T&S UK - Parking Tolls Congestion Charges,Open Research,Unspecified,99944931,7.00,T&S UK - Parking Tolls Congestion Charges
BEIS,UKRI - UKRI,03/05/2023,T&S UK - Public Transport,Open Research,Unspecified,99944931,16.90,T&S UK - Public Transport
BEIS,UKRI - UKRI,03/05/2023,T&S UK - Subsistence,Open Research,Unspecified,99944931,7.69,T&S UK - Subsistence
BEIS,UKRI - UKRI,03/05/2023,Unspecified,UKRI - Digital Data and Technology Project Costs,Alexander Mann Solutions Ltd,99946079,2520.24,Contract Staff
BEIS,UKRI - UKRI,03/05/2023,Unspecified,UKRI - Digital Data and Technology Project Costs,Alexander Mann Solutions Ltd,99950112,2520.24,Contract Staff
BEIS,UKRI - UKRI,03/05/2023,Unspecified,UKRI - Digital Data and Technology Project Costs,Alexander Mann Solutions Ltd,99950133,3780.36,Contract Staff
BEIS,UKRI - UKRI,03/05/2023,Unspecified,UKRI - Digital Data and Technology Project Costs,Alexander Mann Solutions Ltd,99950137,1539.80,Contract Staff
BEIS,UKRI - UKRI,03/05/2023,Unspecified,UKRI - Digital Data and Technology Project Costs,Alexander Mann Solutions Ltd,99950137,1539.82,Contract Staff
BEIS,UKRI - UKRI,03/05/2023,Unspecified,UKRI - Digital Data and Technology Project Costs,Alexander Mann Solutions Ltd,99950144,3150.30,Contract Staff
BEIS,UKRI - UKRI,03/05/2023,Unspecified,UKRI-SHARP,Alexander Mann Solutions Ltd,99950168,3166.27,Contract Staff
BEIS,UKRI - UKRI,03/05/2023,Unspecified,UKRI - Security,Alexander Mann Solutions Ltd,99950185,1385.86,Contract Staff
BEIS,UKRI - UKRI,03/05/2023,Research Grant Expenditure,UKRI - Council Partnership and Performance,Know.Consulting Ltd T/A Know.Space,99950205,34488.00,Research Grant Expenditure
BEIS,UKRI - UKRI,03/05/2023,Unspecified,UKRI-SHARP,Alexander Mann Solutions Ltd,99950207,4003.56,Contract Staff
BEIS,UKRI - UKRI,03/05/2023,Unspecified,UKRI-SHARP,Alexander Mann Solutions Ltd,99950209,4249.86,Contract Staff
BEIS,UKRI - UKRI,03/05/2023,Unspecified,UKRI - Digital Data and Technology Project Costs,Alexander Mann Solutions Ltd,99950211,3150.30,Contract Staff
BEIS,UKRI - UKRI,03/05/2023,Unspecified,UKRI - Strategic Finance Business Partners,Alexander Mann Solutions Ltd,99950214,1260.12,Agency Staff
BEIS,UKRI - EPSRC,03/05/2023,Unspecified,Directors and Deputy Directors,Alexander Mann Solutions Ltd,99950233,577.43,Agency Staff
BEIS,UKRI - UKRI,03/05/2023,Unspecified,UKRI-SHARP,Alexander Mann Solutions Ltd,99950235,2898.24,Contract Staff
BEIS,UKRI - UKRI,03/05/2023,Unspecified,UKRI-SHARP,Alexander Mann Solutions Ltd,99950237,2205.18,Agency Staff
BEIS,UKRI - UKRI,03/05/2023,Health & Safety (inc. Medicals & Opticians),UKRI - Health and Safety,AM Health & Safety Ltd,99950405,1080.00,Health & Safety (inc. Medicals & Opticians)
BEIS,UKRI - UKRI,03/05/2023,Unspecified,UKRI People and Organisation Development,Alexander Mann Solutions Ltd,99950459,-1260.10,Agency Staff
BEIS,UKRI - UKRI,03/05/2023,Unspecified,UKRI HR � Operations,Alexander Mann Solutions Ltd,99950460,1260.10,Agency Staff
BEIS,UKRI - UKRI,03/05/2023,Printing & Stationery,UKRI - JBOS,Rapid Electronics Ltd,99950466,4.68,Printing & Stationery
BEIS,UKRI - EPSRC,03/05/2023,Fees (Including College Members),Institutes,Unspecified,99950486,160.00,Fees (Including College Members)
BEIS,UKRI - UKRI,03/05/2023,Computer Software,UKRI - Digital Data and Technology BAU Costs,Phoenix Software Ltd,99950750,7.80,Computer Software
BEIS,UKRI - EPSRC,03/05/2023,Non-staff travel and subsistance,Exec Chair Support,Unspecified,99951181,15.95,Non-staff travel and subsistance
BEIS,UKRI - EPSRC,03/05/2023,Fees (Including College Members),Digital Security and resilience,Unspecified,99951191,160.00,Fees (Including College Members)
BEIS,UKRI - EPSRC,03/05/2023,Fees (Including College Members),Digital Security and resilience,Unspecified,99951192,80.00,Fees (Including College Members)
BEIS,UKRI - EPSRC,03/05/2023,Fees (Including College Members),Digital Security and resilience,Unspecified,99951193,160.00,Fees (Including College Members)
BEIS,UKRI - EPSRC,03/05/2023,Fees (Including College Members),Digital Security and resilience,Unspecified,99951194,160.00,Fees (Including College Members)
BEIS,UKRI - UKRI,03/05/2023,Unspecified,UKRI-SHARP,LA International Computer Consultants Ltd,99951204,3293.40,Contract Staff
BEIS,UKRI - UKRI,03/05/2023,Cleaning & Sterilisation,UKRI - Estates,RS Components,99951228,4.14,Cleaning & Sterilisation
BEIS,UKRI - EPSRC,03/05/2023,GPC Clearing - EPSRC,Balance Sheet,Unspecified,99951298,-142.00,GPC Clearing - EPSRC
BEIS,UKRI - UKRI,03/05/2023,T&S UK - Other Charges,"Governance, Assurance and Operations",Unspecified,99951298,4.35,T&S UK - Other Charges
BEIS,UKRI - UKRI,03/05/2023,T&S UK - Public Transport,"Governance, Assurance and Operations",Unspecified,99951298,56.32,T&S UK - Public Transport
BEIS,UKRI - UKRI,03/05/2023,T&S UK - Public Transport,"Governance, Assurance and Operations",Unspecified,99951298,5.50,T&S UK - Public Transport
BEIS,UKRI - UKRI,03/05/2023,T&S UK - Subsistence,"Governance, Assurance and Operations",Unspecified,99951298,15.05,T&S UK - Subsistence
BEIS,UKRI - UKRI,03/05/2023,T&S UK - Subsistence,"Governance, Assurance and Operations",Unspecified,99951298,86.86,T&S UK - Subsistence
BEIS,UKRI - UKRI,03/05/2023,T&S UK - Subsistence,"Governance, Assurance and Operations",Unspecified,99951298,31.93,T&S UK - Subsistence
BEIS,UKRI - UKRI,03/05/2023,T&S UK - Public Transport,UKRI - Counter Fraud,Unspecified,99951299,20.00,T&S UK - Public Transport
BEIS,UKRI - UKRI,03/05/2023,T&S UK - Subsistence,UKRI - Counter Fraud,Unspecified,99951299,14.00,T&S UK - Subsistence
BEIS,UKRI - UKRI,03/05/2023,T&S UK - Subsistence,UKRI - Counter Fraud,Unspecified,99951299,50.00,T&S UK - Subsistence
BEIS,UKRI - UKRI,03/05/2023,T&S UK - Subsistence,UKRI - Counter Fraud,Unspecified,99951299,7.65,T&S UK - Subsistence
BEIS,UKRI - UKRI,03/05/2023,T&S UK - Public Transport,UKRI - UKRO,Unspecified,99951300,4.42,T&S UK - Public Transport
BEIS,UKRI - UKRI,03/05/2023,T&S UK - Subsistence,UKRI - UKRO,Unspecified,99951300,46.65,T&S UK - Subsistence
BEIS,UKRI - UKRI,03/05/2023,T&S UK - Subsistence,UKRI - Digital Data and Technology BAU Costs,Unspecified,99951301,42.00,T&S UK - Subsistence
BEIS,UKRI - EPSRC,03/05/2023,T&S UK - Accommodation,Digital Security and resilience,Unspecified,99951303,327.00,T&S UK - Accommodation
BEIS,UKRI - EPSRC,03/05/2023,T&S UK - Public Transport,Digital Security and resilience,Unspecified,99951303,19.20,T&S UK - Public Transport
BEIS,UKRI - EPSRC,03/05/2023,T&S UK - Subsistence,Digital Security and resilience,Unspecified,99951303,40.30,T&S UK - Subsistence
BEIS,UKRI - EPSRC,03/05/2023,T&S UK - Subsistence,Digital Security and resilience,Unspecified,99951303,19.20,T&S UK - Subsistence
BEIS,UKRI - EPSRC,03/05/2023,T&S UK - Other Charges,EDI and People,Unspecified,99951304,4.29,T&S UK - Other Charges
BEIS,UKRI - EPSRC,03/05/2023,T&S UK - Parking Tolls Congestion Charges,AI and Robotics OpEx,Unspecified,99951306,26.20,T&S UK - Parking Tolls Congestion Charges
BEIS,UKRI - EPSRC,03/05/2023,T&S UK - Public Transport,AI and Robotics OpEx,Unspecified,99951306,15.20,T&S UK - Public Transport
BEIS,UKRI - EPSRC,03/05/2023,T&S UK - Subsistence,AI and Robotics OpEx,Unspecified,99951306,31.90,T&S UK - Subsistence
BEIS,UKRI - UKRI,03/05/2023,T&S UK - Other Charges,UKRI HR � Operations,Unspecified,99951307,7.40,T&S UK - Other Charges
BEIS,UKRI - UKRI,03/05/2023,T&S UK - Subsistence,UKRI HR � Operations,Unspecified,99951307,25.00,T&S UK - Subsistence
BEIS,UKRI - UKRI,03/05/2023,T&S UK - Subsistence,UKRI HR � Operations,Unspecified,99951307,7.90,T&S UK - Subsistence
BEIS,UKRI - UKRI,03/05/2023,T&S UK - Flights,"UKRI HR � Culture, Inclusion and Learning",Unspecified,99951308,127.00,T&S UK - Flights
BEIS,UKRI - UKRI,03/05/2023,T&S UK - Other Charges,"UKRI HR � Culture, Inclusion and Learning",Unspecified,99951308,20.20,T&S UK - Other Charges
BEIS,UKRI - UKRI,03/05/2023,T&S UK - Public Transport,"UKRI HR � Culture, Inclusion and Learning",Unspecified,99951308,79.00,T&S UK - Public Transport
BEIS,UKRI - UKRI,03/05/2023,T&S UK - Subsistence,"UKRI HR � Culture, Inclusion and Learning",Unspecified,99951308,93.36,T&S UK - Subsistence
BEIS,UKRI - UKRI,03/05/2023,T&S UK - Subsistence,"UKRI HR � Culture, Inclusion and Learning",Unspecified,99951308,43.87,T&S UK - Subsistence
BEIS,UKRI - UKRI,03/05/2023,T&S UK - Other Charges,UKRI HR � Reward and Relations,Unspecified,99951310,8.30,T&S UK - Other Charges
BEIS,UKRI - UKRI,03/05/2023,T&S UK - Public Transport,UKRI HR � Reward and Relations,Unspecified,99951310,84.70,T&S UK - Public Transport
BEIS,UKRI - UKRI,03/05/2023,T&S UK - Subsistence,UKRI HR � Reward and Relations,Unspecified,99951310,6.84,T&S UK - Subsistence
BEIS,UKRI - UKRI,03/05/2023,T&S UK - Subsistence,UKRI HR � Reward and Relations,Unspecified,99951310,110.91,T&S UK - Subsistence
BEIS,UKRI - UKRI,03/05/2023,T&S UK - Subsistence,UKRI HR � Reward and Relations,Unspecified,99951310,19.47,T&S UK - Subsistence
BEIS,UKRI - EPSRC,03/05/2023,T&S UK - Other Charges,EDI and People,Unspecified,99951311,11.40,T&S UK - Other Charges
BEIS,UKRI - EPSRC,03/05/2023,T&S UK - Public Transport,EDI and People,Unspecified,99951311,9.00,T&S UK - Public Transport
BEIS,UKRI - EPSRC,03/05/2023,T&S UK - Public Transport,EDI and People,Unspecified,99951311,7.40,T&S UK - Public Transport
BEIS,UKRI - EPSRC,03/05/2023,T&S UK - Subsistence,EDI and People,Unspecified,99951311,10.28,T&S UK - Subsistence
BEIS,UKRI - UKRI,03/05/2023,T&S UK - Public Transport,UKRI HR � Reward and Relations,Unspecified,99951312,12.30,T&S UK - Public Transport
BEIS,UKRI - UKRI,03/05/2023,T&S UK - Mileage,UKRI-SHARP,Unspecified,99951314,78.30,T&S UK - Mileage
BEIS,UKRI - UKRI,03/05/2023,T&S UK - Parking Tolls Congestion Charges,UKRI-SHARP,Unspecified,99951314,6.70,T&S UK - Parking Tolls Congestion Charges
BEIS,UKRI - UKRI,03/05/2023,T&S UK - Subsistence,UKRI-SHARP,Unspecified,99951314,25.00,T&S UK - Subsistence
BEIS,UKRI - UKRI,03/05/2023,T&S UK - Mileage,UKRI - Communications Projects and Services,Unspecified,99951315,66.60,T&S UK - Mileage
BEIS,UKRI - UKRI,03/05/2023,T&S UK - Mileage,UKRI - Communications Projects and Services,Unspecified,99951315,5.20,T&S UK - Mileage
BEIS,UKRI - UKRI,03/05/2023,T&S UK - Subsistence,UKRI - Communications Projects and Services,Unspecified,99951315,3.50,T&S UK - Subsistence
BEIS,UKRI - UKRI,03/05/2023,T&S UK - Subsistence,UKRI - Strategic Finance Business Partners,Unspecified,99951316,15.95,T&S UK - Subsistence
BEIS,UKRI - UKRI,03/05/2023,T&S UK - Subsistence,UKRI - Strategic Finance Business Partners,Unspecified,99951316,10.00,T&S UK - Subsistence
BEIS,UKRI - EPSRC,03/05/2023,T&S UK - Accommodation,UKRI Strategic Themes,Unspecified,99951317,151.99,T&S UK - Accommodation
BEIS,UKRI - EPSRC,03/05/2023,T&S UK - Mileage,UKRI Strategic Themes,Unspecified,99951317,128.25,T&S UK - Mileage
BEIS,UKRI - EPSRC,03/05/2023,T&S UK - Parking Tolls Congestion Charges,UKRI Strategic Themes,Unspecified,99951317,8.20,T&S UK - Parking Tolls Congestion Charges
BEIS,UKRI - EPSRC,03/05/2023,T&S UK - Public Transport,UKRI Strategic Themes,Unspecified,99951317,7.20,T&S UK - Public Transport
BEIS,UKRI - EPSRC,03/05/2023,T&S UK - Subsistence,UKRI Strategic Themes,Unspecified,99951317,18.35,T&S UK - Subsistence
BEIS,UKRI - EPSRC,03/05/2023,T&S UK - Subsistence,UKRI Strategic Themes,Unspecified,99951317,12.05,T&S UK - Subsistence
BEIS,UKRI - UKRI,03/05/2023,T&S UK - Public Transport,UKRI - Counter Fraud,Unspecified,99951318,23.00,T&S UK - Public Transport
BEIS,UKRI - UKRI,03/05/2023,T&S UK - Subsistence,UKRI - Counter Fraud,Unspecified,99951318,14.00,T&S UK - Subsistence
BEIS,UKRI - UKRI,03/05/2023,T&S UK - Subsistence,UKRI - Counter Fraud,Unspecified,99951318,50.00,T&S UK - Subsistence
BEIS,UKRI - UKRI,03/05/2023,T&S UK - Subsistence,UKRI - Counter Fraud,Unspecified,99951318,16.05,T&S UK - Subsistence
BEIS,UKRI - UKRI,03/05/2023,T&S UK - Public Transport,UKRI - Digital Data and Technology BAU Costs,Unspecified,99951319,40.15,T&S UK - Public Transport
BEIS,UKRI - UKRI,03/05/2023,T&S UK - Subsistence,UKRI - Digital Data and Technology BAU Costs,Unspecified,99951319,25.20,T&S UK - Subsistence
BEIS,UKRI - UKRI,03/05/2023,T&S UK - Subsistence,UKRI - Digital Data and Technology BAU Costs,Unspecified,99951319,25.00,T&S UK - Subsistence
BEIS,UKRI - UKRI,03/05/2023,T&S UK - Public Transport,UKRI - UKRO,Unspecified,99951320,11.86,T&S UK - Public Transport
BEIS,UKRI - UKRI,03/05/2023,T&S UK - Subsistence,UKRI - UKRO,Unspecified,99951320,31.33,T&S UK - Subsistence
BEIS,UKRI - UKRI,03/05/2023,T&S UK - Subsistence,UKRI - UKRO,Unspecified,99951320,8.05,T&S UK - Subsistence
BEIS,UKRI - UKRI,03/05/2023,Health & Safety (inc. Medicals & Opticians),International Policy and Stakeholder Engagement,Unspecified,99951321,25.00,Health & Safety (inc. Medicals & Opticians)
BEIS,UKRI - UKRI,03/05/2023,T&S UK - Other Charges,International Policy and Stakeholder Engagement,Unspecified,99951321,5.65,T&S UK - Other Charges
BEIS,UKRI - UKRI,03/05/2023,T&S UK - Subsistence,International Policy and Stakeholder Engagement,Unspecified,99951321,10.65,T&S UK - Subsistence
BEIS,UKRI - UKRI,03/05/2023,T&S Overseas - Public Transport,International Policy and Stakeholder Engagement,Unspecified,99951322,11.07,T&S Overseas - Public Transport
BEIS,UKRI - UKRI,03/05/2023,T&S Overseas - Subsistence,International Policy and Stakeholder Engagement,Unspecified,99951322,17.72,T&S Overseas - Subsistence
BEIS,UKRI - UKRI,03/05/2023,T&S Overseas - Subsistence,International Policy and Stakeholder Engagement,Unspecified,99951322,19.91,T&S Overseas - Subsistence
BEIS,UKRI - UKRI,03/05/2023,Unspecified,UKRI - Funding Service,LA International Computer Consultants Ltd,99951755,3593.40,Contract Staff
BEIS,UKRI - UKRI,03/05/2023,Unspecified,UKRI-SHARP,LA International Computer Consultants Ltd,99951756,2693.40,Contract Staff
BEIS,UKRI - UKRI,03/05/2023,Unspecified,UKRI-SHARP,LA International Computer Consultants Ltd,99951758,2693.40,Contract Staff
BEIS,UKRI - UKRI,03/05/2023,Unspecified,UKRI-SHARP,LA International Computer Consultants Ltd,99951759,3593.40,Contract Staff
BEIS,UKRI - UKRI,03/05/2023,Unspecified,UKRI-SHARP,LA International Computer Consultants Ltd,99951763,3593.40,Contract Staff
BEIS,UKRI - UKRI,03/05/2023,Overseas - Professional Memberships & Subscriptions,UKRI - Estates,Institute of Workplace and Facilities Management,99951777,199.00,Overseas - Professional Memberships & Subscriptions
BEIS,UKRI - UKRI,03/05/2023,Other prepayments,UKRI - Overseas Office China,Equals Group Plc,99951788,10000.00,Other prepayments
BEIS,UKRI - UKRI,03/05/2023,Unspecified,Horizon Europe OPEX,Hays Specialist Recruitment Ltd,99951793,9193.00,Agency Staff
BEIS,UKRI - UKRI,03/05/2023,Unspecified,Horizon Europe OPEX,Hays Specialist Recruitment Ltd,99951795,16190.09,Agency Staff
BEIS,UKRI - UKRI,03/05/2023,Unspecified,Horizon Europe OPEX,Hays Specialist Recruitment Ltd,99951798,9490.74,Agency Staff
BEIS,UKRI - UKRI,03/05/2023,Unspecified,Horizon Europe OPEX,Hays Specialist Recruitment Ltd,99951802,15631.81,Agency Staff
BEIS,UKRI - UKRI,03/05/2023,Unspecified,UKRI-SHARP,LA International Computer Consultants Ltd,99951826,2693.40,Contract Staff
BEIS,UKRI - UKRI,03/05/2023,Unspecified,UKRI-SHARP,LA International Computer Consultants Ltd,99951834,2500.08,Contract Staff
BEIS,UKRI - UKRI,03/05/2023,Unspecified,UKRI-SHARP,LA International Computer Consultants Ltd,99951846,3383.40,Contract Staff
BEIS,UKRI - EPSRC,04/05/2023,T&S UK - Public Transport,Business Engagement,Veezu Ltd,99935813,124.93,T&S UK - Public Transport
BEIS,UKRI - EPSRC,04/05/2023,T&S UK - Public Transport,Business Engagement,Veezu Ltd,99935813,242.50,T&S UK - Public Transport
BEIS,UKRI - EPSRC,04/05/2023,T&S UK - Public Transport,Business Engagement,Veezu Ltd,99935813,193.15,T&S UK - Public Transport
BEIS,UKRI - EPSRC,04/05/2023,T&S UK - Public Transport,Business Engagement,Veezu Ltd,99935813,189.00,T&S UK - Public Transport
BEIS,UKRI - EPSRC,04/05/2023,T&S UK - Public Transport,Directors and Deputy Directors,Veezu Ltd,99935813,35.56,T&S UK - Public Transport
BEIS,UKRI - EPSRC,04/05/2023,T&S UK - Public Transport,Directors and Deputy Directors,Veezu Ltd,99935813,10.50,T&S UK - Public Transport
BEIS,UKRI - EPSRC,04/05/2023,T&S UK - Public Transport,Directors and Deputy Directors,Veezu Ltd,99935813,8.70,T&S UK - Public Transport
BEIS,UKRI - EPSRC,04/05/2023,T&S UK - Public Transport,Directors and Deputy Directors,Veezu Ltd,99935813,13.50,T&S UK - Public Transport
BEIS,UKRI - EPSRC,04/05/2023,T&S UK - Public Transport,Directors and Deputy Directors,Veezu Ltd,99935813,14.10,T&S UK - Public Transport
BEIS,UKRI - EPSRC,04/05/2023,T&S UK - Public Transport,Directors and Deputy Directors,Veezu Ltd,99935813,131.00,T&S UK - Public Transport
BEIS,UKRI - EPSRC,04/05/2023,T&S UK - Public Transport,Manufacturing and Circular Economy,Veezu Ltd,99935813,98.00,T&S UK - Public Transport
BEIS,UKRI - EPSRC,04/05/2023,T&S UK - Public Transport,Manufacturing and Circular Economy,Veezu Ltd,99935813,245.80,T&S UK - Public Transport
BEIS,UKRI - EPSRC,04/05/2023,T&S UK - Public Transport,Manufacturing and Circular Economy,Veezu Ltd,99935813,244.20,T&S UK - Public Transport
BEIS,UKRI - EPSRC,04/05/2023,Meetings & Catering,Business Engagement,Veezu Ltd,99943035,500.45,Meetings & Catering
BEIS,UKRI - EPSRC,04/05/2023,Meetings & Catering,Business Engagement,Veezu Ltd,99943035,100.09,Meetings & Catering
BEIS,UKRI - EPSRC,04/05/2023,T&S UK - Public Transport,Directors and Deputy Directors,Veezu Ltd,99943035,21.00,T&S UK - Public Transport
BEIS,UKRI - EPSRC,04/05/2023,T&S UK - Public Transport,Directors and Deputy Directors,Veezu Ltd,99943035,4.20,T&S UK - Public Transport
BEIS,UKRI - UKRI,04/05/2023,Unspecified,UKRI - Digital Data and Technology Project Costs,Alexander Mann Solutions Ltd,99944878,1663.02,Contract Staff
BEIS,UKRI - UKRI,04/05/2023,Unspecified,UKRI - Digital Data and Technology Project Costs,Alexander Mann Solutions Ltd,99946110,2217.36,Contract Staff
BEIS,UKRI - UKRI,04/05/2023,Unspecified,UKRI - Digital Data and Technology Project Costs,Alexander Mann Solutions Ltd,99950155,2771.70,Contract Staff
BEIS,UKRI - UKRI,04/05/2023,Recruitment Costs,UKRI HR � Operations,Agenda Resource Management Ltd,99950748,252.00,Recruitment Costs
BEIS,UKRI - UKRI,04/05/2023,Unspecified,UKRI - Digital Data and Technology Project Costs,Unspecified,99951346,1250.00,Legal & Professional Services
BEIS,UKRI - Research England,04/05/2023,Non-staff travel and subsistance,RE - UK RPIF,Unspecified,99951366,439.90,Non-staff travel and subsistance
BEIS,UKRI - UKRI,04/05/2023,Recruitment Costs,UKRI HR � Operations,Warwick University Services Ltd,99951463,564.00,Recruitment Costs
BEIS,UKRI - UKRI,04/05/2023,Computer Software Licences,UKRI - Digital Data and Technology BAU Costs,Microsoft Ireland Operations Ltd,99951470,1019.71,Computer Software Licences
BEIS,UKRI - UKRI,04/05/2023,Computer Software Licences,UKRI - Digital Data and Technology BAU Costs,Microsoft Ireland Operations Ltd,99951478,122.60,Computer Software Licences
BEIS,UKRI - UKRI,04/05/2023,Computer Software Licences,UKRI - Digital Data and Technology BAU Costs,Microsoft Ireland Operations Ltd,99951485,103.18,Computer Software Licences
BEIS,UKRI - UKRI,04/05/2023,Unspecified,Horizon Europe OPEX,Hays Specialist Recruitment Ltd,99951487,8021.21,Agency Staff
BEIS,UKRI - UKRI,04/05/2023,Computer Software Licences,UKRI - Digital Data and Technology BAU Costs,Microsoft Ireland Operations Ltd,99951488,37.50,Computer Software Licences
BEIS,UKRI - UKRI,04/05/2023,Computer Software Licences,UKRI - Digital Data and Technology BAU Costs,Microsoft Ireland Operations Ltd,99951489,1054.16,Computer Software Licences
BEIS,UKRI - UKRI,04/05/2023,Computer Software Licences,UKRI - Digital Data and Technology BAU Costs,Microsoft Ireland Operations Ltd,99951491,1021.09,Computer Software Licences
BEIS,UKRI - UKRI,04/05/2023,Computer Software Licences,UKRI - Digital Data and Technology BAU Costs,Microsoft Ireland Operations Ltd,99951519,1058.14,Computer Software Licences
BEIS,UKRI - UKRI,04/05/2023,Computer Software Licences,UKRI - Digital Data and Technology BAU Costs,Microsoft Ireland Operations Ltd,99951522,1056.87,Computer Software Licences
BEIS,UKRI - UKRI,04/05/2023,Computer Software Licences,UKRI - Digital Data and Technology BAU Costs,Microsoft Ireland Operations Ltd,99951524,1022.93,Computer Software Licences
BEIS,UKRI - UKRI,04/05/2023,Computer Software Licences,UKRI - Digital Data and Technology BAU Costs,Microsoft Ireland Operations Ltd,99951525,1051.77,Computer Software Licences
BEIS,UKRI - UKRI,04/05/2023,Consumables,UKRI - JRS,Antalis Ltd t/a Antalis Document Supplies,99951563,0.01,Consumables
BEIS,UKRI - UKRI,04/05/2023,Consumables,UKRI - JRS,Antalis Ltd t/a Antalis Document Supplies,99951563,337.79,Consumables
BEIS,UKRI - UKRI,04/05/2023,Purchase of non capital equipment,UKRI HR � Resourcing,Senator International Ltd,99951594,1518.34,Purchase of non capital equipment
BEIS,UKRI - EPSRC,04/05/2023,Conferences & Seminars,Regional Engagement - OpEx,Calder Conference Ltd,99951609,1593.80,Conferences & Seminars
BEIS,UKRI - EPSRC,04/05/2023,Fees (Including College Members),Business Improvement,Unspecified,99952199,320.00,Fees (Including College Members)
BEIS,UKRI - EPSRC,04/05/2023,Fees (Including College Members),Business Improvement,Unspecified,99952200,320.00,Fees (Including College Members)
BEIS,UKRI - EPSRC,04/05/2023,Non-staff travel and subsistance,Business Improvement,Unspecified,99952201,240.00,Non-staff travel and subsistance
BEIS,UKRI - EPSRC,04/05/2023,Non-staff travel and subsistance,Business Improvement,Unspecified,99952202,240.00,Non-staff travel and subsistance
BEIS,UKRI - EPSRC,04/05/2023,Non-staff travel and subsistance,Business Improvement,Unspecified,99952203,240.00,Non-staff travel and subsistance
BEIS,UKRI - EPSRC,04/05/2023,Non-staff travel and subsistance,Business Improvement,Unspecified,99952204,240.00,Non-staff travel and subsistance
BEIS,UKRI - EPSRC,04/05/2023,Non-staff travel and subsistance,Business Improvement,Unspecified,99952205,240.00,Non-staff travel and subsistance
BEIS,UKRI - EPSRC,04/05/2023,Non-staff travel and subsistance,Business Improvement,Unspecified,99952206,240.00,Non-staff travel and subsistance
BEIS,UKRI - EPSRC,04/05/2023,Consultancy Services,EDI and People,Unspecified,99952237,26547.93,Consultancy Services
BEIS,UKRI - UKRI,04/05/2023,Unspecified,UKRI - BEIS ODA,Department for Business Energy & Industrial Strategy,99952307,193.20,Secondments
BEIS,UKRI - UKRI,04/05/2023,Unspecified,UKRI HR � Public and Senior Appointments,Department for Business Energy & Industrial Strategy,99952312,20578.32,Secondments
BEIS,UKRI - UKRI,04/05/2023,T&S UK - Mileage,UKRI HR � Operations,Unspecified,99952384,35.10,T&S UK - Mileage
BEIS,UKRI - EPSRC,04/05/2023,T&S UK - Public Transport,Manufacturing and Circular Economy,Unspecified,99952385,10.00,T&S UK - Public Transport
BEIS,UKRI - EPSRC,04/05/2023,T&S UK - Subsistence,Manufacturing and Circular Economy,Unspecified,99952385,22.11,T&S UK - Subsistence
BEIS,UKRI - EPSRC,04/05/2023,T&S UK - Subsistence,Manufacturing and Circular Economy,Unspecified,99952385,4.90,T&S UK - Subsistence
BEIS,UKRI - Research England,04/05/2023,T&S UK - Mileage,RE - Operations and Private Office,Unspecified,99952386,25.20,T&S UK - Mileage
BEIS,UKRI - Research England,04/05/2023,T&S UK - Parking Tolls Congestion Charges,RE - Operations and Private Office,Unspecified,99952386,8.90,T&S UK - Parking Tolls Congestion Charges
BEIS,UKRI - UKRI,04/05/2023,T&S UK - Public Transport,UKRI - Strategic Finance Business Partners,Unspecified,99952387,102.69,T&S UK - Public Transport
BEIS,UKRI - UKRI,04/05/2023,T&S UK - Other Charges,UKRI HR � Business Partnering,Unspecified,99952388,2.19,T&S UK - Other Charges
BEIS,UKRI - UKRI,04/05/2023,T&S UK - Subsistence,UKRI HR � Business Partnering,Unspecified,99952388,16.35,T&S UK - Subsistence
BEIS,UKRI - UKRI,04/05/2023,T&S UK - Subsistence,UKRI HR � Business Partnering,Unspecified,99952388,4.10,T&S UK - Subsistence
BEIS,UKRI - UKRI,04/05/2023,T&S UK - Vehicle Hire,UKRI HR � Business Partnering,Unspecified,99952388,44.78,T&S UK - Vehicle Hire
BEIS,UKRI - UKRI,04/05/2023,T&S UK - Other Charges,Horizon Europe OPEX,Unspecified,99952389,270.98,T&S UK - Other Charges
BEIS,UKRI - UKRI,04/05/2023,T&S UK - Accommodation,UKRI - Security,Unspecified,99952390,100.00,T&S UK - Accommodation
BEIS,UKRI - UKRI,04/05/2023,T&S UK - Mileage,UKRI - Security,Unspecified,99952390,225.00,T&S UK - Mileage
BEIS,UKRI - UKRI,04/05/2023,T&S UK - Subsistence,UKRI - Security,Unspecified,99952390,17.00,T&S UK - Subsistence
BEIS,UKRI - Research England,04/05/2023,T&S UK - Mileage,RE - Insight and Engagement,Unspecified,99952391,35.10,T&S UK - Mileage
BEIS,UKRI - UKRI,04/05/2023,T&S UK - Other Charges,UKRI - Digital Data and Technology BAU Costs,Unspecified,99952392,2.00,T&S UK - Other Charges
BEIS,UKRI - UKRI,04/05/2023,T&S UK - Subsistence,UKRI - Digital Data and Technology BAU Costs,Unspecified,99952392,13.18,T&S UK - Subsistence
BEIS,UKRI - UKRI,04/05/2023,T&S UK - Mileage,UKRI - Communications Themes and Partnerships,Unspecified,99952394,11.70,T&S UK - Mileage
BEIS,UKRI - UKRI,04/05/2023,T&S UK - Other Charges,UKRI - Communications Themes and Partnerships,Unspecified,99952394,53.30,T&S UK - Other Charges
BEIS,UKRI - UKRI,04/05/2023,T&S UK - Public Transport,UKRI - Communications Themes and Partnerships,Unspecified,99952394,13.80,T&S UK - Public Transport
BEIS,UKRI - UKRI,04/05/2023,T&S UK - Subsistence,UKRI - Communications Themes and Partnerships,Unspecified,99952394,18.43,T&S UK - Subsistence
BEIS,UKRI - UKRI,04/05/2023,T&S UK - Subsistence,UKRI - Communications Themes and Partnerships,Unspecified,99952394,15.75,T&S UK - Subsistence
BEIS,UKRI - UKRI,04/05/2023,T&S UK - Subsistence,UKRI - Communications Themes and Partnerships,Unspecified,99952394,24.82,T&S UK - Subsistence
BEIS,UKRI - UKRI,04/05/2023,T&S UK - Mileage,UKRI HR � Business Partnering,Unspecified,99952395,153.00,T&S UK - Mileage
BEIS,UKRI - UKRI,04/05/2023,T&S UK - Subsistence,UKRI HR � Business Partnering,Unspecified,99952395,3.00,T&S UK - Subsistence
BEIS,UKRI - UKRI,04/05/2023,T&S UK - Subsistence,UKRI HR � Business Partnering,Unspecified,99952395,23.50,T&S UK - Subsistence
BEIS,UKRI - UKRI,04/05/2023,T&S UK - Subsistence,UKRI HR � Business Partnering,Unspecified,99952395,10.69,T&S UK - Subsistence
BEIS,UKRI - UKRI,04/05/2023,T&S UK - Mileage,UKRI HR � Operations,Unspecified,99952396,31.50,T&S UK - Mileage
BEIS,UKRI - UKRI,04/05/2023,Health & Safety (inc. Medicals & Opticians),UKRI - Strategic Finance Business Partners,Unspecified,99952397,54.50,Health & Safety (inc. Medicals & Opticians)
BEIS,UKRI - UKRI,04/05/2023,T&S UK - Public Transport,UKRI - Strategic Finance Business Partners,Unspecified,99952398,180.72,T&S UK - Public Transport
BEIS,UKRI - UKRI,04/05/2023,T&S Overseas - Accommodation,International Policy and Stakeholder Engagement - GCRF,Unspecified,99952401,3.45,T&S Overseas - Accommodation
BEIS,UKRI - UKRI,04/05/2023,T&S Overseas - Subsistence,International Policy and Stakeholder Engagement - GCRF,Unspecified,99952401,2.43,T&S Overseas - Subsistence
BEIS,UKRI - UKRI,04/05/2023,T&S Overseas - Subsistence,International Policy and Stakeholder Engagement - GCRF,Unspecified,99952401,35.49,T&S Overseas - Subsistence
BEIS,UKRI - UKRI,04/05/2023,T&S Overseas - Subsistence,International Policy and Stakeholder Engagement - GCRF,Unspecified,99952401,25.91,T&S Overseas - Subsistence
BEIS,UKRI - UKRI,04/05/2023,T&S UK - Public Transport,UKRI - Communications External Affairs,Unspecified,99952402,58.85,T&S UK - Public Transport
BEIS,UKRI - UKRI,05/05/2023,Unspecified,UKRI - Governance,Conflict Management Plus Ltd t/a CMP Resolutions,99926785,18414.00,Legal & Professional Services
BEIS,UKRI - UKRI,05/05/2023,Corporate Events,UKRI - Communications Projects and Services,Town Quay Developments Ltd,99930027,5058.00,Corporate Events
BEIS,UKRI - EPSRC,05/05/2023,Recruitment Costs,Directors and Deputy Directors,Onefix Recruitment Ltd,99935450,120.00,Recruitment Costs
BEIS,UKRI - UKRI,05/05/2023,Unspecified,UKRI - Digital Data and Technology Project Costs,Alexander Mann Solutions Ltd,99935868,2402.14,Contract Staff
BEIS,UKRI - UKRI,05/05/2023,Unspecified,UKRI - Digital Data and Technology Project Costs,Alexander Mann Solutions Ltd,99935868,1601.42,Contract Staff
BEIS,UKRI - UKRI,05/05/2023,Unspecified,UKRI - Digital Data and Technology Project Costs,Alexander Mann Solutions Ltd,99943844,3202.85,Contract Staff
BEIS,UKRI - UKRI,05/05/2023,Unspecified,UKRI - Digital Data and Technology Project Costs,Alexander Mann Solutions Ltd,99944866,2032.60,Contract Staff
BEIS,UKRI - UKRI,05/05/2023,Unspecified,UKRI - Digital Data and Technology Project Costs,LA International Computer Consultants Ltd,99945261,2156.04,Contract Staff
BEIS,UKRI - UKRI,05/05/2023,Unspecified,UKRI - Digital Data and Technology Project Costs,LA International Computer Consultants Ltd,99945262,2156.04,Contract Staff
BEIS,UKRI - UKRI,05/05/2023,Unspecified,UKRI - Digital Data and Technology Project Costs,Alexander Mann Solutions Ltd,99946046,2032.60,Contract Staff
BEIS,UKRI - UKRI,05/05/2023,Unspecified,UKRI - Digital Data and Technology Project Costs,Alexander Mann Solutions Ltd,99946053,2520.24,Contract Staff
BEIS,UKRI - UKRI,05/05/2023,Unspecified,UKRI - Digital Data and Technology Project Costs,Alexander Mann Solutions Ltd,99946130,4003.56,Contract Staff
BEIS,UKRI - UKRI,05/05/2023,Unspecified,UKRI - Digital Data and Technology Project Costs,LA International Computer Consultants Ltd,99946148,2874.72,Contract Staff
BEIS,UKRI - UKRI,05/05/2023,Unspecified,UKRI - Digital Data and Technology Project Costs,LA International Computer Consultants Ltd,99946152,2874.72,Contract Staff
BEIS,UKRI - UKRI,05/05/2023,T&S UK - Other Charges,UKRI - Digital Data and Technology BAU Costs,Unspecified,99947118,251.28,T&S UK - Other Charges
BEIS,UKRI - UKRI,05/05/2023,T&S UK - Other Charges,UKRI - Strategic Finance Business Partners,Unspecified,99947120,19.49,T&S UK - Other Charges
BEIS,UKRI - UKRI,05/05/2023,Unspecified,UKRI - Funding Service,UK Shared Business Services Ltd,99948507,97331.00,Legal & Professional Services
BEIS,UKRI - UKRI,05/05/2023,Computer Software Licences,UKRI - Digital Data and Technology BAU Costs,Phoenix Software Ltd,99949244,2524.21,Computer Software Licences
BEIS,UKRI - UKRI,05/05/2023,Computer Software Licences,UKRI - Digital Data and Technology BAU Costs,Phoenix Software Ltd,99949273,37861.57,Computer Software Licences
BEIS,UKRI - UKRI,05/05/2023,Unspecified,UKRI - Digital Data and Technology Project Costs,LA International Computer Consultants Ltd,99949364,4881.18,Contract Staff
BEIS,UKRI - UKRI,05/05/2023,Unspecified,UKRI - Funding Service,Alexander Mann Solutions Ltd,99950128,4619.52,Legal & Professional Services
BEIS,UKRI - UKRI,05/05/2023,Unspecified,UKRI - Funding Service,Alexander Mann Solutions Ltd,99950145,4896.66,Contract Staff
BEIS,UKRI - UKRI,05/05/2023,Unspecified,UKRI - Funding Service,Alexander Mann Solutions Ltd,99950148,3780.36,Legal & Professional Services
BEIS,UKRI - UKRI,05/05/2023,Unspecified,UKRI - Funding Service,Alexander Mann Solutions Ltd,99950150,3849.54,Legal & Professional Services
BEIS,UKRI - UKRI,05/05/2023,Unspecified,UKRI - Digital Data and Technology Project Costs,Alexander Mann Solutions Ltd,99950153,3937.86,Contract Staff
BEIS,UKRI - UKRI,05/05/2023,Unspecified,UKRI - Funding Service,Alexander Mann Solutions Ltd,99950161,3465.30,Legal & Professional Services
BEIS,UKRI - UKRI,05/05/2023,Unspecified,UKRI - Digital Data and Technology Project Costs,Alexander Mann Solutions Ltd,99950167,4003.56,Contract Staff
BEIS,UKRI - UKRI,05/05/2023,Unspecified,UKRI - Funding Service,Alexander Mann Solutions Ltd,99950170,4003.56,Legal & Professional Services
BEIS,UKRI - UKRI,05/05/2023,Unspecified,UKRI - Digital Data and Technology Project Costs,Alexander Mann Solutions Ltd,99950219,3387.66,Contract Staff
BEIS,UKRI - UKRI,05/05/2023,Unspecified,UKRI - Funding Service,Alexander Mann Solutions Ltd,99950224,3465.30,Legal & Professional Services
BEIS,UKRI - UKRI,05/05/2023,Unspecified,UKRI - Digital Data and Technology Project Costs,Alexander Mann Solutions Ltd,99950227,3079.62,Contract Staff
BEIS,UKRI - UKRI,05/05/2023,Catering Contracts,"UKRI HR � Culture, Inclusion and Learning",Swindon Borough Council,99950273,65.93,Catering Contracts
BEIS,UKRI - UKRI,05/05/2023,Conferences & Seminars,"UKRI HR � Culture, Inclusion and Learning",Swindon Borough Council,99950273,988.59,Conferences & Seminars
BEIS,UKRI - UKRI,05/05/2023,Mechanical & Electrical Maintenance,International Head Office,Premier Farnell UK Ltd T/A Farnell Onecall,99950665,3.23,Mechanical & Electrical Maintenance
BEIS,UKRI - UKRI,05/05/2023,Printing & Stationery,International Head Office,Premier Farnell UK Ltd T/A Farnell Onecall,99950665,4.10,Printing & Stationery
BEIS,UKRI - UKRI,05/05/2023,Unspecified,UKRI - Digital Data and Technology Project Costs,LA International Computer Consultants Ltd,99950747,3904.94,Contract Staff
BEIS,UKRI - UKRI,05/05/2023,Unspecified,UKRI - Digital Data and Technology Project Costs,LA International Computer Consultants Ltd,99950752,3593.40,Contract Staff
BEIS,UKRI - UKRI,05/05/2023,Unspecified,Horizon Europe OPEX,Reed Specialist Recruitment Ltd,99950902,845.46,Agency Staff
BEIS,UKRI - UKRI,05/05/2023,Unspecified,Horizon Europe OPEX,Reed Specialist Recruitment Ltd,99950904,1064.08,Agency Staff
BEIS,UKRI - UKRI,05/05/2023,Unspecified,Horizon Europe OPEX,Reed Specialist Recruitment Ltd,99950906,690.01,Agency Staff
BEIS,UKRI - UKRI,05/05/2023,Unspecified,Horizon Europe OPEX,Reed Specialist Recruitment Ltd,99950907,857.75,Agency Staff
BEIS,UKRI - UKRI,05/05/2023,Recruitment Costs,UKRI HR � Operations,Agenda Resource Management Ltd,99951176,3569.76,Recruitment Costs
BEIS,UKRI - UKRI,05/05/2023,Unspecified,UKRI - Funding Service,LA International Computer Consultants Ltd,99951289,16034.14,Legal & Professional Services
BEIS,UKRI - UKRI,05/05/2023,Hardware/Software Maintenance,UKRI - Digital Data and Technology Recharges,BYTES SOFTWARE SERVICES LTD,99951694,147.12,Hardware/Software Maintenance
BEIS,UKRI - UKRI,05/05/2023,Consumables,UKRI - JRS,Premier Paper Group Ltd,99951700,537.60,Consumables
BEIS,UKRI - UKRI,05/05/2023,Unspecified,UKRI HR - Corporate Projects,Breaking The Silence Ltd,99951716,642.00,Legal & Professional Services
BEIS,UKRI - UKRI,05/05/2023,Postage & Courier Services,UKRI - JBOS,Unspecified,99951736,1773.18,Postage & Courier Services
BEIS,UKRI - UKRI,05/05/2023,Postage & Courier Services,UKRI - JBOS,Unspecified,99951736,5.88,Postage & Courier Services
BEIS,UKRI - UKRI,05/05/2023,Unspecified,UKRI - Digital Data and Technology Project Costs,LA International Computer Consultants Ltd,99951764,3593.40,Contract Staff
BEIS,UKRI - UKRI,05/05/2023,Unspecified,UKRI - Funding Service,LA International Computer Consultants Ltd,99951787,3853.07,Contract Staff
BEIS,UKRI - UKRI,05/05/2023,Unspecified,UKRI - Funding Service,LA International Computer Consultants Ltd,99951837,4581.18,Legal & Professional Services
BEIS,UKRI - UKRI,05/05/2023,Unspecified,UKRI - Funding Service,LA International Computer Consultants Ltd,99951839,3593.40,Contract Staff
BEIS,UKRI - UKRI,05/05/2023,Staff Training,UKRI HR - CPO Office,ASK Europe PLC,99952470,1368.00,Staff Training
BEIS,UKRI - UKRI,05/05/2023,Other Staff Benefits,UKRI - UKRO,Unspecified,99952486,1009.50,Other Staff Benefits
BEIS,UKRI - EPSRC,05/05/2023,Fees (Including College Members),Business Improvement,Unspecified,99952502,240.00,Fees (Including College Members)
BEIS,UKRI - EPSRC,05/05/2023,Fees (Including College Members),Business Improvement,Unspecified,99952503,240.00,Fees (Including College Members)
BEIS,UKRI - EPSRC,05/05/2023,Fees (Including College Members),Business Improvement,Unspecified,99952504,240.00,Fees (Including College Members)
BEIS,UKRI - UKRI,05/05/2023,Printing & Stationery,UKRI - JBOS,Banner Group Ltd,99952817,14.88,Printing & Stationery
BEIS,UKRI - UKRI,05/05/2023,Printing & Stationery,UKRI - JBOS,Banner Group Ltd,99952817,564.48,Printing & Stationery
BEIS,UKRI - UKRI,05/05/2023,Printing & Stationery,UKRI - JBOS,Banner Group Ltd,99952817,438.96,Printing & Stationery
BEIS,UKRI - UKRI,05/05/2023,Consumables,UKRI - JRS,Premier Paper Group Ltd,99952851,782.70,Consumables
BEIS,UKRI - UKRI,05/05/2023,Consumables,UKRI - JRS,Premier Paper Group Ltd,99952852,925.50,Consumables
BEIS,UKRI - UKRI,05/05/2023,Consumables,UKRI - JRS,Premier Paper Group Ltd,99952852,427.20,Consumables
BEIS,UKRI - UKRI,05/05/2023,Consumables,UKRI - JRS,Premier Paper Group Ltd,99952852,149.74,Consumables
BEIS,UKRI - UKRI,05/05/2023,Unspecified,UKRI - Estates,Sharp-Fire and Rescue Ltd,99952890,1350.00,Legal & Professional Services
BEIS,UKRI - UKRI,05/05/2023,IT / Computing Support Services,UKRI - Digital Data and Technology BAU Costs,Natterbox Ltd,99952900,1.78,IT / Computing Support Services
BEIS,UKRI - UKRI,05/05/2023,Marketing & PR,UKRI - External Communications,NLA Media Access Ltd,99952935,68215.92,Marketing & PR
BEIS,UKRI - UKRI,05/05/2023,Unspecified,UKRI - Strategic Finance Business Partners,Technology Strategy Board (Innovate UK),99952951,1708513.09,Secondments
BEIS,UKRI - UKRI,05/05/2023,Staff Training,UKRI HR - Corporate Projects,ASK Europe PLC,99952971,120.00,Staff Training
BEIS,UKRI - UKRI,05/05/2023,Staff Training,"UKRI - Data Policy, Governance and MI",LSR Training Ltd,99952978,8040.00,Staff Training
BEIS,UKRI - UKRI,05/05/2023,T&S UK - Vehicle Hire,UKRI - Digital Data and Technology BAU Costs,Enterprise Rent-A-Car UK Ltd,99953002,-12.67,T&S UK - Vehicle Hire
BEIS,UKRI - UKRI,05/05/2023,T&S UK - Vehicle Hire,UKRI - Digital Data and Technology BAU Costs,Enterprise Rent-A-Car UK Ltd,99953002,-2.53,T&S UK - Vehicle Hire
BEIS,UKRI - UKRI,05/05/2023,T&S UK - Vehicle Hire,UKRI HR � Operations,Enterprise Rent-A-Car UK Ltd,99953002,80.68,T&S UK - Vehicle Hire
BEIS,UKRI - UKRI,05/05/2023,T&S UK - Vehicle Hire,UKRI HR � Operations,Enterprise Rent-A-Car UK Ltd,99953002,88.06,T&S UK - Vehicle Hire
BEIS,UKRI - UKRI,05/05/2023,T&S UK - Vehicle Hire,UKRI HR � Operations,Enterprise Rent-A-Car UK Ltd,99953002,33.75,T&S UK - Vehicle Hire
BEIS,UKRI - UKRI,05/05/2023,Printing & Stationery,UKRI - JBOS,Id Management Systems,99953012,350.10,Printing & Stationery
BEIS,UKRI - UKRI,05/05/2023,T&S UK - Mileage,UKRI - Procurement and Commercial,Unspecified,99953071,204.00,T&S UK - Mileage
BEIS,UKRI - UKRI,05/05/2023,T&S UK - Subsistence,UKRI - Procurement and Commercial,Unspecified,99953071,62.35,T&S UK - Subsistence
BEIS,UKRI - UKRI,05/05/2023,T&S UK - Mileage,UKRI - Procurement and Commercial,Unspecified,99953072,80.10,T&S UK - Mileage
BEIS,UKRI - UKRI,05/05/2023,T&S UK - Parking Tolls Congestion Charges,UKRI - Procurement and Commercial,Unspecified,99953072,14.20,T&S UK - Parking Tolls Congestion Charges
BEIS,UKRI - UKRI,05/05/2023,T&S UK - Mileage,UKRI HR � Operations,Unspecified,99953073,35.10,T&S UK - Mileage
BEIS,UKRI - UKRI,05/05/2023,Health & Safety (inc. Medicals & Opticians),UKRI - JBOS,Unspecified,99953074,100.00,Health & Safety (inc. Medicals & Opticians)
BEIS,UKRI - UKRI,05/05/2023,T&S UK - Mileage,UKRI - Procurement and Commercial,Unspecified,99953075,60.57,T&S UK - Mileage
BEIS,UKRI - Research England,05/05/2023,T&S UK - Mileage,RE - Knowledge Exchange,Unspecified,99953076,36.90,T&S UK - Mileage
BEIS,UKRI - EPSRC,05/05/2023,T&S UK - Subsistence,Programme Delivery Impact,Unspecified,99953077,15.76,T&S UK - Subsistence
BEIS,UKRI - UKRI,05/05/2023,T&S UK - Mileage,UKRI HR � Resourcing,Unspecified,99953079,44.00,T&S UK - Mileage
BEIS,UKRI - UKRI,05/05/2023,T&S UK - Other Charges,UKRI - Communications Web and Intranet Service,Unspecified,99953080,100.00,T&S UK - Other Charges
BEIS,UKRI - Research England,05/05/2023,T&S UK - Other Charges,RE - Research,Unspecified,99953081,4.20,T&S UK - Other Charges
BEIS,UKRI - UKRI,05/05/2023,T&S UK - Mileage,UKRI HR � Operations,Unspecified,99953082,63.00,T&S UK - Mileage
BEIS,UKRI - UKRI,09/05/2023,Unspecified,UKRI - Digital Data and Technology Project Costs,Sanderson Government and Defence Ltd,99942815,19687.50,Contract Staff
BEIS,UKRI - UKRI,09/05/2023,Printing & Stationery,UKRI - JBOS,Banner Group Ltd,99946953,64.20,Printing & Stationery
BEIS,UKRI - UKRI,09/05/2023,Printing & Stationery,UKRI - JBOS,Banner Group Ltd,99946953,37.44,Printing & Stationery
BEIS,UKRI - UKRI,09/05/2023,T&S UK - Public Transport,UKRI - Procurement and Commercial,Unspecified,99949990,55.30,T&S UK - Public Transport
BEIS,UKRI - UKRI,09/05/2023,T&S UK - Subsistence,UKRI - Procurement and Commercial,Unspecified,99949990,38.39,T&S UK - Subsistence
BEIS,UKRI - UKRI,09/05/2023,Unspecified,UKRI - Digital Data and Technology Project Costs,Alexander Mann Solutions Ltd,99950114,1847.78,Contract Staff
BEIS,UKRI - UKRI,09/05/2023,Unspecified,UKRI - Digital Data and Technology Project Costs,Alexander Mann Solutions Ltd,99950114,1847.80,Contract Staff
BEIS,UKRI - UKRI,09/05/2023,Unspecified,UKRI - Digital Data and Technology Project Costs,Alexander Mann Solutions Ltd,99950146,3307.80,Contract Staff
BEIS,UKRI - UKRI,09/05/2023,Printing & Stationery,UKRI - JSS,Banner Group Ltd,99950986,31.00,Printing & Stationery
BEIS,UKRI - UKRI,09/05/2023,Unspecified,UKRI - Digital Data and Technology Project Costs,LA International Computer Consultants Ltd,99951829,2394.72,Contract Staff
BEIS,UKRI - UKRI,09/05/2023,Unspecified,Reforming Our Business,Alexander Mann Solutions Ltd,99952674,3387.66,Agency Staff
BEIS,UKRI - UKRI,09/05/2023,Unspecified,UKRI HR � Operations,Alexander Mann Solutions Ltd,99952675,1260.10,Agency Staff
BEIS,UKRI - UKRI,09/05/2023,Unspecified,UKRI-SHARP,Alexander Mann Solutions Ltd,99952684,4003.56,Contract Staff
BEIS,UKRI - UKRI,09/05/2023,Unspecified,"People, Culture and Talent Programme",Careers Research and Advisory Centre (CRAC Ltd),99952701,60763.72,Legal & Professional Services
BEIS,UKRI - UKRI,09/05/2023,Books Professional Journals & Guides,UKRI - Digital Data and Technology Library Services,Prenax Ltd,99952702,406.40,Books Professional Journals & Guides
BEIS,UKRI - UKRI,09/05/2023,Unspecified,UKRI - Strategic Finance Business Partners,Alexander Mann Solutions Ltd,99952716,3307.80,Contract Staff
BEIS,UKRI - UKRI,09/05/2023,Computer Software Licences,UKRI - Digital Data and Technology BAU Costs,Softcat plc,99953164,25065.60,Computer Software Licences
BEIS,UKRI - UKRI,09/05/2023,Unspecified,UKRI - Digital Data and Technology Project Costs,Mozaic Services Ltd,99953207,4731.00,Legal & Professional Services
BEIS,UKRI - UKRI,09/05/2023,Books Professional Journals & Guides,UKRI - Digital Data and Technology Library Services,The British Library,99953219,10.65,Books Professional Journals & Guides
BEIS,UKRI - UKRI,09/05/2023,Research Grant Expenditure,Public Engagement Programmes,Stem Learning Ltd,99953231,68295.00,Research Grant Expenditure
BEIS,UKRI - UKRI,09/05/2023,Photocopy Costs,UKRI - JRS,Kodak Ltd,99953242,1726.33,Photocopy Costs
BEIS,UKRI - UKRI,09/05/2023,Consumables,UKRI - JRS,Soyang Europe Ltd,99953255,14.40,Consumables
BEIS,UKRI - UKRI,09/05/2023,Consumables,UKRI - JRS,Soyang Europe Ltd,99953255,195.63,Consumables
BEIS,UKRI - UKRI,09/05/2023,Catering Contracts,UKRI - JBOS,Aramark Ltd,99953258,14665.21,Catering Contracts
BEIS,UKRI - UKRI,09/05/2023,General Building Maintenance,UKRI - JBOS,Government Property Agency,99953330,360.00,General Building Maintenance
BEIS,UKRI - UKRI,09/05/2023,General Building Maintenance,UKRI - JBOS,Government Property Agency,99953333,360.00,General Building Maintenance
BEIS,UKRI - UKRI,09/05/2023,General Building Maintenance,UKRI - Estates Projects,Creatif Architectural Products Ltd,99953362,780.00,General Building Maintenance
BEIS,UKRI - UKRI,09/05/2023,Health & Safety (inc. Medicals & Opticians),"UKRI - Data Policy, Governance and MI",Unspecified,99953431,75.00,Health & Safety (inc. Medicals & Opticians)
BEIS,UKRI - EPSRC,09/05/2023,Health & Safety (inc. Medicals & Opticians),Manufacturing and Circular Economy,Unspecified,99953432,49.90,Health & Safety (inc. Medicals & Opticians)
BEIS,UKRI - EPSRC,09/05/2023,T&S UK - Subsistence,Manufacturing and Circular Economy,Unspecified,99953433,6.30,T&S UK - Subsistence
BEIS,UKRI - UKRI,09/05/2023,Health & Safety (inc. Medicals & Opticians),UKRI - JRS,Unspecified,99953434,100.00,Health & Safety (inc. Medicals & Opticians)
BEIS,UKRI - Research England,09/05/2023,T&S UK - Subsistence,RE - Research,Unspecified,99953436,25.00,T&S UK - Subsistence
BEIS,UKRI - Research England,09/05/2023,T&S UK - Subsistence,RE - Research,Unspecified,99953436,8.49,T&S UK - Subsistence
BEIS,UKRI - EPSRC,09/05/2023,T&S UK - Mileage,Manufacturing and Circular Economy,Unspecified,99953437,60.30,T&S UK - Mileage
BEIS,UKRI - EPSRC,09/05/2023,T&S UK - Subsistence,Manufacturing and Circular Economy,Unspecified,99953437,14.95,T&S UK - Subsistence
BEIS,UKRI - UKRI,09/05/2023,T&S UK - Other Charges,UKRI - Public Engagement,Unspecified,99953439,41.59,T&S UK - Other Charges
BEIS,UKRI - UKRI,09/05/2023,T&S UK - Public Transport,UKRI - Public Engagement,Unspecified,99953439,13.80,T&S UK - Public Transport
BEIS,UKRI - UKRI,09/05/2023,T&S UK - Public Transport,UKRI - Public Engagement,Unspecified,99953439,1.50,T&S UK - Public Transport
BEIS,UKRI - UKRI,09/05/2023,T&S UK - Subsistence,UKRI - Public Engagement,Unspecified,99953439,5.95,T&S UK - Subsistence
BEIS,UKRI - UKRI,09/05/2023,UK - Professional Memberships & Subscriptions,UKRI - BEIS ODA,Unspecified,99953440,99.99,UK - Professional Memberships & Subscriptions
BEIS,UKRI - Research England,09/05/2023,T&S UK - Subsistence,RE - Knowledge Exchange,Unspecified,99953441,12.15,T&S UK - Subsistence
BEIS,UKRI - Research England,09/05/2023,T&S UK - Subsistence,RE - Knowledge Exchange,Unspecified,99953441,22.45,T&S UK - Subsistence
BEIS,UKRI - EPSRC,09/05/2023,T&S UK - Subsistence,Programme Delivery Energy,Unspecified,99953442,7.80,T&S UK - Subsistence
BEIS,UKRI - UKRI,09/05/2023,T&S UK - Other Charges,UKRI - Counter Fraud,Unspecified,99953443,9.60,T&S UK - Other Charges
BEIS,UKRI - UKRI,09/05/2023,T&S UK - Subsistence,UKRI - Counter Fraud,Unspecified,99953443,42.55,T&S UK - Subsistence
BEIS,UKRI - UKRI,09/05/2023,T&S UK - Subsistence,UKRI - Counter Fraud,Unspecified,99953443,28.80,T&S UK - Subsistence
BEIS,UKRI - UKRI,09/05/2023,T&S UK - Vehicle Hire,UKRI - Counter Fraud,Unspecified,99953443,74.04,T&S UK - Vehicle Hire
BEIS,UKRI - UKRI,09/05/2023,T&S UK - Parking Tolls Congestion Charges,UKRI HR � Business Partnering,Unspecified,99953444,16.40,T&S UK - Parking Tolls Congestion Charges
BEIS,UKRI - UKRI,09/05/2023,T&S UK - Subsistence,UKRI HR � Business Partnering,Unspecified,99953444,25.00,T&S UK - Subsistence
BEIS,UKRI - UKRI,09/05/2023,T&S UK - Subsistence,UKRI HR � Business Partnering,Unspecified,99953444,12.65,T&S UK - Subsistence
BEIS,UKRI - UKRI,09/05/2023,T&S UK - Vehicle Hire,UKRI HR � Business Partnering,Unspecified,99953444,57.19,T&S UK - Vehicle Hire
BEIS,UKRI - UKRI,09/05/2023,T&S UK - Mileage,UKRI HR � Business Partnering,Unspecified,99953565,55.80,T&S UK - Mileage
BEIS,UKRI - UKRI,09/05/2023,Printing & Stationery,UKRI - JBOS,Premier Farnell UK Ltd T/A Farnell Onecall,99953793,147.17,Printing & Stationery
BEIS,UKRI - UKRI,09/05/2023,Unspecified,UKRI-SHARP,Alexander Mann Solutions Ltd,99953842,2463.72,Contract Staff
BEIS,UKRI - UKRI,09/05/2023,Unspecified,UKRI-SHARP,Alexander Mann Solutions Ltd,99953874,3695.58,Contract Staff
BEIS,UKRI - UKRI,09/05/2023,Unspecified,UKRI-SHARP,Alexander Mann Solutions Ltd,99953878,3387.66,Contract Staff
BEIS,UKRI - UKRI,09/05/2023,Unspecified,UKRI - Digital Data and Technology Project Costs,Alexander Mann Solutions Ltd,99953888,3780.36,Contract Staff
BEIS,UKRI - UKRI,09/05/2023,Unspecified,UKRI - Digital Data and Technology Project Costs,Alexander Mann Solutions Ltd,99953891,3849.54,Contract Staff
BEIS,UKRI - UKRI,09/05/2023,Unspecified,UKRI-SHARP,Alexander Mann Solutions Ltd,99953895,1575.12,Agency Staff
BEIS,UKRI - UKRI,09/05/2023,Unspecified,UKRI-SHARP,Alexander Mann Solutions Ltd,99953897,3150.30,Agency Staff
BEIS,UKRI - UKRI,09/05/2023,Unspecified,UKRI HR - CPO Office,Alexander Mann Solutions Ltd,99953900,6159.30,Agency Staff
BEIS,UKRI - UKRI,09/05/2023,Unspecified,UKRI - Digital Data and Technology Project Costs,Alexander Mann Solutions Ltd,99953921,12853.22,Contract Staff
BEIS,UKRI - UKRI,09/05/2023,Unspecified,UKRI-SHARP,Alexander Mann Solutions Ltd,99953925,3150.30,Contract Staff
BEIS,UKRI - UKRI,09/05/2023,Unspecified,UKRI-SHARP,Alexander Mann Solutions Ltd,99953930,3018.84,Contract Staff
BEIS,UKRI - UKRI,09/05/2023,Unspecified,UKRI - Digital Data and Technology Project Costs,Alexander Mann Solutions Ltd,99953939,1108.67,Contract Staff
BEIS,UKRI - UKRI,09/05/2023,Unspecified,UKRI - Digital Data and Technology Project Costs,Alexander Mann Solutions Ltd,99953939,1108.68,Contract Staff
BEIS,UKRI - UKRI,09/05/2023,Unspecified,UKRI-SHARP,Alexander Mann Solutions Ltd,99953943,3387.66,Contract Staff
BEIS,UKRI - UKRI,09/05/2023,Advertising & Promotion,UKRI - Communications Content,Robot Dinosaur Productions Ltd,99953950,192.00,Advertising & Promotion
BEIS,UKRI - UKRI,09/05/2023,Unspecified,UKRI-SHARP,Alexander Mann Solutions Ltd,99953951,4734.12,Contract Staff
BEIS,UKRI - UKRI,09/05/2023,Unspecified,Horizon Europe OPEX,Reed Specialist Recruitment Ltd,99954002,1102.54,Agency Staff
BEIS,UKRI - UKRI,09/05/2023,Unspecified,Horizon Europe OPEX,Reed Specialist Recruitment Ltd,99954004,1102.54,Agency Staff
BEIS,UKRI - UKRI,09/05/2023,Unspecified,Horizon Europe OPEX,Reed Specialist Recruitment Ltd,99954005,876.24,Agency Staff
BEIS,UKRI - UKRI,09/05/2023,Unspecified,Horizon Europe OPEX,Reed Specialist Recruitment Ltd,99954006,876.24,Agency Staff
BEIS,UKRI - UKRI,09/05/2023,Unspecified,Horizon Europe OPEX,Reed Specialist Recruitment Ltd,99954008,1102.54,Agency Staff
BEIS,UKRI - UKRI,09/05/2023,Unspecified,Horizon Europe OPEX,Reed Specialist Recruitment Ltd,99954009,1102.54,Agency Staff
BEIS,UKRI - UKRI,09/05/2023,Mobile Phone Costs,UKRI - Digital Data and Technology Recharges,Telefonica UK Ltd (O2),99954035,1653.61,Mobile Phone Costs
BEIS,UKRI - UKRI,09/05/2023,Mobile Phone Costs,UKRI - Digital Data and Technology Recharges,Telefonica UK Ltd (O2),99954035,190.56,Mobile Phone Costs
BEIS,UKRI - UKRI,09/05/2023,Mobile Phone Costs,UKRI - Digital Data and Technology BAU Costs,Telefonica UK Ltd (O2),99954036,87.18,Mobile Phone Costs
BEIS,UKRI - UKRI,09/05/2023,Mobile Phone Costs,UKRI - Digital Data and Technology BAU Costs,Telefonica UK Ltd (O2),99954036,9.52,Mobile Phone Costs
BEIS,UKRI - UKRI,09/05/2023,Mobile Phone Costs,UKRI - Digital Data and Technology BAU Costs,Telefonica UK Ltd (O2),99954037,2565.57,Mobile Phone Costs
BEIS,UKRI - UKRI,09/05/2023,Mobile Phone Costs,UKRI - Digital Data and Technology BAU Costs,Telefonica UK Ltd (O2),99954037,513.11,Mobile Phone Costs
BEIS,UKRI - UKRI,09/05/2023,Mobile Phone Costs,UKRI - Digital Data and Technology BAU Costs,Telefonica UK Ltd (O2),99954038,1135.90,Mobile Phone Costs
BEIS,UKRI - UKRI,09/05/2023,Mobile Phone Costs,UKRI - Digital Data and Technology BAU Costs,Telefonica UK Ltd (O2),99954038,82.60,Mobile Phone Costs
BEIS,UKRI - UKRI,09/05/2023,Mobile Phone Costs,UKRI - Digital Data and Technology BAU Costs,Telefonica UK Ltd (O2),99954039,155.55,Mobile Phone Costs
BEIS,UKRI - UKRI,09/05/2023,Mobile Phone Costs,UKRI - Digital Data and Technology BAU Costs,Telefonica UK Ltd (O2),99954039,20.37,Mobile Phone Costs
BEIS,UKRI - UKRI,09/05/2023,Mobile Phone Costs,UKRI - Digital Data and Technology BAU Costs,Telefonica UK Ltd (O2),99954040,7.35,Mobile Phone Costs
BEIS,UKRI - UKRI,09/05/2023,Mobile Phone Costs,UKRI - Digital Data and Technology BAU Costs,Telefonica UK Ltd (O2),99954040,1.47,Mobile Phone Costs
BEIS,UKRI - UKRI,09/05/2023,Mobile Phone Costs,UKRI - Digital Data and Technology BAU Costs,Telefonica UK Ltd (O2),99954041,53.71,Mobile Phone Costs
BEIS,UKRI - UKRI,09/05/2023,Mobile Phone Costs,UKRI - Digital Data and Technology BAU Costs,Telefonica UK Ltd (O2),99954041,10.74,Mobile Phone Costs
BEIS,UKRI - UKRI,09/05/2023,Mobile Phone Costs,UKRI - Digital Data and Technology BAU Costs,Telefonica UK Ltd (O2),99954042,454.68,Mobile Phone Costs
BEIS,UKRI - UKRI,09/05/2023,Mobile Phone Costs,UKRI - Digital Data and Technology BAU Costs,Telefonica UK Ltd (O2),99954042,85.00,Mobile Phone Costs
BEIS,UKRI - UKRI,09/05/2023,Mobile Phone Costs,UKRI - Digital Data and Technology BAU Costs,Telefonica UK Ltd (O2),99954043,97.76,Mobile Phone Costs
BEIS,UKRI - UKRI,09/05/2023,Mobile Phone Costs,UKRI - Digital Data and Technology BAU Costs,Telefonica UK Ltd (O2),99954043,8.66,Mobile Phone Costs
BEIS,UKRI - UKRI,09/05/2023,Mobile Phone Costs,UKRI - Digital Data and Technology BAU Costs,Telefonica UK Ltd (O2),99954044,77.78,Mobile Phone Costs
BEIS,UKRI - UKRI,09/05/2023,Mobile Phone Costs,UKRI - Digital Data and Technology BAU Costs,Telefonica UK Ltd (O2),99954044,13.58,Mobile Phone Costs
BEIS,UKRI - UKRI,09/05/2023,Mobile Phone Costs,UKRI - Digital Data and Technology BAU Costs,Telefonica UK Ltd (O2),99954045,3725.00,Mobile Phone Costs
BEIS,UKRI - UKRI,09/05/2023,Mobile Phone Costs,UKRI - Digital Data and Technology BAU Costs,Telefonica UK Ltd (O2),99954045,422.45,Mobile Phone Costs
BEIS,UKRI - UKRI,09/05/2023,Mobile Phone Costs,UKRI - Digital Data and Technology BAU Costs,Telefonica UK Ltd (O2),99954046,4.95,Mobile Phone Costs
BEIS,UKRI - UKRI,09/05/2023,Mobile Phone Costs,UKRI - Digital Data and Technology BAU Costs,Telefonica UK Ltd (O2),99954046,0.99,Mobile Phone Costs
BEIS,UKRI - UKRI,09/05/2023,Mobile Phone Costs,UKRI - Digital Data and Technology BAU Costs,Telefonica UK Ltd (O2),99954047,1741.25,Mobile Phone Costs
BEIS,UKRI - UKRI,09/05/2023,Mobile Phone Costs,UKRI - Digital Data and Technology BAU Costs,Telefonica UK Ltd (O2),99954047,348.25,Mobile Phone Costs
BEIS,UKRI - UKRI,09/05/2023,Advertising & Promotion,UKRI - Communications Content,Stuart David Wallace T/A Stuart Wallace Pictures,99954119,804.00,Advertising & Promotion
BEIS,UKRI - UKRI,09/05/2023,Unspecified,UKRI - Digital Data and Technology Project Costs,Precision Resource Group Ltd T/A iO,99954124,3348.00,Contract Staff
BEIS,UKRI - UKRI,09/05/2023,Unspecified,UKRI - Digital Data and Technology Project Costs,Precision Resource Group Ltd T/A iO,99954126,3390.00,Contract Staff
BEIS,UKRI - UKRI,10/05/2023,Staff Training,UKRI - Executive Group,ILX GROUP PLC,99927615,882.00,Staff Training
BEIS,UKRI - UKRI,10/05/2023,Unspecified,UKRI - Digital Data and Technology Project Costs,LA International Computer Consultants Ltd,99946145,11334.72,Contract Staff
BEIS,UKRI - UKRI,10/05/2023,Health & Safety (inc. Medicals & Opticians),Horizon Europe OPEX,Unspecified,99948721,89.00,Health & Safety (inc. Medicals & Opticians)
BEIS,UKRI - UKRI,10/05/2023,Meetings & Catering,UKRI - Secretariat,Calder Conference Ltd,99951611,5104.80,Meetings & Catering
BEIS,UKRI - UKRI,10/05/2023,Unspecified,UKRI - Digital Data and Technology Project Costs,LA International Computer Consultants Ltd,99951844,6375.78,Contract Staff
BEIS,UKRI - UKRI,10/05/2023,T&S UK - Subsistence,UKRI - Digital Data and Technology BAU Costs,Unspecified,99952399,11.94,T&S UK - Subsistence
BEIS,UKRI - EPSRC,10/05/2023,Unspecified,Directors and Deputy Directors,Alexander Mann Solutions Ltd,99952679,1537.92,Agency Staff
BEIS,UKRI - EPSRC,10/05/2023,Unspecified,Directors and Deputy Directors,Alexander Mann Solutions Ltd,99952680,611.39,Agency Staff
BEIS,UKRI - UKRI,10/05/2023,Unspecified,UKRI - Digital Data and Technology Project Costs,Alexander Mann Solutions Ltd,99952690,3150.30,Contract Staff
BEIS,UKRI - UKRI,10/05/2023,Unspecified,UKRI - Digital Data and Technology Project Costs,Alexander Mann Solutions Ltd,99952697,8820.84,Contract Staff
BEIS,UKRI - UKRI,10/05/2023,Unspecified,UKRI - Security,Alexander Mann Solutions Ltd,99952704,1847.81,Contract Staff
BEIS,UKRI - UKRI,10/05/2023,Unspecified,UKRI - Strategic Finance Business Partners,Alexander Mann Solutions Ltd,99952705,1260.12,Agency Staff
BEIS,UKRI - EPSRC,10/05/2023,Non-staff travel and subsistance,Business Improvement,Unspecified,99953574,240.00,Non-staff travel and subsistance
BEIS,UKRI - EPSRC,10/05/2023,Non-staff travel and subsistance,Business Improvement,Unspecified,99953575,240.00,Non-staff travel and subsistance
BEIS,UKRI - UKRI,10/05/2023,Unspecified,Horizon Europe OPEX,Reed Specialist Recruitment Ltd,99953654,1064.08,Agency Staff
BEIS,UKRI - UKRI,10/05/2023,Consultancy Services,Reforming Our Business,Reed Specialist Recruitment Ltd,99953667,932.89,Consultancy Services
BEIS,UKRI - UKRI,10/05/2023,Consultancy Services,Reforming Our Business,Reed Specialist Recruitment Ltd,99953672,1087.46,Consultancy Services
BEIS,UKRI - UKRI,10/05/2023,Security Services,UKRI - Estates Projects,Capita Secure Information Solutions Ltd T/A Capita Workforce Management,99953684,11013.76,Security Services
BEIS,UKRI - UKRI,10/05/2023,Unspecified,UKRI - Digital Data and Technology Project Costs,Precision Resource Group Ltd T/A iO,99953687,2832.00,Contract Staff
BEIS,UKRI - UKRI,10/05/2023,Unspecified,UKRI - Digital Data and Technology Project Costs,Precision Resource Group Ltd T/A iO,99953688,2712.00,Contract Staff
BEIS,UKRI - UKRI,10/05/2023,Unspecified,UKRI - Digital Data and Technology BAU Costs,Precision Resource Group Ltd T/A iO,99953696,3348.00,Contract Staff
BEIS,UKRI - UKRI,10/05/2023,Unspecified,UKRI-SHARP,Alexander Mann Solutions Ltd,99953818,5040.48,Agency Staff
BEIS,UKRI - UKRI,10/05/2023,Unspecified,UKRI-SHARP,Alexander Mann Solutions Ltd,99953819,2205.18,Agency Staff
BEIS,UKRI - UKRI,10/05/2023,Unspecified,UKRI - Digital Data and Technology Project Costs,Alexander Mann Solutions Ltd,99953830,3150.30,Contract Staff
BEIS,UKRI - UKRI,10/05/2023,Unspecified,UKRI - Digital Data and Technology Project Costs,Alexander Mann Solutions Ltd,99953882,8191.85,Contract Staff
BEIS,UKRI - UKRI,10/05/2023,Unspecified,UKRI - Digital Data and Technology Project Costs,Alexander Mann Solutions Ltd,99953887,3150.30,Contract Staff
BEIS,UKRI - UKRI,10/05/2023,Unspecified,UKRI - Digital Data and Technology Project Costs,Alexander Mann Solutions Ltd,99953890,1539.80,Contract Staff
BEIS,UKRI - UKRI,10/05/2023,Unspecified,UKRI - Digital Data and Technology Project Costs,Alexander Mann Solutions Ltd,99953890,1539.82,Contract Staff
BEIS,UKRI - UKRI,10/05/2023,Unspecified,Reforming Our Business,Alexander Mann Solutions Ltd,99953989,4434.72,Contract Staff
BEIS,UKRI - UKRI,10/05/2023,Unspecified,UKRI-SHARP,LA International Computer Consultants Ltd,99954368,2000.06,Contract Staff
BEIS,UKRI - UKRI,10/05/2023,Staff Training,UKRI - Communication and Engagement,Partnership Media Group T/A GovNet Communications,99954377,534.00,Staff Training
BEIS,UKRI - UKRI,10/05/2023,Advertising & Promotion,UKRI - Communications Content,Simon Troup and Jennie Troup T/A Digital Music Art,99954394,240.00,Advertising & Promotion
BEIS,UKRI - UKRI,10/05/2023,Advertising & Promotion,UKRI - Communications Content,First Business Creative Ltd,99954451,3379.54,Advertising & Promotion
BEIS,UKRI - UKRI,10/05/2023,Unspecified,UKRI - Digital Data and Technology Project Costs,Infotechtion Ltd,99954559,2918.40,Legal & Professional Services
BEIS,UKRI - UKRI,10/05/2023,Unspecified,UKRI - Digital Data and Technology Project Costs,Logicalis Uk Ltd,99954622,69600.00,Legal & Professional Services
BEIS,UKRI - UKRI,10/05/2023,Staff Training,UKRI HR - Corporate Projects,ASK Europe PLC,99954767,312.00,Staff Training
BEIS,UKRI - UKRI,10/05/2023,Purchase of non capital equipment,UKRI - JRS,Signgeer Ltd,99954775,1068.00,Purchase of non capital equipment
BEIS,UKRI - UKRI,10/05/2023,Purchase of non capital equipment,UKRI - JRS,Signgeer Ltd,99954775,90.00,Purchase of non capital equipment
BEIS,UKRI - UKRI,10/05/2023,T&S Overseas - Accommodation,UKRI - Overseas Office India,Newable International Consulting Ltd,99954850,1554.00,T&S Overseas - Accommodation
BEIS,UKRI - UKRI,10/05/2023,T&S Overseas - Accommodation,UKRI - Overseas Office India,Newable International Consulting Ltd,99954851,1920.00,T&S Overseas - Accommodation
BEIS,UKRI - EPSRC,10/05/2023,T&S UK - Mileage,Institutes,Unspecified,99955799,54.60,T&S UK - Mileage
BEIS,UKRI - EPSRC,10/05/2023,T&S UK - Parking Tolls Congestion Charges,Institutes,Unspecified,99955799,25.50,T&S UK - Parking Tolls Congestion Charges
BEIS,UKRI - EPSRC,10/05/2023,T&S UK - Public Transport,Institutes,Unspecified,99955799,4.00,T&S UK - Public Transport
BEIS,UKRI - UKRI,10/05/2023,T&S UK - Other Charges,UKRI - Counter Fraud,Unspecified,99955800,7.80,T&S UK - Other Charges
BEIS,UKRI - UKRI,10/05/2023,T&S UK - Subsistence,UKRI - Counter Fraud,Unspecified,99955800,44.20,T&S UK - Subsistence
BEIS,UKRI - UKRI,10/05/2023,T&S UK - Subsistence,UKRI - Counter Fraud,Unspecified,99955800,25.05,T&S UK - Subsistence
BEIS,UKRI - UKRI,10/05/2023,T&S UK - Mileage,UKRI HR � Operations,Unspecified,99955801,35.10,T&S UK - Mileage
BEIS,UKRI - UKRI,10/05/2023,T&S UK - Public Transport,Research Integrity Support Team OpEx,Unspecified,99955802,21.75,T&S UK - Public Transport
BEIS,UKRI - UKRI,10/05/2023,T&S UK - Subsistence,Research Integrity Support Team OpEx,Unspecified,99955802,49.50,T&S UK - Subsistence
BEIS,UKRI - EPSRC,10/05/2023,T&S UK - Other Charges,Manufacturing and Circular Economy,Unspecified,99955803,100.00,T&S UK - Other Charges
BEIS,UKRI - EPSRC,10/05/2023,T&S UK - Parking Tolls Congestion Charges,Manufacturing and Circular Economy,Unspecified,99955804,5.50,T&S UK - Parking Tolls Congestion Charges
BEIS,UKRI - EPSRC,10/05/2023,T&S UK - Vehicle Hire,Manufacturing and Circular Economy,Unspecified,99955804,11.01,T&S UK - Vehicle Hire
BEIS,UKRI - EPSRC,10/05/2023,T&S UK - Other Charges,Programme Delivery Energy,Unspecified,99955806,4.20,T&S UK - Other Charges
BEIS,UKRI - EPSRC,10/05/2023,T&S UK - Public Transport,Programme Delivery Energy,Unspecified,99955806,30.00,T&S UK - Public Transport
BEIS,UKRI - EPSRC,10/05/2023,T&S UK - Subsistence,Programme Delivery Energy,Unspecified,99955806,40.53,T&S UK - Subsistence
BEIS,UKRI - EPSRC,10/05/2023,T&S UK - Subsistence,Programme Delivery Energy,Unspecified,99955806,17.84,T&S UK - Subsistence
BEIS,UKRI - EPSRC,10/05/2023,T&S UK - Subsistence,Directors and Deputy Directors,Unspecified,99955807,13.40,T&S UK - Subsistence
BEIS,UKRI - UKRI,10/05/2023,T&S UK - Public Transport,UKRI - Public Engagement,Unspecified,99955809,7.94,T&S UK - Public Transport
BEIS,UKRI - UKRI,10/05/2023,T&S UK - Subsistence,UKRI - Public Engagement,Unspecified,99955809,4.50,T&S UK - Subsistence
BEIS,UKRI - UKRI,10/05/2023,T&S UK - Public Transport,UKRI - Public Engagement,Unspecified,99955810,7.10,T&S UK - Public Transport
BEIS,UKRI - UKRI,10/05/2023,T&S UK - Subsistence,UKRI - Public Engagement,Unspecified,99955810,24.70,T&S UK - Subsistence
BEIS,UKRI - EPSRC,10/05/2023,T&S UK - Subsistence,Programme Delivery Quantum Technology,Unspecified,99955811,4.70,T&S UK - Subsistence
BEIS,UKRI - EPSRC,10/05/2023,T&S UK - Subsistence,Programme Delivery Quantum Technology,Unspecified,99955811,11.65,T&S UK - Subsistence
BEIS,UKRI - UKRI,10/05/2023,T&S UK - Other Charges,UKRI - Financial Accounting,Unspecified,99955812,100.00,T&S UK - Other Charges
BEIS,UKRI - EPSRC,10/05/2023,T&S UK - Public Transport,Programme Delivery Quantum Technology,Unspecified,99955813,1.75,T&S UK - Public Transport
BEIS,UKRI - EPSRC,10/05/2023,T&S UK - Subsistence,Programme Delivery Quantum Technology,Unspecified,99955813,2.60,T&S UK - Subsistence
BEIS,UKRI - EPSRC,10/05/2023,T&S UK - Subsistence,Programme Delivery Quantum Technology,Unspecified,99955813,30.00,T&S UK - Subsistence
BEIS,UKRI - EPSRC,10/05/2023,T&S UK - Subsistence,Programme Delivery Quantum Technology,Unspecified,99955813,6.20,T&S UK - Subsistence
BEIS,UKRI - EPSRC,10/05/2023,T&S UK - Subsistence,Programme Delivery Quantum Technology,Unspecified,99955814,11.55,T&S UK - Subsistence
BEIS,UKRI - UKRI,11/05/2023,Unspecified,Horizon Europe OPEX,Alexander Mann Solutions Ltd,99925453,8625.24,Agency Staff
BEIS,UKRI - UKRI,11/05/2023,Internal Audit,UKRI - Assurance,HM Treasury Group,99938908,278461.50,Internal Audit
BEIS,UKRI - UKRI,11/05/2023,Unspecified,Horizon Europe OPEX,Alexander Mann Solutions Ltd,99940270,4095.36,Agency Staff
BEIS,UKRI - UKRI,11/05/2023,Unspecified,Horizon Europe OPEX,Alexander Mann Solutions Ltd,99940277,4440.48,Agency Staff
BEIS,UKRI - UKRI,11/05/2023,Unspecified,Horizon Europe OPEX,Alexander Mann Solutions Ltd,99943861,3552.38,Agency Staff
BEIS,UKRI - UKRI,11/05/2023,Unspecified,Horizon Europe OPEX,Alexander Mann Solutions Ltd,99943914,3276.29,Agency Staff
BEIS,UKRI - UKRI,11/05/2023,Unspecified,Horizon Europe OPEX,Alexander Mann Solutions Ltd,99944743,3024.29,Agency Staff
BEIS,UKRI - UKRI,11/05/2023,Unspecified,Horizon Europe OPEX,Alexander Mann Solutions Ltd,99946051,4095.36,Agency Staff
BEIS,UKRI - UKRI,11/05/2023,Unspecified,Horizon Europe OPEX,Alexander Mann Solutions Ltd,99946118,3552.38,Agency Staff
BEIS,UKRI - UKRI,11/05/2023,Unspecified,Horizon Europe OPEX,Hays Specialist Recruitment Ltd,99948659,17120.56,Agency Staff
BEIS,UKRI - UKRI,11/05/2023,Consumables,UKRI - JRS,Kodak Ltd,99948677,611.52,Consumables
BEIS,UKRI - UKRI,11/05/2023,Consumables,UKRI - JRS,Kodak Ltd,99948677,996.00,Consumables
BEIS,UKRI - UKRI,11/05/2023,Consumables,UKRI - JRS,Kodak Ltd,99948677,3216.10,Consumables
BEIS,UKRI - UKRI,11/05/2023,Consumables,UKRI - JRS,Kodak Ltd,99948677,19.72,Consumables
BEIS,UKRI - UKRI,11/05/2023,Consumables,UKRI - JRS,Kodak Ltd,99948677,299.84,Consumables
BEIS,UKRI - UKRI,11/05/2023,Consumables,UKRI - JRS,Kodak Ltd,99948677,1145.66,Consumables
BEIS,UKRI - UKRI,11/05/2023,Consumables,UKRI - JRS,Kodak Ltd,99948677,630.24,Consumables
BEIS,UKRI - UKRI,11/05/2023,Consumables,UKRI - JRS,Kodak Ltd,99948677,2398.03,Consumables
BEIS,UKRI - UKRI,11/05/2023,Consumables,UKRI - JRS,Kodak Ltd,99948677,0.10,Consumables
BEIS,UKRI - UKRI,11/05/2023,Consumables,UKRI - JRS,Kodak Ltd,99948677,0.02,Consumables
BEIS,UKRI - UKRI,11/05/2023,Unspecified,Horizon Europe OPEX,Hays Specialist Recruitment Ltd,99949309,14143.07,Agency Staff
BEIS,UKRI - UKRI,11/05/2023,Unspecified,Horizon Europe OPEX,Hays Specialist Recruitment Ltd,99949311,17120.56,Agency Staff
BEIS,UKRI - UKRI,11/05/2023,Unspecified,Horizon Europe OPEX,Hays Specialist Recruitment Ltd,99949312,19942.93,Agency Staff
BEIS,UKRI - UKRI,11/05/2023,Unspecified,Horizon Europe OPEX,Alexander Mann Solutions Ltd,99950154,3685.82,Agency Staff
BEIS,UKRI - UKRI,11/05/2023,Unspecified,Horizon Europe OPEX,Alexander Mann Solutions Ltd,99950179,4312.62,Agency Staff
BEIS,UKRI - UKRI,11/05/2023,Unspecified,Horizon Europe OPEX,Alexander Mann Solutions Ltd,99950183,4440.48,Agency Staff
BEIS,UKRI - UKRI,11/05/2023,Unspecified,Horizon Europe OPEX,Alexander Mann Solutions Ltd,99950204,3780.36,Agency Staff
BEIS,UKRI - UKRI,11/05/2023,Unspecified,UKRI - Transformation Communications,Unspecified,99951439,3360.00,Contract Staff
BEIS,UKRI - UKRI,11/05/2023,Unspecified,Horizon Europe OPEX,Hays Specialist Recruitment Ltd,99951465,1985.40,Agency Staff
BEIS,UKRI - UKRI,11/05/2023,Unspecified,Horizon Europe OPEX,Hays Specialist Recruitment Ltd,99951479,6548.76,Agency Staff
BEIS,UKRI - UKRI,11/05/2023,Unspecified,Horizon Europe OPEX,Hays Specialist Recruitment Ltd,99951493,6069.59,Agency Staff
BEIS,UKRI - UKRI,11/05/2023,Unspecified,Horizon Europe OPEX,Hays Specialist Recruitment Ltd,99951495,19942.93,Agency Staff
BEIS,UKRI - UKRI,11/05/2023,Unspecified,Horizon Europe OPEX,Alexander Mann Solutions Ltd,99952699,4095.36,Agency Staff
BEIS,UKRI - UKRI,11/05/2023,Unspecified,Horizon Europe OPEX,Alexander Mann Solutions Ltd,99952703,4440.48,Agency Staff
BEIS,UKRI - UKRI,11/05/2023,Unspecified,Horizon Europe OPEX,Alexander Mann Solutions Ltd,99952707,3780.36,Agency Staff
BEIS,UKRI - UKRI,11/05/2023,Unspecified,Horizon Europe OPEX,Alexander Mann Solutions Ltd,99952709,4312.62,Agency Staff
BEIS,UKRI - UKRI,11/05/2023,Unspecified,Horizon Europe OPEX,Alexander Mann Solutions Ltd,99952712,1890.19,Agency Staff
BEIS,UKRI - UKRI,11/05/2023,Unspecified,Horizon Europe OPEX,Alexander Mann Solutions Ltd,99952714,2520.24,Agency Staff
BEIS,UKRI - UKRI,11/05/2023,Printing & Stationery,UKRI - JBOS,Banner Group Ltd,99954318,18.80,Printing & Stationery
BEIS,UKRI - UKRI,11/05/2023,Recruitment Costs,UKRI HR � Operations,Agenda Resource Management Ltd,99954776,3147.78,Recruitment Costs
BEIS,UKRI - UKRI,11/05/2023,Health & Safety (inc. Medicals & Opticians),UKRI - Health and Safety,Back Care Solutions Ltd,99955108,44.40,Health & Safety (inc. Medicals & Opticians)
BEIS,UKRI - UKRI,11/05/2023,Unspecified,UKRI-SHARP,LA International Computer Consultants Ltd,99955109,3593.40,Contract Staff
BEIS,UKRI - UKRI,11/05/2023,Conferences & Seminars,UKRI - UKRO,Compass Contract Services (UK) Ltd T/A Eurest Services,99955117,301.20,Conferences & Seminars
BEIS,UKRI - UKRI,11/05/2023,Unspecified,UKRI HR - Corporate Projects,Open University,99955143,2400.00,Legal & Professional Services
BEIS,UKRI - UKRI,11/05/2023,Unspecified,UKRI-SHARP,LA International Computer Consultants Ltd,99955145,2500.08,Contract Staff
BEIS,UKRI - UKRI,11/05/2023,Design services,UKRI - JRS,Winwood Haines Ltd,99955190,880.00,Design services
BEIS,UKRI - UKRI,11/05/2023,Design services,UKRI - JRS,Winwood Haines Ltd,99955190,360.00,Design services
BEIS,UKRI - UKRI,11/05/2023,Design services,UKRI - JRS,Winwood Haines Ltd,99955190,480.00,Design services
BEIS,UKRI - UKRI,11/05/2023,Advertising & Promotion,UKRI - Communications Content,Dragon Rouge Ltd,99955222,9030.00,Advertising & Promotion
BEIS,UKRI - UKRI,11/05/2023,Recruitment Costs,UKRI HR � Public and Senior Appointments,PERRETT LAVER LTD,99955240,22680.00,Recruitment Costs
BEIS,UKRI - UKRI,11/05/2023,Health & Safety (inc. Medicals & Opticians),UKRI HR � Operations,Cordell Health Ltd,99955259,462.00,Health & Safety (inc. Medicals & Opticians)
BEIS,UKRI - UKRI,11/05/2023,Advertising & Promotion,UKRI - Communications Content,Unspecified,99955270,4200.00,Advertising & Promotion
BEIS,UKRI - UKRI,11/05/2023,Unspecified,UKRI-SHARP,LA International Computer Consultants Ltd,99955320,2693.40,Contract Staff
BEIS,UKRI - EPSRC,11/05/2023,Fees (Including College Members),Business Improvement,Unspecified,99955321,160.00,Fees (Including College Members)
BEIS,UKRI - EPSRC,11/05/2023,Fees (Including College Members),Business Improvement,Unspecified,99955322,160.00,Fees (Including College Members)
BEIS,UKRI - EPSRC,11/05/2023,Fees (Including College Members),Business Improvement,Unspecified,99955323,320.00,Fees (Including College Members)
BEIS,UKRI - EPSRC,11/05/2023,Fees (Including College Members),Business Improvement,Unspecified,99955324,320.00,Fees (Including College Members)
BEIS,UKRI - EPSRC,11/05/2023,Fees (Including College Members),Business Improvement,Unspecified,99955325,320.00,Fees (Including College Members)
BEIS,UKRI - EPSRC,11/05/2023,Fees (Including College Members),Business Improvement,Unspecified,99955326,320.00,Fees (Including College Members)
BEIS,UKRI - EPSRC,11/05/2023,Fees (Including College Members),Business Improvement,Unspecified,99955327,160.00,Fees (Including College Members)
BEIS,UKRI - EPSRC,11/05/2023,Fees (Including College Members),Business Improvement,Unspecified,99955328,320.00,Fees (Including College Members)
BEIS,UKRI - EPSRC,11/05/2023,Fees (Including College Members),Business Improvement,Unspecified,99955329,320.00,Fees (Including College Members)
BEIS,UKRI - EPSRC,11/05/2023,Fees (Including College Members),Business Improvement,Unspecified,99955330,320.00,Fees (Including College Members)
